{"text_format":"1","workbook":"xlsx","n_sheets":1,"sheets":["Sheet1"],"not_rendered":{"charts":0,"images":0,"macros":1,"external_links":0,"defined_names":1,"comments":0,"pivot_tables":0},"unopened":[],"bounds":{"document_bytes":16777216,"sheet_cells":100000,"rows_first":2000,"rows_last":500,"rows_between":2000,"halvings":0,"cell_chars":16384,"cell_head_chars":4096},"cells_cut":0,"cells_raw":0,"read":"whole","date_system":"1900"}

{"sheet":"Sheet1","index":0,"n_rows":956,"n_cols":26,"rows_kept":956,"cut":false,"hidden":false,"merged":[]}
["Column1","Facility Name","Last Name","First Name","Title","Address","City","State","Zip Code","Phone","Email","Contract Type","Agreement Initiated","Expiration Date","Six Months Before Expiration Date","Four Months Before Expiration Date","Three Months Before Expiration Date","Expiration Date Notes","Discipline","College of Education","Robert Stempel College of Public Health and Social Work","School of Integrated Science and Humanity","Chapman Graduate School of Business Administration","Umbrella","Notes","SharePoint Files"]
["Active","A Plus Kids Therapy","Fermin","Maria Ada","OTR/L","324 West Oak Street","Kissimmee","FL",34741,"407-557-2172",null,"FIU Contract","2009-01-01","2025-01-01",{"$f":"IF(N2<>\"\",DATE(YEAR(N2),MONTH(N2)-6,DAY(N2)),\"\")","v":"2024-07-01"},{"$f":"IF(N2<>\"\",DATE(YEAR(N2),MONTH(N2)-4,DAY(N2)),\"\")","v":"2024-09-01"},{"$f":"IF(N2<>\"\",DATE(YEAR(N2),MONTH(N2)-3,DAY(N2)),\"\")","v":"2024-10-01"},null,"OT",null,null,null,null,"Not in Umbrella",null,"A Plus Kids Therapy"]
["Active","A Plus Therapy Inc ","Marquez","Susan",null,"2685 Executive Park Drive","Weston","FL",33331,"954-515-0892","aplustherapy@bellsouth.net","FIU Contract","2008-12-01","2025-01-01","2024-07-01","2024-09-01","2024-10-01",null,"OT",null,null,null,null,"Not in Umbrella",null,"A Plus Therapy Inc"]
["Active","Abilities In Motion","Andry","David ","Director & CEO","13032 SW 133 Court","Miami","FL",33186,"305 310-3453","otrpeds@aol.com","FIU Contract","2005-04-01","2025-01-01","2024-07-01","2024-09-01","2024-10-01",null,"OT",null,null,null,null,"Not in Umbrella",null,"Abilities in Motion Inc 2005 OT"]
["Active","Ability Plus Therapy Inc","Neves","Roberta","Clinical Director, Owner","4450 W Eau Gallie Blvd Ste 180","Melbourne","FL",32934,"321/255-6627","roberta@abilityplustherapy.com","FIU Contract","2015-07-21","2025-01-01","2024-07-01","2024-09-01","2024-10-01",null,"PT",null,null,null,null,null,null,"Ability Plus Therapy Inc"]
["Inactive","Ability Rehabilitation (1/1/2016 agreement terminated)","Baron","Amanda","Student Coordinator","652 Palm Springs Drive","Altamonte Springs","FL",32701,"407/389-1092","abaron@abilityrehabilitation.com","FIU Contract","2009-01-01","2025-01-01","2024-07-01","2024-09-01","2024-10-01",null,"OT PT",null,null,null,null,"Umbrella",null,"Ability Rehabilitation"]
["Active","Absolute Rehab","Vesely","John ","Dir. of Recruiting","339 East Maple St. Ste 100","North Canton","OH",44720,"330/498-8239","jvesely@abstherapy.com","FIU Contract","2013-01-01","2025-01-01","2024-07-01","2024-09-01","2024-10-01",null,"OT",null,null,null,null,"Not in Umbrella",null,"Absolute Rehab"]
["Active","Accelerated Rehab - Ft. Lauderdale","Rochelau","Kelly",null,"6451 N. Federal Highway  Suite #127","Ft. Lauderdale","FL","33308","954 577-5705",null,"FIU Contract","2004-05-01","2025-01-01","2024-07-01","2024-09-01","2024-10-01",null,"PT",null,null,null,null,"Not in Umbrella",null,"Accelerated Rehabilitation "]
["Inactive","Accelerated Rehabilitation Centers Facility Closed","Mathew","Donner","Owner","861 North Nob Hill Rd.","Plantation","FL",33324,"954-577-5705",null,"FIU Contract","2003-01-01","2025-01-01","2024-07-01","2024-09-01","2024-10-01",null,"OT",null,null,null,null,"Not in Umbrella",null,"Accelerated Rehab Center"]
["Active","Accomplish Therapy LLC","Spellman","Tara ","Staffing Mgr","1665 Palm Beach Lakes Blvd Ste 100","West Palm Beach","FL",33401,"561/801-7598","tspellman@accomplishtherapy.com","FIU contract","2016-01-01","2019-12-31","2019-07-01","2019-08-31","2019-10-01",null,"PT OT",null,null,null,null,null,null,"Accomplish Therapy"]
["Active","Accucare- Ft. Lauderdale","Klein","Kurt","PT","8620 STATE ROAD 84","Ft. Lauderdale","FL","33324",null,null,"FIU Contract","2004-07-01","2025-01-01","2024-07-01","2024-09-01","2024-10-01",null,"PT",null,null,null,null,"Not in Umbrella",null,"AccuCare"]
["Active","ACD Pediatric Group","Isabel","Janet Marie ",null,"Hialeah and Pembroke Pines ","3416 W 84Th St. Ste 100 & 17751 Sw 2Nd St.","FL","33018 and 33029","305-826-9449",null,"FIU Contract","2013-08-01","2025-01-01","2024-07-01","2024-09-01","2024-10-01",null,"Nursing",null,null,null,null,"Not in Umbrella",null,"ACD Pediatric Group"]
["Active","ACG Therapy Center","Niederkohr","Carolyn","Office Manager","1330 NW 6 St. Ste A","Gainesville","FL",32606,"352-372-0047","acgther@bellsouth.net","FIU Contract","2002-09-01","2025-01-01","2024-07-01","2024-09-01","2024-10-01",null,"OT",null,null,null,null,"Not in Umbrella",null,"ACG Therapy Center"]
["Active","Acquatic Health And Rehabilitation Services Inc","Terry","Shepherd","PT MSHA","505 North Courtenay Parkway, Suite 203","Merritt Island","FL",32953,"321-453-8484","tshepherd@aquatichealthandrehab.com","FIU Contract","2008-11-01","2025-01-01","2024-07-01","2024-09-01","2024-10-01",null,"PT  OT",null,null,null,null,"Not in Umbrella",null,"Aquatic Health and Rehab"]
["Active","Action Hand Therapy Inc ","Kieman","Linda","Owner","3401PGA Blvd. Ste 500","Palm Beach Gardens","FL",33410,"561/366-0065","actionhandtherapy@live.com","FIU Contract","2014-03-01","2025-01-01","2024-07-01","2024-09-01","2024-10-01",null,"OT",null,null,null,null,"Not in Umbrella",null,"Action Hand Therapy"]
["Active","ADL Achievement Therapy","Comiskey","Denise","Clinical supervisor","1013 Verona St.","Kissimmee","FL",null,null,null,"FIU Contract","2011-11-01","2025-01-01","2024-07-01","2024-09-01","2024-10-01",null,"OT",null,null,null,null,"Not in Umbrella",null,"ADL Achievement Therapy"]
["Active","Advance Therapy Works Inc","Fuentes","Stella","Owner","12060 SW 127th Ct.","Miami","FL",33186,"305/378-5247","advancetherapyworks@yahoo.com","FIU Contract","2013-02-01","2025-01-01","2024-07-01","2024-09-01","2024-10-01",null,"OT, PT, CSD",null,null,null,null,"Umbrella",null,"Advance Therapy Works Inc"]
["Active","Advanced Care Services","Williams","Gerda","ARNP","6151 Miramar Parkway, Suite 310","Miramar","FL",33023,"954-966-6467",null,"Facility Contract","2015-08-11","2025-01-01","2024-07-01","2024-09-01","2024-10-01",null,"Nursing",null,null,null,null,"Not in Umbrella",null,"Advanced Care Services"]
["Active","Advanced Mental Health Clinic Inc "," Ospina","Nancy",null,null,"Miami","FL",33175,null,null,"FIU Contract","2015-01-16","2025-01-01","2024-07-01","2024-09-01","2024-10-01",null,"Nursing",null,null,null,null,"Not in Umbrella",null,"Advanced Mental Health Clinic Inc"]
["Active","Advanced Pediatric Systems","Cohen","Jonathan ","Owner/Director","3066 Jag Road","Green Acres","FL",33467,"561 357-5883",null,"FIU Contract","2004-03-01","2025-01-01","2024-07-01","2024-09-01","2024-10-01",null,"OT",null,null,null,null,"Not in Umbrella",null,"Advanced Pediatric System"]
["Active","Advanced Physical Therapy Of Central Florida","Parady","Leigh Ann","LICENSED PT ASSISTANT","11962 County Rd. 101, Ste 104","The Villages","FL",32162,"352/259-7377","leigh@myadvancedpt.com","FIU Contract","2011-11-01","2025-01-01","2024-07-01","2024-09-01","2024-10-01",null,"PT",null,null,null,null,"Not in Umbrella",null,"Advanced Physical Therapy of Central Florida"]
["Active","Adventist Health System/Sunbelt, Inc  d/b/a Florida Hospital","Stunkard","Debbie","Contracts","HUMAN RESOURCES\nATTN:  University Contracts\n900 Winderley Place, Suite 1500","Maitland","FL",32751,"407.200-2826","DEBRA.STUNKARD@FLHosp.org","Facility Contract","2016-03-24","2018-03-22","2017-09-22","2017-11-22","2017-12-22",null,"OT, PT, RN-BSN",null,"X",null,null,"Umbrella",null,"Florida Hospital"]
["Active","Aegis Therapies (Atlanta, Marietta) (Harbor Chase Of Naples, Naples, Fl) (John Knoxville, Pompano Beach, Fl","West","Stephanie","CONTRACT COORDINATOR","1000 FIANNA WAY","Fort Smith","AR",72919,"877-823-8375","Stephanie.West2@aegistherapies.com","Facility Contract","2009-05-01","2025-01-01","2024-07-01","2024-09-01","2024-10-01",null," OT, PT, CSD",null,null,null,null,"Umbrella",null,"AEGIS "]
["Active","Aegis Therapies, Inc  (Beverly Healthcare Northside)","De Verteuil","Cathy",null,"6801 Lake Worth Road, Ste 113","Lake Worth","FL",33467,null,null,"Faciliity Contract","2001-04-01","2025-01-01","2024-07-01","2024-09-01","2024-10-01",null,"OT",null,null,null,null,"Not in Umbrella",null,"AEGIS Therapies"]
["Active","Aegis Therapies, Inc  (Coral Trace Health Care)/Coral Healthcare","De Verteuil","Cathy",null," 216 Santa Barbara Blvd","Cape Coral","FL",33904,"239 530-8505",null,"Facility Contract","2005-09-01","2025-01-01","2024-07-01","2024-09-01","2024-10-01",null,"OT",null,null,null,null,"Not in Umbrella",null,"AEGIS Therapies"]
["Active","Aegis Therapies, Inc  (Cypress Community Care Center)","De Verteuil","Cathy",null,"7173 Cypress Dr SW","Ft. Myers","FL",33907,"239 530-8505",null,"Facility Contract","2005-09-01","2025-01-01","2024-07-01","2024-09-01","2024-10-01",null,"OT",null,null,null,null,"Not in Umbrella",null,"AEGIS Therapies"]
["Active","Aegis Therapies, Inc  (Englewood Healthcare & Rehab Center)","De Verteuil","Cathy","Contacted Sandra Otera in Contracts Administration Sandra.Otero@tenethealth.com 305/694-3414 for renewal 2/23/15. Rec'd email and phone call that it's too soon to begin renewal.  She said to call her the end of April 2015.  Done 4/27/15 Draft rec'd 4/30/15. Reviewed and forwarded for comments/edits 5/6/15.  To EO 5/6/15 To AE 5/14/15 Returned to facility 5/15/15 with AE changes F/u email with Sandra 6/4/15 Christina Lehne christina.lehne@tenethealth.com   Resent agreement initially sent to Sandra Otera. 6/15/15 ","1111 Drury Lane","Englewood","FL",34224,"239-530-8505",null,"Facility Contract","2005-09-01","2025-01-01","2024-07-01","2024-09-01","2024-10-01",null,"OT",null,null,null,null,"Not in Umbrella",null,"AEGIS Therapies"]
["Active","Aegis Therapies, Inc  (Evans Health Care)","De Verteuil","Cathy",null,"3735 Evans Avenue","Ft Myers","FL",33901,"239 530-8505",null,"Facility Contract","2005-09-01","2025-01-01","2024-07-01","2024-09-01","2024-10-01",null,"OT",null,null,null,null,"Not in Umbrella",null,"AEGIS Therapies"]
["Active","Aegis Therapies, Inc  (Harbor Beach Nursing & Rehab Center)","De Verteuil","Cathy",null,"1615 S. Miami Rd","Ft. Lauderdale","FL",33316,"239 530-8505",null,"Facility Contract","2005-09-01","2025-01-01","2024-07-01","2024-09-01","2024-10-01",null,"OT",null,null,null,null,"Not in Umbrella",null,"AEGIS Therapies"]
["Active","Aegis Therapies, Inc  (Heritage Health Care Center)","De Verteuil","Cathy",null,"1026 Albee Farm Rd","Venice","FL",34292,"239 530-8505",null,"Facility Contract","2005-09-01","2025-01-01","2024-07-01","2024-09-01","2024-10-01",null,"OT",null,null,null,null,"Not in Umbrella",null,"AEGIS Therapies"]
["Active","Aegis Therapies, Inc  (Heritage Healthcare & Rehab Center)","De Verteuil","Cathy",null,"777 Ninth St. North","Naples","FL",33942,"239 530-8505",null,"Facility Contract","2005-09-01","2025-01-01","2024-07-01","2024-09-01","2024-10-01",null,"OT",null,null,null,null,"Not in Umbrella",null,"AEGIS Therapies"]
["Active","Aegis Therapies, Inc  (Hillcrest Nursing & Rehab Center)","De Verteuil","Cathy",null,"4200 Washington St","Hollywood","FL",33021,"239 530-8505",null,"Facility Contract","2005-09-01","2025-01-01","2024-07-01","2024-09-01","2024-10-01",null,"OT",null,null,null,null,"Not in Umbrella",null,"AEGIS Therapies"]
["Active","Aegis Therapies, Inc  ('North Fl Rehab Special Care)","Padgett","Dana ","OTR/L","6700 NW 10 Place","Gainesville","FL",32605,"352-331-3111",null,"Facility Contract","2002-06-01","2025-01-01","2024-07-01","2024-09-01","2024-10-01",null,"OT",null,null,null,null,"Not in Umbrella",null,"AEGIS Therapies"]
["Active","Aegis Therapies, Inc  (Seaview Nursing & Rehab Center)","De Verteuil","Cathy","Contract Administrator","2401 NE 2nd St","Pompano Bch","FL",33062,"239 530-8505",null,"Facility Contract","2005-09-01","2025-01-01",{"$f":"IF(N34<>\"\",DATE(YEAR(N34),MONTH(N34)-6,DAY(N34)),\"\")","v":"2024-07-01"},{"$f":"IF(N34<>\"\",DATE(YEAR(N34),MONTH(N34)-4,DAY(N34)),\"\")","v":"2024-09-01"},{"$f":"IF(N34<>\"\",DATE(YEAR(N34),MONTH(N34)-3,DAY(N34)),\"\")","v":"2024-10-01"},null,"OT",null,null,null,null,"Not in Umbrella",null,"AEGIS Therapies"]
["Active","Aegis Therapies,Inc  ('Beverly Healthcare-Northside #766)","Jones","Joyce","Contract Administrator","5470 Meridian Mark Road","Atlanta","GA",30342,"770-788-7019",null,"Facility Contract","2001-04-01","2025-01-01","2024-07-01","2024-09-01","2024-10-01",null,"OT",null,null,null,null,"Not in Umbrella",null,"AEGIS Therapies"]
["Active","Agape Network","Alicea","Leticia","Dir, Compliance/HR","22790 SW 112th Avenue","Miami","FL",33170,"305-235-2616 Ext 196","ibalicea@hcnetwork.org","Facility Contract","2015-06-12","2025-01-01","2024-07-01","2024-09-01","2024-10-01",null,"Nursing",null,null,null,null,"Not in Umbrella",null,"Agape Network"]
["Active","Alberelli Input","Alberelli","Beatrize","Director","8540 SW 132 Court","Miami","FL",33183,"305 385-5795","beatrizotr@aol.com","FIU Contract","2004-03-01","2025-01-01","2024-07-01","2024-09-01","2024-10-01",null,"OT",null,null,null,null,"Not in Umbrella",null,"Alberelli Input"]
["Active","Alfano Center","Rodriguez Alfano","Alliete","Owner","6840 SW 40th St. Ste 211A","Miami","FL",33155,"305/461-4702","ARA@alfanocenter.com","FIU Contract","2015-12-07","2020-12-10","2020-06-10","2020-08-10","2020-09-10",null,"OT SP",null,null,null,null,"Not in Umbrella",null,"Alfano Center"]
["Active","All Better Pediatrics Group"," Berger ","Renato","MD","5300 W Hillsboro Blvd. Ste 110","Coconut Creek","FL",33073,"954/794-1360",null,"FIU Contract","2014-03-01","2025-01-01","2024-07-01","2024-09-01","2024-10-01",null,"Nursing",null,null,null,null,"Not in Umbrella",null,"All Better Pediatric Group 2014 NUR"]
["Active","All Childrens Hospital","Dellaguardia","Mari","Legal Affairs Coordinator","801 6TH St. South #7700","St. Petersburg","FL","33701","727 767-4400","reyest@allkids.org","Facility Contract","2013-11-01","2016-12-01","2016-06-01","2016-08-01","2016-09-01",null,"PT",null,null,null,null,"Not in Umbrella",null,"All Childrens Hospital"]
["Inactive","All Children's Hospital - OT Cancelled Contract'","Cotman","Sharon P.","Paralegal","801  6th Street South","St. Petersburg","FL"," 33731-8920","727.767-4400","cotmans@allkids.org","Facility Contract","2005-07-01","2009-07-01","2009-01-01","2009-03-01","2009-04-01",null,"OT",null,null,null,null,"Not in Umbrella",null,"All Childrens Hospital"]
["Inactive","All Childrens Hospital Inc","DellaGuardia","Mari","Legal Affairs Coordinator","802 6TH St. South #7700","St. Petersburg","FL",33701,"727/767-8116","mari.dellaguardia@allkids.org","Facility","2009-08-27","2011-08-27","2011-02-27","2011-04-27","2011-05-27",null,"Nursing",null,null,null,null,null,null,"All Childrens Hospital"]
["Active","All Inclusive Therapeutic Services","Handy","Cheryl","CEO","4186 Okeechobee Rd","Ft Pierce","FL",34947,"772/409-4262","aits@allinclusivetherapies.com","FIU Contract","2015-02-15","2025-01-01","2024-07-01","2024-09-01","2024-10-01",null,"OT PT",null,null,null,null,"Umbrella",null,"All Inclusive Theraputic Services"]
["Active","Alliance For Psychological Services"," Sezechowicz","Edward",null,"1570 Madruga Avenue, Suite 309","Coral Gables","FL",33146,"(305) 663-6540",null,"FIU Contract","2000-05-01","2025-01-01","2024-07-01","2024-09-01","2024-10-01",null,"Nursing",null,null,null,null,"Not in Umbrella",null,"Alliance for Psychological Services 2000 NUR"]
["Active","Allied Services Rehab Hospital","Murphy","Barbara","PT, CCCE","475 Morgan Highway","Scraton","PA",18501,null,null,"FIU Contract","2004-07-01","2025-01-01","2024-07-01","2024-09-01","2024-10-01",null,"PT",null,null,null,null,"Not in Umbrella",null,"Allied Services Rehab Hospital 2004"]
["Active","Allied Therapy Associates","Bauer","Kay","President","900 West 49 Street, Ste 332","Hialeah","FL",33012,"305-556-0121",null,"FIU Contract","2001-03-01","2025-01-01","2024-07-01","2024-09-01","2024-10-01",null,"OT",null,null,null,null,"Not in Umbrella",null,"Allied Therapy Associates"]
["Active","All-Star Kids Rehab Inc ","Solis","Ana","Owner","7750 W 26th Ave #3","Hialeah","FL",33016,null,null,"FIU Contract","2011-05-05","2025-01-01","2024-07-01","2024-09-01","2024-10-01",null,"SP",null,null,null,null,null,null,"All-Star Kids Rehab Inc"]
["Active","All-Star Rehab","Solis","Ana","Owner/Director","7750 West 26th Avenue","Hialeah","FL",33016,null,"allstarrehab@juno.com","FIU Contract","2008-02-01","2025-01-01","2024-07-01","2024-09-01","2024-10-01",null,"OT",null,null,null,null,"Not in Umbrella",null,"All-Star Kids Rehab 2008 OT"]
["Active","Alonso & Alonso, M.D., P.A.","Alonso",null,"Owner","719 NW 13th Avenue","Miami","FL",33125,"305-547-2011",null,"Facility","2015-09-08","2025-01-01","2024-07-01","2024-09-01","2024-10-01",null,"Nursing",null,null,null,null,"Not in Umbrella",null,"Alonso & Alonso"]
["Active","Alpha Physical Therapy And Rehabilitation","Sharma","Sunita","Owner","5300 W Atlantic Ave Ste 500","Delray Beach","FL",33484,"561/638-8821","sunita29@yahoo.com","FIU Contract","2012-08-01","2025-01-01","2024-07-01","2024-09-01","2024-10-01",null,"PT",null,null,null,null,"Not in Umbrella",null,"alpha Therapy and Rehabilitation"]
["Active","Alternatives For Children","Bigin","Sharon","PHR","14 Research Way","East Setanket","NY",11733,"631.331-6400 x374",null,"FIU Contract","2007-07-01","2025-01-01","2024-07-01","2024-09-01","2024-10-01",null,"OT",null,null,null,null,"Not in Umbrella",null,"Alternatives for Children 2007 OT"]
["Active","Ambassador Rehab Formerly In-House Rehabilitation Solutions (Umbrella Agreement)","Hall","Robin",null,"800 Concourse Pkwy Southe, Ste 200","Maitlan","FL",32751,"636/326-9541","robin.r.hall@ambassadorrehab.com","Facility Contract","2008-03-01","2025-01-01","2024-07-01","2024-09-01","2024-10-01",null,"Nursing",null,null,null,null,"Not in Umbrella",null,"In-House Rehabilitations Solutions"]
["Active","Amee Cohen & Associates, Inc ","Cohen","Amee",null,"53 Ash Drive","Cooper City","FL",33026,"954.394-5939","ameesunshine@yahoo.com","FIU Contract","2007-04-01","2025-01-01","2024-07-01","2024-09-01","2024-10-01",null,"OT",null,null,null,null,"Not in Umbrella",null,"Amee Cohen and Associates"]
["Active","American Care Inc "," Pupo","Mayrely","Preceptor","11255 SW 211 St.","Miami","FL",33189,"305/254-7576",null,"FIU Contract","2012-05-01","2025-01-01","2024-07-01","2024-09-01","2024-10-01",null,"Nursing",null,null,null,null,"Not in Umbrella",null,"American Care 2012 NUR"]
["Active","American Therapy House","De Oliveira","Eileen","President","10261 Pines Blvd","Pembroke","FL",33026,"954/356-2878","eileen@therapies4kids.com","FIU Contract","2013-10-01","2025-01-01","2024-07-01","2024-09-01","2024-10-01",null,"OT  PT  SP",null,null,null,null,"Umbrella",null,"American Therapy House"]
["Active","Amicus Medical Center"," Perez","Carlos","MD","12177 Pembroke Rd","Pembroke Pines","FL",33025,"954/449-8612",null,"FIU Contract","2014-04-01","2025-01-01","2024-07-01","2024-09-01","2024-10-01",null,"Nursing",null,null,null,null,"Not in Umbrella",null,"Amicus Medical Center"]
["Active","Anchor Care & Rehab  (Signature Healthcare facility)","Ramos","Rafael","Contracts Paralegal","1515 Port Malabar Blvd NE","Palm Bay","FL",32905,"(321) 723-1235",null,null,"2012-03-01","2025-01-01","2024-07-01","2024-09-01","2024-10-01",null,"OT PT SP"]
["Active","Andrea Draizar Phd & Assoc","Draizar","Andrea","Owner","10661 N Kendall Dr, Ste 113","Miami","FL",33176,"305 595-4271",null,"FIU Contract","2003-01-01","2025-01-01","2024-07-01","2024-09-01","2024-10-01",null,"OT",null,null,null,null,"Not in Umbrella"]
["Inactive","ANESCO North Broward","Marino","Fara","Director of Operations","3601 W Commercial Blvd ","Ft. Lauderdale","FL",33309,null,null,"Facility Contract","2003-03-26","2025-01-01","2024-07-01","2024-09-01","2024-10-01",null,"Nursing Anesthesia",null,null,null,null,null,null,"ANESCO North Broward Anesthesiology"]
["Active","Anesthesia Associates Of North Florida"," Doyle","William",null,"6500 W. Newberry Rd.","Gainesville","FL",32605,"(352) 318-1408 ","aanfwd@gmail.com","FIU Contract","2014-09-01","2025-01-01","2024-07-01","2024-09-01","2024-10-01",null,"Nursing",null,null,null,null,"Not in Umbrella",null,"Anesthesiology Associates of North Florida"]
["Active","Angel's Home Care Agency, Inc ","San Juan","Norma","Owner","3600 S. State Road 7, Suite 14","Miramar","FL",33023,"954-966-0320",null,"FIU Facility","2015-09-03","2025-01-01","2024-07-01","2024-09-01","2024-10-01",null,"Nursing",null,null,null,null,"Not in Umbrella",null,"Angel Home Care Agency, LLC"]
["Active","Apex Physical Therapy & Wellness Center","Erstad","Brooke","Director","550 - 13th Ave E","West Fargo","ND",58078,"701/364-2739","brooke@apexptwellness.com","FIU Contract","2014-02-01","2025-01-01","2024-07-01","2024-09-01","2024-10-01",null,"PT",null,null,null,null,"Not in Umbrella",null,"Apex Physical Therapy"]
["Active","Apple Therapy Center Corp","Lopez","Isora ","Director","2955 Coral Way","Coral Gables","FL",33145,"305-444-9259",null,"FIU Contract","2008-09-01","2025-01-01","2024-07-01","2024-09-01","2024-10-01",null,"OT PT CSD",null,null,null,null,"Umbrella"]
["Active","Aquatic Health And Rehabilitation Services Inc ","Shepherd","Terry","PT, MSHA","595 North Courtenay Parkway, Ste 203","Merritt Island","FL",32953,"321-453-8484","tshepherd@aquatichealthand rehab.com","FIU Contract","2008-11-01","2025-01-01","2024-07-01","2024-09-01","2024-10-01",null,"OT",null,null,null,null,"Not in Umbrella"]
["Active","ARC Broward Achievement And Rehabilitation Centers, Inc ","Garrett","Ellen","COORDINATOR OF REHAB SVCS","10250 nw 53RD St.","Sunrise","FL",33351,"954/746-9400 #1241","egarrett@arcbroward.com","FIU Contract","2010-10-01","2025-01-01","2024-07-01","2024-09-01","2024-10-01",null,"OT, PT, CSD",null,null,null,null,"Umbrella"]
["Active","Arc Broward Inc Umbrella","Price","Julie","VP, Program Services","10250 NW 53 St","Sunrise","FL",33351,"954.577-4142","srose@arcbroward.com","FIU Contract","2001-02-01","2025-01-01",{"$f":"IF(N66<>\"\",DATE(YEAR(N66),MONTH(N66)-6,DAY(N66)),\"\")","v":"2024-07-01"},{"$f":"IF(N66<>\"\",DATE(YEAR(N66),MONTH(N66)-4,DAY(N66)),\"\")","v":"2024-09-01"},{"$f":"IF(N66<>\"\",DATE(YEAR(N66),MONTH(N66)-3,DAY(N66)),\"\")","v":"2024-10-01"},null,"OT",null,null,null,null,"Not in Umbrella",null,"ARC of Broward"]
["Active","Arc Broward Rehab (Achievement And Rehab Centers, Inc ) Umbrella","Garrett","Ellen","Coordinator Rehab Servcies","10250 NW 53rd St.","Sunrise","FL",33351,"954/746-9400","egarrett@arcbroward.com","FIU Contract","2010-10-01","2025-01-01","2024-07-01","2024-09-01","2024-10-01",null,"PT",null,null,null,null,"Not in Umbrella",null,"ARC of Broward"]
["Active","Arc Of Palm Beach County Umbrella","Peterson","Jennifer","OT - PT","1210 Austrailian Ave","Riviera Beach","FL",33404,"561-842-3213",null,"FIU Contract","2010-01-10","2025-01-01","2024-07-01","2024-09-01","2024-10-01",null,"PT",null,null,null,null,"Not in Umbrella",null,"ARC of Palm Beach County"]
["Active","Arc Project Thrive","Figueiro","Joanne  ","Therapy Coordinator","756 Palm Drive","Florida City","FL",33034,"305 279-4141"," ","FIU Contract","2010-01-01","2025-01-01","2024-07-01","2024-09-01","2024-10-01",null,"OT",null,null,null,null,"Not in Umbrella",null,"ARC Project Thrive"]
["Active","Archbishop Coleman Carroll Hs","","",null,"10300 SW 167th Avenue","Miami","FL",33196,null,null,"FIU Contract","2009-08-01","2025-01-01","2024-07-01","2024-09-01","2024-10-01",null,"AT",null,null,null,null,"Not in Umbrella",null,"Archbishop Coleman Carroll High School"]
["Active","Arthritis & Osteoporosis Treatment & Research Center Inc ","Munoz","George","MD","20880 WEST DIXIE HWY STE 101","North Miami Beach","FL",33180,"(305) 682-1441 ",null,"FIU Contract","2012-07-01","2025-01-01","2024-07-01","2024-09-01","2024-10-01",null,"AT",null,null,null,null,"Not in Umbrella",null,"Arthritis and Osteoporosis Treament and Research"]
["Active ","ARTS of Gulf Coast Jewish Family & Community Services ","Naranjo","Elena","Program Mgr","201 NE 40th Ct.","Oakland park","FL",33334,"954/630-4181 x310","Elena.Naranjo@gcjfcs.org","FIU contract","2016-02-01","2019-01-31","2018-07-31","2018-10-01","2018-10-31",null,null,null,null,null,null,"OT",null,"ARTS of GCJFCS"]
["Active","Aspen Fitness & Spts Med Inst","Peshek","Christopher","PROGRAM DIRECTOR","1450 Crystal Lake Rd.","Aspen","CO","81621","970/925-8940",null,"FIU Contract","2004-07-01","2025-01-01","2024-07-01","2024-09-01","2024-10-01",null,"PT",null,null,null,null,"Not in Umbrella",null,"Aspen Fitness & Sports Medical Institute"]
["Active","Aspen Rehabilitation","Ana","Weyant","OTR/L, CLT","9900 W. Sample Raod, Suite 102","Coral Springs","FL",33065,"954/341-7875","aspenrehab@bellsouth.net","FIU Contract","2008-09-01","2025-01-01","2024-07-01","2024-09-01","2024-10-01",null,"PT",null,null,null,null,"Not in Umbrella",null,"Aspen Rehabilitation"]
["Active","Atlantic Healthcare Center","Fischer","John","Director of Rehab","3663 15th Ave","Vero Beach","FL",32960,"772 567-2552","atlantichealthcare.rehab@encore-healthcare.com","FIU Contract","2007-01-01","2025-01-01","2024-07-01","2024-09-01","2024-10-01",null,"OT",null,null,null,null,"Not in Umbrella"]
["Active","Atlantic Orthopedic Group Umbrella","Johnson","Terry","OTR/L","1341 Medical Park Drive","Melbourne","FL",32901,"321-768-9914ext.155","johnson8299@cfl.rr.com","FIU Contract","2008-12-01","2025-01-01","2024-07-01","2024-09-01","2024-10-01",null,"OT",null,null,null,null,"Not in Umbrella"]
["Active","Atlantic Orthopedic Group Umbrella","Terry","Johnson","OTR/L","1341 Medical Park Drive, Suite 201","Melbourne","FL",32901,"321-768-9914 ext.155","johnson8299@cfl.rr.com","FIU Contract","2008-12-01","2025-01-01","2024-07-01","2024-09-01","2024-10-01",null,"PT",null,null,null,null,"Not in Umbrella"]
["Active","Atlantic Rehab Center","Caroccio","Joe","Adminsitrator ","16249 biscayne Blvd","North Miami Beach","FL",33160,"3050/405-0400","Joe.caroccio@atlanticrehabcenter.com","FIU Contract","2003-02-01","2025-01-01","2024-07-01","2024-09-01","2024-10-01",null,"PT    AT",null,null,null,null,"Umbrella"]
["Active","Atlantic Sportcare Inc ","His","Jane","Administrator","100210 Overseas Hwy #2","Key Largo","FL",33037,"305/453-1088","janeatlanticsport@bellsouth.net","FIU Contract","2014-03-01","2025-01-01","2024-07-01","2024-09-01","2024-10-01",null,"PT",null,null,null,null,"Not in Umbrella",null,"Atlantic Sportcare Inc"]
["Active","Avante At Orlando, Inc ","Reese","Andrew","Administrator","2000 North Semoran Blvd.","Orlando","FL",32807,"407-671-5400 x 23",null,"FIU Contract","2003-06-01","2025-01-01","2024-07-01","2024-09-01","2024-10-01",null,"OT",null,null,null,null,"Not in Umbrella",null,"Avante at Orlando "]
["Active","Aventura Hospital HCA","Ingram","Alison","Ethics & Compliance","20900 BISCAYNE BOULEVARD","Aventura","FL",33180,"305/682-7128","alison.ingram@hcahealthcare.com","Facility Contract","2014-01-24","2015-12-31","2015-07-01","2015-08-31","2015-10-01",null,"OT, PT, CSD, NUR, DN,  SW, PH, HSA",null,"X",null,null,"Umbrella",null,"Aventura Hospital"]
["Active","B&V Thera Pro Associates","Del Riesgo","Vivian","Owner","4284 SW 161 Place","Miami","FL",33185,"786 208-2814","theraproassoc@netzero.net","FIU Contract","2010-11-27","2025-01-01","2024-07-01","2024-09-01","2024-10-01",null,"OT",null,null,null,null,"Not in Umbrella",null,"B-V Thera Pro Associates 2010 OT"]
["Active","Bacharach Institute For Rehabilitation","Cayanan","Allen","STUDENT COORDINATOR","61 WEST JIMMIE LEEDS RD","Pomona","NJ",8240,"609/652-7000",null,"FIU Contract","2011-02-04","2025-01-01","2024-07-01","2024-09-01","2024-10-01",null,"OT, PT ",null,null,null,null,"Umbrella",null,"Bacharach Institute "]
["Active","Badia Hand To Shoulder Center","Badia","Alejandro","Physician","3650 NW 82nd Ave Ste 103","Doral","FL",33166,"305-227-4263","info@drbadia.com","FIU Contract","2010-11-01","2025-01-01","2024-07-01","2024-09-01","2024-10-01",null,"AT",null,null,null,null,"Not in Umbrella",null,"Badia Hand to Shoulder Center"]
["Active","Bamm Services Group","Cadavid","Margarita  ","Owner","6373 SW 165th Ave.","Miami","FL",33193,"786/586-1045 ","bammservices@yahoo.com ","FIU Contract","2013-05-13","2025-01-01","2024-07-01","2024-09-01","2024-10-01",null,"OT",null,null,null,null,"Not in Umbrella",null,"Bamm Services Group"]
["Active","Banyan Health Systems (Spectrum And Miami Behavioral)","Pesantes","Emy","Research Director","6100 Blue Lagoon Dr Ste 400","Miami","FL",33126,"305/398-6130","Epesantes@banyanhealth.org","FIU Contract","2014-05-01","2025-01-01","2024-07-01","2024-09-01","2024-10-01",null,"AT, OT, PT, CSD, HSA, NUR, PSY, RT, SW","X","X",null,null,"Umbrella",null,"Banyan Health"]
["Inactive","Bapitst Health System San Antonio For One Student Only","Thomas","Lorna","Student Clinical Liaison","7930 Floyd Curl Dr.","San Antonio","TX",78229,"210/297-6742","lethomas@baptisthealthsystem.com","Facility Contract","2013-12-01","2014-12-01","2014-06-01","2014-08-01","2014-09-01",null,"PT",null,null,null,null,"Not in Umbrella",null,"Batpist Health San Antonio"]
["Active","Baptist Health Medical Group (Homestead Follow Up Clinic)","Matias","Barbara","Student Affiliation Manager","8901 Kendall Drive","Homestead ","FL",33143,"786/596-7534","BarbaraMa@baptisthealth.net   ","Facility Contract","2012-10-01","2025-01-01","2024-07-01","2024-09-01","2024-10-01",null,"including but not limited to OT PT CSD NUR RT PH SW DN",null,null,null,null,"Umbrella",null,"Baptist Homestead Clinic"]
["Active","Baptist Health Medical Group (Homestead Follow-Up Clinic)","Matias","Barbara","Student Affiliation Manager","8900 N Kendall","Miami","FL",33176,"786/596-7534",null,"Facility Contract","2012-10-01","2025-01-01","2024-07-01","2024-09-01","2024-10-01",null,"inlcuding but not limited to NUR OT PT CSD SW DN, RT","X",null,null,null,"Umbrella",null,"Baptist Hospitals"]
["Active","Baptist Health System (Includes Doctors Hospital, Mariners Hospital, Homestead Hospital, South Miami Hospital Umbrella","Matias","Barbara","Student Affiliation Manager","8902 Kendall Drive","Miami","FL",33176,"786/596-7534","BarbaraMa@baptisthealth.net   ","Facility contract","2012-05-17","2022-01-01","2021-07-01","2021-09-01","2021-10-01",null,"inlcuding but not limited to NUR OT PT CSD SW DN, RT",null,null,null,null,"Umbrella",null,"Baptist Health System"]
["Active","Baptist Outpatient Services","","","Student Affiliation Manager","6855 Red Rd.","Coral Gables","Fl",33143,null,null,"Facility Contract","2011-06-01","2025-01-01","2024-07-01","2024-09-01","2024-10-01",null,"including but not limited to OT PT CSD NUR RT PH SW DN",null,null,null,null,"Umbrella",null,"Baptist Outpatient Services"]
["Active","Baroma Healthcare","Wagner ","David ","Dir Of Quality & Compliance","760 Ponce de Leon ","Coral Gables","FL",33155,"888/315-4490 x 199","dwagner@baromahc.com","FIU Contract","2013-12-06","2025-01-01","2024-07-01","2024-09-01","2024-10-01",null,"HSA ",null,null,null,null,"Not in Umbrella",null," Baroma Healthcare HSA"]
["Active","Baroma Healthcare","Wagner ","David ","Dir Of Quality & Compliance","760 Ponce de Leon ","Coral Gables","FL",33155,"888/315-4490 x 199","dwagner@baromahc.com","Amendment","2014-09-01","2025-01-01","2024-07-01","2024-09-01","2024-10-01",null,"Nursing",null,null,null,null,"Not in Umbrella",null,"Baroma Health Partners; "]
["Active","Baycare Health Systems, Inc  (Includes Morton Plant Hosp, Morton Plant Rehab Center, Mease Dunedin Hosp, St. Anthony's Hosp, St. Joseph's Hosp, St. Joseph's Women's Hosp, Tampa Children's Hosp, South Florida Baptist Hosp, John Knox Village, Morton Plant North Bay Hosp, Baycare Home Care Inc , Bardmoor, Trinity Surgery Center)","Tate","Crystal","Education Assistant","16255 Bay Vista Drive","Clearwater","FL",33760,"727-519-1300","Crystal.Tate@baycare.org","FIU Contract","2001-06-01","2017-04-01","2016-10-01","2016-12-01","2017-01-01",null,"OT, PT",null,null,null,null,"Umbrella",null,"Baycare Health"]
["Inactive","Bayfront Medical Center NO AGREEMENT can try again in 2015","Buckley","Patti","Mgr, Rehab Therapy","701 - 6th St. South","St. Petersburg","FL",33701,"727/893-6703","Patti.Buckley@BayfrontHealth.org","Facility Contract","2010-08-01","2014-01-01","2013-07-01","2013-09-01","2013-10-01",null,"OT   PT",null,null,null,null,"Umbrella",null,"Bayfront Medical Center"]
["Active","Baylor Saint Lukes Hospital ","Stacks","Lori","Manager, Physical Rehabilitation","6720 Bertur Ave","Houston","TX",77030,"832/355-8702","Lstacks@StLukesHealth.org","Facility","2015-12-01","2018-11-30","jkross","2018-07-30","2018-08-30",null,"OT",null,null,null,null,"Not in Umbrella",null,"Baylor St. Lukes"]
["Active","Baylor University Medical Center","Linda ","Francis","BHCS Law Dept.","4005 Crutcher Street, Ste 300","Dallas","TX",75246,"214-820-7481","lindafr@baylorhealth.edu","Facilty Contract","2009-09-01","2025-01-01",{"$f":"IF(N97<>\"\",DATE(YEAR(N97),MONTH(N97)-6,DAY(N97)),\"\")","v":"2024-07-01"},"2024-09-01","2024-10-01",null,"OT",null,null,null,null,"Not in Umbrella"]
["Active","Baylor University Medical Center","Francis","Linda","BHCS LAW DEPARTMENT","4005 CRUTCHER STREET, SUITE 300","Dallas","TX",75246,"214-820-7481","lindafr@baylorhealth.edu","Facility Contract","2009-09-01","2025-01-01","2024-07-01",{"$f":"IF(N98<>\"\",DATE(YEAR(N98),MONTH(N98)-4,DAY(N98)),\"\")","v":"2024-09-01"},{"$f":"IF(N98<>\"\",DATE(YEAR(N98),MONTH(N98)-3,DAY(N98)),\"\")","v":"2024-10-01"},null,"PT",null,null,null,null,"Not in Umbrella"]
["Active","Bayshore Women's Health Care","Triana","Joseph","MD","3661 S. Miami Avenue, Suite 704","Miami","FL",33133,"305-854-8112",null,"Facility Contract","2015-10-14","2025-01-01","2024-07-01","2024-09-01","2024-10-01",null,"Nursing",null,null,null,null,"Not in Umbrella",null,"Bayshore Women's Health Care"]
["Active","Beachside Physical Therapy","Wolinski","Mike","VP of Admin","3680 N. Wickham Rd.","Melbourne","FL",32935,"321/773-8155","mikew@beachsidetherapy.com","FIU Contract","2012-08-01","2025-01-01","2024-07-01","2024-09-01","2024-10-01",null,"PT",null,null,null,null,"Not in Umbrella",null,"Beachside Physical Therapy"]
["Active","Belen Jesuit Preparatory School","Mitchell","Israel","MS, ATC/L, HEAD ATHLETIC TRAINING","500 SW 127th Avenue","Miami","FL",33134,null,null,"FIU Contract","2005-08-01","2025-01-01","2024-07-01","2024-09-01","2024-10-01",null,"AT",null,null,null,null,"Not in Umbrella"]
["Active","Benchmark Rehab Partners","Gass","Kerri","Clinical Prgms Coordinator","8823 Production lane","Ooltewah","TN",37363,"423/238-8931","studentprograms@bmrp.com","FIU Contract","2011-06-01","2025-01-01","2024-07-01","2024-09-01","2024-10-01",null,"OT  PT",null,null,null,null,"Umbrella",null,"Benchmark Rehab"]
["Inactive","Beth Israel Medical Center","Ramos-Dorrejo","Stephanie","UDS Administrative Coordinator","First Avenue at 16th St.","New York","NY",10003,"212/420-2000",null,"Facility Contract","2012-02-01","2014-07-01","2014-01-01","2014-03-01","2014-04-01",null,"OT, PT",null,null,null,null,"Umbrella",null,"Beth Israel Medical Center"]
["Active","Bethesda Healthcare System","Jones","Gigi","Coord. Instructional Technology","2815 S Secrest Blvd","Boynton Beach","FL",84076,"561/737-7733 X84076","Gigi.Jones@BethesdaHealthcare.com","FIU Contract","2012-08-01","2025-01-01","2024-07-01","2024-09-01","2024-10-01",null,"PT   OT   ",null,null,null,null,"Umbrella",null,"Bethesda Healthcare System"]
["Active","Better Living Medical Center","Oelsner ","Viera",null,"11140 SW 88th St Ste 100","Miami","FL",33176,"305/270-1006",null,"FIU Contract","2014-08-01","2025-01-01","2024-07-01","2024-09-01","2024-10-01",null,"Nursing",null,null,null,null,"Not in Umbrella",null,"Better Living Medical Center"]
["Active","Beyond Psychiatric Service","Alavi","Sima","ARNP","14201 West Sunrise Blvd","Sunrise","FL",33323,null,null,"Facility Contract","2014-12-29","2025-01-01","2024-07-01","2024-09-01","2024-10-01",null,"Nursing",null,null,null,null,"Not in Umbrella",null,"Beyond Psychiatric Service"]
["Active","Bi-County Speech Language Pathology Inc ","","",null,"12301 Taft St. Ste 200","Pembroke Pines","FL",33026,null,null,"FIU Contract","2012-07-01","2025-01-01","2024-07-01","2024-09-01","2024-10-01",null,"OT CSD",null,null,null,null,"Umbrella",null,"Bi-County Speech Language Pathology"]
["Active","Big Fun Therapy & Recreational Services","Hurwin","Gene ","Director","3710 S. Robertson Blvd, #225","Culver City","CA",90232,"310 837-7849","gene@bigfungymnastics.com","FIU Contract","2005-08-01","2025-01-01","2024-07-01","2024-09-01","2024-10-01",null,"OT",null,null,null,null,"Not in Umbrella",null,"Big Fun Therapy"]
["Active","Bio Networks Inc ","Tojeiro","Joaly","President","1441 SW 1st St.","Miami","FL",33135,"305/541-3400",null,"FIU Contract","2010-01-01","2025-01-01","2024-07-01","2024-09-01","2024-10-01",null,"CSD ",null,null,null,null,null,null,"BioNetworks Inc"]
["Active","Biscayne Institute Of Health And Living Inc ","Dicowden","Marie ","Director","2785 N.E. 183 Street Ste 100","Miami","FL",33160,"305-932-8994",null,"FIU Contract","2005-03-01","2025-01-01","2024-07-01","2024-09-01","2024-10-01",null,"OT",null,null,null,null,"Not in Umbrella",null,"Biscayne Institutes of health and Living"]
["Active","Biscayne Rehabilitation Institute, Inc ","Conner","Sally","MS, PT","2785 NE 183 Street","No Mia Bch","FL",33160,null,null,"FIU Contract","2004-05-01","2025-01-01","2024-07-01","2024-09-01","2024-10-01",null,"PT",null,null,null,null,"Not in Umbrella"]
["Active","Bit By Bit Therapy","Pegues","Kathleen ","President","515 NE 12th Ave","Ft. Lauderdale","FL",33301,"954-471-6119","MissSanddollar@aol.com","FIU Contract","2010-12-09","2025-01-01","2024-07-01","2024-09-01","2024-10-01",null,"OT",null,null,null,null,"Not in Umbrella"]
["Inactive","Blake Medical Center HCA","Jones-Wilson","Kari","Director, Rehab","2020 - 59th St. West","Bradenton","FL",34209,"941/798-6222","karinjones@hcahealthcare.com","Facility Contract","2012-03-01","2016-03-01","2015-09-01","2015-11-01","2015-12-01",null,"OT",null,null,null,null,null,null,"Blake Medical Center"]
["Active","Blossoms Developmental Therapy Associates","Burch","Jennifer","Owner","3111 Ponce de Leon Blvd","Coral Gables","FL",33134,"305/444-9807","jburch@blossomdevelopmental.com","FIU Contract & Amendment","2013-09-01","2025-01-01","2024-07-01","2024-09-01","2024-10-01",null,"OT   PT CSD",null,null,null,null,"Umbrella",null,"Blossoms Developmental Therapy Associates"]
["Active","Boca Raton Regional Hospital","Holland","Cynthia","Organizational Devel.Specialist","800 Meadows Rd","Boca Raton","FL",33486,"561/955-5311","Cholland@brrh.com","Facility Contract","2013-11-01","2017-12-01","2017-06-01","2017-08-01","2017-09-01",null,"OT PT NUR HSA",null,null,null,null,"Umbrella",null,"Boca Raton Regional Hospital"]
["Active","Boca Raton Rehabilitation Ctr.","Franco","Victoria","PT","755 Meadows Rd.","Boca Raton","FL","33487","561 391-5200 X 21","victoria.francobaspidas@peoplefirstrehab.com","FIU Contract","1994-10-21","2025-01-01","2024-07-01","2024-09-01","2024-10-01",null,"PT",null,null,null,null,"Not in Umbrella"]
["Active","Bollettieri Sports Medicine","Hogarth","Dave","PT","5500 34 St. West","Bradenton","FL","34210","941 755-0068","bsmcoffice@tampabay.rr.com","FIU Contract","2004-12-01","2025-01-01","2024-07-01","2024-09-01","2024-10-01",null,"PT",null,null,null,null,"Not in Umbrella"]
["Active","Bon Secours-Venice Hospital","Wetzel","Liz","COORDINATOR, PT","540 The Rialto","Venice","FL",34285,"941 485-7711",null,"FIU Contract","2004-08-01","2025-01-01","2024-07-01","2024-09-01","2024-10-01",null,"PT",null,null,null,null,"Not in Umbrella"]
["Active","Bonita Springs Sports & Pt Center, Inc ","Klassen","Sandra L.","MS, PT, AT,C, OWNER","26201 So Tamiami Trail","Bonita Springs","FL",34134,"239 498-0558","captclk@aol.com","FIU Contract","2005-05-01","2025-01-01","2024-07-01","2024-09-01","2024-10-01",null,"PT",null,null,null,null,"Not in Umbrella"]
["Active","Borinquen Health Care Center"," Lopez","Emilio",null,"3601 Federal Highway","Miami","FL",33137,"(305) 576-6611","adesamours@boringuenhealth.org","FIU Contract","2014-02-01","2025-01-01","2024-07-01","2024-09-01","2024-10-01",null,"Nursing",null,null,null,null,"Not in Umbrella",null,"Boringuen Medical Centers"]
["Inactive","Brandon Regional Hospital HCA"," Pitt Blankenship","Nora",null,"119 Oakfield Drive","Brandon","FL",33511,"813-571-5098","nora.blankenship@hcahealthcare.com","Facility Contract","2012-12-01","2015-02-01","2014-08-01","2014-10-01","2014-11-01",null,"Nursing",null,null,null,null,"Not in Umbrella",null,"Brandon Regional"]
["Active","Brayne Concepts Inc","Holder",null,null,"3341 N University Dr","Davie","FL",null,null,null,null,"2013-09-18","2025-01-01","2024-07-01","2024-09-01","2024-10-01",null,"NUR",null,null,null,null,null,null,"Brayne Concepts Inc"]
["Active","Breakthrough Therapy Services","Bloom","Kimberly","OWNER","12545 Orange Drive, Suite 502","Davie","FL",33330,"954-236-9415",null,"FIU Contract","2008-07-01","2025-01-01","2024-07-01","2024-09-01","2024-10-01",null,"OT, PT, CSD",null,null,null,null,"Umbrella",null,"Breakthrough Therapy Services"]
["Active","Bridge Of Hope Of Central Florida","Rodriguez","Janette","Director","1331 Kestin Dr & 2955 Coral Way","Kississimmee & Miami","FL","34744 33145","863/588-6559","jannette@bohcf.com","FIU Contract","2014-03-01","2025-01-01","2024-07-01","2024-09-01","2024-10-01",null,"OT PT SP",null,null,null,null,"Umbrella",null,"Bridge of Hope"]
["Active","Brooks Health System (Umbrella)","Morgan","Amanda","HR Intern","3599 University Blvd S","Jacksonville","FL",32216,"904-345-7361","Amanda.Morgan@Brooksrehab.org","Facility Contract","2004-02-01","2017-09-01","2017-03-01","2017-05-01","2017-06-01",null,"OT, PT, CSD, HSA, NUR  ",null,null,null,null,"Umbrella",null,"Brooks Health System"]
["Inactive","Brookwood Gardens (See Signature Healthcare)","","",null,null,"",null,null,null,null,"",null,null,"","","",null,"OT",null,null,null,null,"Not in Umbrella"]
["Inactive","Brookwood Medical Center","Chalkley","Carolyn","Academic & Accreditation Liaison","2010 Brookwood Medical Center Dr","Birmingham","AL",35209,"205/877-1000","Carolyn.Chalkley@tenethealth.com","Facility Contract","2007-04-01","2008-04-01","2007-10-01","2007-12-01","2008-01-01",null,null,null,null,null,null,null,null,"Brookwood Medical Center"]
["Active","Broward Childrens Center","Mogavero","Jackie","Operations Office","200 SE 19th Ave","Pompano Beach","FL",33060,"954-410-4414","jacqiem@bckids.org","FIU Contract","2011-03-01","2025-01-01","2024-07-01","2024-09-01","2024-10-01",null,"OT, PT, CSD",null,null,null,null,"Umbrella",null,"Broward Childrens Center"]
["Active","Broward County Health Department","Harris","Ciara","Esquire","780 SW 24th St.","Ft. Lauderdale","FL",33315,"954/467-4700 x 5171","Ciara.Harris@flhealth.gov","Facility Contract","2015-10-01","2016-09-30","2016-03-30","2016-05-30","2016-06-30",null,"Clinical",null,null,null,null,"Umbrella",null,"Broward County Health - Clinical"]
["Active","Broward County Health Department","Wasserman","Susan","CONTRACT ADMINISTRATOR","780 South West 24th Street","Fort Lauderdale","FL",33315,"954-467-4941","susan_wasserman@doh.state.fl.us","Facility Contract","2009-04-01","2016-09-30","2016-03-30","2016-05-30","2016-06-30",null,"OT, PT, NUR, CSD, DN,SW, PH, PSY",null,"X","X",null,"Umbrella"]
["Inactive","Broward County Health Department","Harris","Ciara","Esquire","780 SW 24th St.","Ft. Lauderdale","FL",33315,"954/467-4700 x 5171","Ciara.Harris@flhealth.gov","Facility Contract",null,null,"2016-03-30","2016-05-30","2016-06-30",null,"Non-clinical","Umbrella"]
["Active","Broward County Public School","Brunt","Karleen","Administrator","600 S.E. Third Avenue","Ft. Lauderdale","FL",33301,"954-712-1605",null,"FIU Contract","1991-12-01","2025-01-01",{"$f":"IF(N132<>\"\",DATE(YEAR(N132),MONTH(N132)-6,DAY(N132)),\"\")","v":"2024-07-01"},{"$f":"IF(N132<>\"\",DATE(YEAR(N132),MONTH(N132)-4,DAY(N132)),\"\")","v":"2024-09-01"},{"$f":"IF(N132<>\"\",DATE(YEAR(N132),MONTH(N132)-3,DAY(N132)),\"\")","v":"2024-10-01"},null,"OT",null,null,null,null,"Not in Umbrella"]
["Active","Broward County Schools","Brunt","Karleen","EXCEPTIONAL STUDENT EDUCATION","600 SE 3 Ave., 9TH Floor","Ft. Lauderdale","FL","33301",null,null,"FIU Contract","1991-12-01","2025-01-01","2024-07-01","2024-09-01","2024-10-01",null,"PT",null,null,null,null,"Not in Umbrella"]
["Active","Broward Health (See North Broward Health District)","Ortiz","Carlos","CONTRACT COMPLIANCE SPECIALIST","303 SE 17 STREET","Ft. Lauderdale","FL",33316,"954/712-3917","cojr@browardhealth.org","Facility Contract","2014-09-01","2020-03-01","2019-09-01","2019-11-01","2019-12-01",null,"OT, PT, CSD, HSA, NUR, SW, PH, DN, HCMBA, BHIM and MHIM",null,"X",null,"X","Umbrella",null,"Broward Health"]
["Active","Broward Institute Of Orthopedic Specialties","Solano","Alex","DPT","4440 Sheridan St. Ste B","Hollywood","FL",33021,"954/966-0004","zmy112@hotmail.com","FIU Contract","2011-06-01","2025-01-01","2024-07-01","2024-09-01","2024-10-01",null,"PT",null,null,null,null,"Not in Umbrella",null,"Broward Institute of Orthopaedic Specialties"]
["Active","Broward Medical Associates","Stone-Gale","Vicki",null,"180 SW 84th Ave. Ste B","Plantation","FL",33324,"954/424-9300",null,"","2013-04-01","2025-01-01","2024-07-01","2024-09-01","2024-10-01",null,"Nursing",null,null,null,null,"Not in Umbrella"]
["Active","Broward Partnership For The Homeless,Inc ","Cooper","John","Director of Clinical Services","920 NW 7th Ave.","Ft. Lauderdale","FL",33311,"954-779-3990 x112",null,"FIU Contract","2002-01-01","2025-01-01","2024-07-01","2024-09-01","2024-10-01",null,"OT",null,null,null,null,"Not in Umbrella",null,"Broward Partnership for the Homeless 2002 OT"]
["Active","Burger Rehabilitation Systems, Inc ","Singer","Wanda","Clinical Coordinator","1301 E. Bidwell St. #201","Folson","CA",95630,"916-983-5915 x246",null,"FIU Contract","2003-03-01","2025-01-01","2024-07-01","2024-09-01","2024-10-01",null,"OT",null,null,null,null,"Not in Umbrella",null,"Burger Rehabilitation System"]
["Active","Camillus Health Concerns Inc ","Casero","Barbara",null,"336 NW 5th St.","Miami","FL",33128,"305/577-4840",null,"FIU","2012-07-15","2025-01-01","2024-07-01","2024-09-01","2024-10-01",null,"Nursing",null,null,null,null,"Not in Umbrella",null,"Camillus Health Concern"]
["Active","Cape Canaveral Hospita/Holmes Regional Medical/Palm Bay Hospital (See Health First)","Holland","Debbie","Clinical Education Coordinator","3470 N US 1","Melbourne","FL",32935,"321/434-7391","debbie.holland@healthfirst.org","Facility Contract","2010-10-01","2025-01-01","2024-07-01","2024-09-01","2024-10-01",null,"OT, PT, CSD",null,null,null,null,"Umbrella",null,"Cape Canaveral Hospital dba Health First"]
["Active","Cape Coral Hospital","Williams","Kirsten",null,"636 Del Prado Blvd","Cape Coral","FL",33990,"239.574-0317",null,"FIU Contract","1999-03-01","2025-01-01","2024-07-01","2024-09-01","2024-10-01",null,"OT",null,null,null,null,"Not in Umbrella",null,"Cape Coral Hospital"]
["Active","Care Medical Centers","Echevarria","Carmen C. Aguirre","ARNP","12600 Pembroke Road, Suite 208","Miramar","FL",33027,"305-772-8447","carmencelia1120@yahoo.es","FIU Facility","2015-09-02","2025-01-01","2024-07-01","2024-09-01","2024-10-01",null,"Nursing",null,null,null,null,"Not in Umbrella",null,"Care Medical Centers"]
["Active","Care Resource","Curbelo","Karell",null,"3510 Biscayne Blvd","Miami","FL",33137,"305/576-1234",null,"FIU Contract","2014-05-01","2025-01-01","2024-07-01","2024-09-01","2024-10-01",null,"Nursing",null,null,null,null,"Not in Umbrella"]
["Active","CareMax Medical Group, LLC","de Solo","Carlos A.","CEO","833 N. Homestead Blvd","Homestead","FL",33030,"305-245-3247",null,null,"2015-05-28","2025-01-01","2024-07-01","2024-09-01","2024-10-01",null,"Nursing",null,null,null,null,"Not in Umbrella",null,"CareMax Medical Group"]
["Active","Caribbean Kids And Family Therapy Organization","Stephens","Sara ",null,"172 Dr. Theo Hertzel Ave","Petit Valley Trinidad And Tobago",null,null,"868-703-3863","sarajstephens@gmail.com","FIU Contract","2009-11-01","2025-01-01","2024-07-01","2024-09-01","2024-10-01",null,"OT",null,null,null,null,"Not in Umbrella",null,"Caribbean Kids and Family Therapy"]
["Active","Carousel Pediatrics","Loffler","Tanya","Specialty Services Mgr","Promontory Point, 2621 Ridgepoint Dr., Ste 140","Austin","TX",78754,"512/583-9645","tloffler@austinkidz.com","FIU Contract","2012-08-01","2025-01-01","2024-07-01","2024-09-01","2024-10-01",null,"OT",null,null,null,null,"Not in Umbrella",null,"Carousel Pediatrics"]
["Active","Carpe Diem Academy","Torres","Lissa","Director","15924 SW 92nd Ave.","Palmetto Bay","FL",33157,"305-971-1230","lissatorres1@yahoo.com","FIU Contract","2010-01-01","2025-01-01","2024-07-01","2024-09-01","2024-10-01",null,"OT, PT, CSD ",null,null,null,null,"Umbrella"]
["Active","Casa Colina Centers For Rehabilitation","Schultz","Debra","CORPORATE COMPLIANCE","255 East Bonita Ave., PO BOX 601","Pomona","CA",null,"909 596-7733","rehab@casacolina.org","FIU Contract","2004-12-01","2025-01-01","2024-07-01","2024-09-01","2024-10-01",null,"PT",null,null,null,null,"Not in Umbrella"]
["Active","Cascade Healthcare Community Inc  D/B/A St. Charles Medical Center Bend","West","Jean",null,"2250 NE Neff Rd.","Bend","OR","97701","541 382-4321",null,"FIU Contract","2004-06-01","2025-01-01","2024-07-01","2024-09-01","2024-10-01",null,"PT",null,null,null,null,"Not in Umbrella"]
["Active","Catalyst Orthopaedic and Sports PT","Nunn","Jason","Owner","9050 State Rte 108, ","Columbia","MO",21045,"410/884-9080","docjnunn17@gmail.com","FIU Contract","2016-01-11","2021-01-10","2020-07-10","2020-09-10","2020-10-10",null,"PT",null,null,null,null,null,null,"Catalyst Orthopaedic Sports PT"]
["Active","Cecilia Grande, M.D., LLC","Grande","Cecilia","MD","3659 South Miami Avenue, Suite 6006","Miami","FL","33133-4241","305-856-1461",null,"FIU Contract","2015-08-20","2025-01-01","2024-07-01","2024-09-01","2024-10-01",null,"Nursing",null,null,null,null,"Not in Umbrella",null,"Cecilia Grande MD LLC"]
["Active","Cedars Medical Center (Um Umbrella Agreement)","Forts","Joquin",null,"1400 NW 12 Avenue","Miami","FL",33136,"305/689-5594","fjoaquin@med.miami.edu","Facility Contract","2007-08-01","2025-01-01","2024-07-01","2024-09-01","2024-10-01",null,"Nursing",null,null,null,null,"Not in Umbrella"]
["Active","Center For Advanced Therapy","Marinas","Dr. Rossniel","Director","327 West 9th Street","Hialeah","FL",33010,"305-863-2233","rossniels25@yahoo.com","FIU Contract","2009-05-01","2025-01-01","2024-07-01","2024-09-01","2024-10-01",null,"OT",null,null,null,null,"Not in Umbrella"]
["Active","Center For Bilingual Speech & Languages Disorders, Inc ","Guerrero","Jenny","Clinical Coordinator","8600 SW 92 St. Ste 204","Miami","FL",33156,"305-279-2428 x212",null,"FIU Contract","2003-05-01","2025-01-01","2024-07-01","2024-09-01","2024-10-01",null,"OT",null,null,null,null,"Not in Umbrella"]
["Active","Center For Child Development - See St Marys Child Development Center, Inc  For Contract","Hollis","Maureen","CHIEF OPERATING OFFICER","5325 GREENWOOD AVE, Ste 201","Wpb","FL",33407,"561.881-2822","Maureen.Hollis@ctrcd.org","Facility Contract","2010-07-11","2015-10-03","2015-04-03","2015-06-03","2015-07-03",null,"OT, PT",null,null,null,null,"Not in Umbrella"]
["Active","Center For Gynecologic Oncology","Pelegrin","Anna",null,"12741 Miramar Pkwy, Ste 302","Miramar","FL",33027,"954/602-9723",null,"FIU Contract","2014-03-01","2025-01-01","2024-07-01","2024-09-01","2024-10-01",null,"Nursing",null,null,null,null,"Not in Umbrella"]
["Active","Center For Orthopedic & Sports Physical Therapy","Jones","Kevin","CLINIC DIRECTOR","1250 Pine Ridge Rd. Ste 202","Naples","FL",34108,"239-261-3300","jkjones_99@msn.com","FIU Contract","2011-06-01","2025-01-01","2024-07-01","2024-09-01","2024-10-01",null,"PT",null,null,null,null,"Not in Umbrella",null,"Center for Othopedic and Sports Physical Therapy"]
["Active","Center For Pediatric Therapy - Coral Gables","Burt","Marlene",null,"2801 Ponce De Leon, STE 250","Coral Gables","FL","33134",null,null,"FIU Contract","2005-04-01","2025-01-01","2024-07-01","2024-09-01","2024-10-01",null,"PT",null,null,null,null,"Not in Umbrella"]
["Active","Center For Pediatric Therapy, Inc ","Gold","Lois","OT Department","9555 N. Kendall Drive  #102","Miami","FL",33176,"305-596-5458",null,"FIU Contract","2004-07-01","2025-01-01","2024-07-01","2024-09-01","2024-10-01",null,"OT",null,null,null,null,"Not in Umbrella"]
["Active","Central Fl Pediatric Therapy","Gomes","Amy ","RPT","477 Carroll St, PO BOX 120547","Clermont","FL","34712","904 394-0212",null,"FIU Contract","2004-07-01","2025-01-01","2024-07-01","2024-09-01","2024-10-01",null,"PT",null,null,null,null,"Not in Umbrella"]
["Active","Central Florida Health Alliance (Leesburg Regional Medical Center) Umbrella","Lammers","Lynn","Records & Compliance","700 North Palmetto St.","Leesburg","FL",34748,"352/323-4141","llammers@cfhalliance.org","FIU Contract","2014-09-03","2025-01-01","2024-07-01","2024-09-01","2024-10-01",null,"PT",null,null,null,null,"Not in Umbrella"]
["Active","Central Florida Regional Hospital","Proenza","Carol","Staff Development Educator","1401 W. Seminole Boulevard","Sanford","FL",32771,"407-321-4500, ext. 5609","carol.proenza@hcahealthcare.com ","FIU Contract","2008-12-01","2025-01-01","2024-07-01","2024-09-01","2024-10-01",null,"OT, PT, CSD, DN ",null,null,null,null,"Umbrella",null,"Central Florida Regional Hospital 2008"]
["Active","Central Medical Group"," Zegler","Sandi",null,"6610 N University Dr Ste 120","Tarmarac","FL",33321,"954/722-4206","sandimtd@bellsouth.net","FIU Contract","2014-04-01","2025-01-01","2024-07-01","2024-09-01","2024-10-01",null,"Nursing",null,null,null,null,"Not in Umbrella"]
["Active","Century Village Medical Center","Bohan","Christine","ARNP","13550 SW 10th Street, Suite B","Pembroke Pines","FL",33027,"954-433-9501",null,"Facility Contract","2015-09-10","2025-01-01","2024-07-01","2024-09-01","2024-10-01",null,"Nursing",null,null,null,null,"Not in Umbrella",null,"Century Village Medical Center"]
["Active","Cepia Association Costa Rica","Deweer","Laetitia","President","300m oeste del Cruce de Huacas,  detras del Restaurnte Guaymi","Huacas De Santa Cruz,  Guanacaste","Costa Rica",null,83018282,"cepiacostarica@racsa.co.cr","FIU Contract","2012-11-01","2025-01-01","2024-07-01","2024-09-01","2024-10-01",null,"OT",null,null,null,null,"Not in Umbrella",null,"CEPIA Association Costa Rica"]
["Active","Cerebral Palsy Of Middlesex County NJ"," Ross","Allison","Coordinator of Health Svcs","10 Oak Drive","Edison","NJ",8837,"732/549.6187",null,"FIU Contract","2011-01-01","2025-01-01","2024-07-01","2024-09-01","2024-10-01",null,"Nursing",null,null,null,null,"Not in Umbrella",null,"CerebralPalsy Association of Middlesex County"]
["Active","Cerebral Palsy Of Ne Florida","Peters","Holly","Administrator","3311 Beach Boulevard","Jacksonville","FL",32207,"904 396-1462","shaehnel@cpnef.org","FIU Contract","2006-05-01","2025-01-01","2024-07-01","2024-09-01","2024-10-01",null,"OT",null,null,null,null,"Not in Umbrella",null,"Cerebral Palsy of NE Florida"]
["Active","Champion Sports Center","Reinold","Mike","PROGRAM DIRECTOR","1621 11TH Avenue South, STE 205","Birmingham","AL","35205",null,null,"FIU Contract","2004-11-01","2025-01-01","2024-07-01","2024-09-01","2024-10-01",null,"PT",null,null,null,null,"Not in Umbrella"]
["Active","Charles Yanes, M.D. PA","Yanes","Charles","MD","1533 Sunset Drive, Suite 200","Coral Gables","FL",33143,null,null,"FIU Contract","2016-02-29","2021-02-28","2020-08-28","2020-10-28","2020-11-28",null,"Nursing",null,null,null,null,"Not in Umbrella",null,"Charles Yanes, MD., PA"]
["Active","Chester County Hospital","Gose","John","DIRECTOR OF REHABILITATION","915 Old Fern Hill Road, Suite 4","West Chester","PA",19380,"610-738-2480",null,"FIU Contract","2008-02-01","2025-01-01","2024-07-01","2024-09-01","2024-10-01",null,"PT",null,null,null,null,"Not in Umbrella"]
["Active","CHI Community Health Center","Hartley","Brodes","President","10300 SW 216 Street","Miami","FL",33190,"(305) 253-5100",null,"FIU Contract","2016-04-01","2021-03-31","2020-10-01","2020-12-01","2020-12-31",null,"NUR SW",null,null,null,null,"Not in Umbrella",null,"CHI South Florida"]
["Active","Child And Family Consultants Inc ","Werner","Joseph","OTD","1800 Penn St. Ste 12","Melbourne","FL",32901,"321/768-6800","childandfamily@cfl.rr.com","FIU Contract","2011-03-01","2025-01-01","2024-07-01","2024-09-01","2024-10-01",null,"OT, CSD",null,null,null,null,"Umbrella",null,"Child and Family Consultants"]
["Active","Child Therapy Innovations","Maltby","Vanessa","CCC-SLP","6401 SW 87th Ave. Ste 114","Miami","FL",33173,"305/934-2689","childtherapyinnovations@gmail.com","FIU Contract","2016-01-11","2021-01-15","2020-07-15","2020-09-15","2020-10-15",null,"SP",null,null,null,null,null,null,"Child Therapy Innovations"]
["Active","Children First","Ochoa","Jennifer","Dr","2450 SW 137 Ave Ste 221","Miami","FL",33175,"305/228-4731","CFC@childrenfirstcenter.com","FIU Contract","2015-10-15","2025-01-01","2024-07-01","2024-09-01","2024-10-01",null,"SP",null,null,null,null,null,null,"Children First"]
["Active","Children In Motion","Wolinsky","Katherine ","Director","5901 SW 74th St. Ste 407b","South Miami","FL",33143,"305/668-3596","childinmotion@bellsouth.net","FIU Contract","2013-09-01","2025-01-01","2024-07-01","2024-09-01","2024-10-01",null,"OT",null,null,null,null,"Not in Umbrella",null,"Children in Motion"]
["Active","Children's Clinic (The)","Messer","Alberta","Administrator","1718 N Federal Highway","Lake Worth","FL",33460,"unknown",null,"FIU Contract","1997-08-01","2025-01-01","2024-07-01","2024-09-01","2024-10-01",null,"Nursing",null,null,null,null,"Not in Umbrella",null,"Childrens Clinic"]
["Active","Childrens Healthcare Of Atlanta","Bay","Jennifer","Clinical Staff Devel. Coordinator","1600Tullie Circle","Atlanta","GA",30329,"404/785-7640","jennifer.bay@choa.org","Facility Contract","2014-06-01","2017-04-01","2016-10-01","2016-12-01","2017-01-01",null,"All Fields in Nur and HS","X","X","X",null,"Umbrella",null,"Childrens Healthcare of Atlanta"]
["Active ","Childrens Hospital DC","Cady","Rebecca","Exec Director risk Management","111 Michigan Ave NW","Washington","DC",20010,"202/471-4860","Rcady@childrensnational.org","Facility Contract","2015-04-24","2019-06-30","2018-12-30","2019-03-02","2019-03-30",null,"PT",null,null,null,null,"Not in Umbrella",null,"Childrens Hospital DC"]
["Active","Children's Medical Center ","Beloff","Carol","ARNP","4651 Sheridan Street, Suite 270","Hollywood","FL",33021,"954-989-6000",null,"Facility Contract","2015-08-20","2025-01-01","2024-07-01","2024-09-01","2024-10-01",null,"Nursing",null,null,null,null,"Not in Umbrella",null,"Childrens Medical Center"]
["Active ","Childrens Medical Services Se Region","Pruitt","Ellen","Nursing Director","1701 South 23rd St","Fort Pierce","FL",34950,"772/467-6000 x 106","Ellen.Pruitt@flhealth.gov","Facility Contract","2015-09-14","2019-05-31","2018-12-01","2019-01-31","2019-03-03",null,"All Fields in Nur and HS",null,null,null,null,"Umbrella",null,"Childrens Medical Services SE Region"]
["Active","Childrens Physicians","Bideau","Lynda",null,"MD and President","Palm Beach Gardens","FL",33410,"561/626-4000",null,"FIU Contract","2011-06-01","2025-01-01","2024-07-01","2024-09-01","2024-10-01",null,"Nursing",null,null,null,null,"Not in Umbrella",null,"Childrens Physicians"]
["Active","Childrens Rehab Network North & South","Brannon","Kellie","Director of Therapy  ","2727 NW 167th St. #C","Miami Gardens","FL",33056,"305/665-0886","kellieb@crcmiami.com","FIU Contract","2013-01-01","2025-01-01","2024-07-01","2024-09-01","2024-10-01",null,"OT  PT  SP",null,null,null,null,"Umbrella",null,"Childrens Rehab Network"]
["Active","Children's Therapy Center","Lopez","Javier","Owner","5901 SW 74 St, Ste 310","South Miami","FL",33143,"305 665-3180",null,"FIU Contract","2005-04-01","2025-01-01","2024-07-01","2024-09-01","2024-10-01",null,"OT",null,null,null,null,"Not in Umbrella",null,"Childrens Therapy Center"]
["Active","Children's Therapy Services","Pollack","Cindy","ADMINISTRATOR","10371 West Sample Road","Coral Springs","FL",33315,null,null,"FIU Contract","2004-05-01","2025-01-01","2024-07-01","2024-09-01","2024-10-01",null,"PT",null,null,null,null,"Not in Umbrella"]
["Active","Choice Pediatric Therapy Center","Patel","Jyoti","OTR/L","2751 Executive Park Drive","Weston","FL",33331,"954-683-6896","jyoti0802@yahoo.com","FIU Contract","2008-09-01","2025-01-01","2024-07-01","2024-09-01","2024-10-01",null,"OT",null,null,null,null,"Not in Umbrella"]
["Active","Chrysalis Health","Melendez","Audrey","HR Assistant","1868 NE 164th Street","North Miami Beach","FL",33162,"305-892-4600","amelendez@chrysalishealth.com","FIU Contract","2015-06-18","2025-01-01","2024-07-01","2024-09-01","2024-10-01",null,"Nursing",null,null,null,null,"Not in Umbrella",null,"Chrysalis Health"]
["Active","Cincinnati Occupational Therapy Institute","Fleming","Eletta ","Education Coordinator","4440 Carver Woods Dr.","Cincinnati","OH",null,null,null,"FIU Contract","2012-03-01","2025-01-01","2024-07-01","2024-09-01","2024-10-01",null,"OT",null,null,null,null,"Not in Umbrella",null,"Cincinnati Occupational Therapy Institute"]
["Active","Citrus Health Network","Bezos","Elizabeth","Administrator, Educ & Training","4175 West 20th Avenue","Hialeah","FL",33012,"305-558-0151 ext 3210","anad@citrushealth.com","Facility Contract","2009-12-01","2025-01-01","2024-07-01","2024-09-01","2024-10-01",null,"OT, NUR, SW, PSY, HSA DN",null,"X","X",null,"Umbrella",null,"Citrus Health Network"]
["Active","Claude B. Romulus, M.D, MPH., P.A.","Romulus","Claude B.","M.D.","6320 -A Miramar Parkway","Miramar","FL",33023,"954-534-9981",null,"FIU Contract","2015-09-01","2025-01-01","2024-07-01","2024-09-01","2024-10-01",null,"Nursing",null,null,null,null,"Not in Umbrella",null,"Claude B. Romulus, M.D., MPH., P.A."]
["Active","Clear Steps Recovery","Levy ","Lawrence","MD","4889 Lake Worth Rd Ste 109","Greenacres","FL",33463,"561/206-4286",null,"FIU Contract","2014-08-01","2025-01-01","2024-07-01","2024-09-01","2024-10-01",null,"Nursing",null,null,null,null,"Not in Umbrella",null,"Clear Steps Recovery"]
["Active","Cleveland Clinic","Gonzalez-Kanfer","Marta","Student Affiliations Coordinator","3100 Weston Rd.","Weston","FL",33331,"954/689-5384","GONZALM4@ccf.org","Facility Contract","2011-11-01","2017-05-01","2016-11-01","2017-01-01","2017-02-01",null,"PT",null,null,null,null,"Not in Umbrella",null,"Cleveland Clinic Florida "]
["Inactive","Cleveland Clinic BHSA","Gonzalez-Kanfer","Marta","Student Affiliations Coordinator","3100 Weston Rd.","Weston","FL",33331,"954/689-5384","GONZALM4@ccf.org","no contract","2015-04-13","2025-01-01","2024-07-01","2024-09-01","2024-10-01",null,"HSA",null,null,null,null,"Not in Umbrella",null,"CCF HSA 2015"]
["Active","Cleveland Clinic Florida","Gonzlez-Kanfer","Marta","Student Affiliations Coordinator","3100 Weston Road","Weston","FL",33331,"954-689-5384","gonzalm4@ccf.org","Facility Contract","2007-11-01","2017-10-01","2017-04-01","2017-06-01","2017-07-01",null,"Nursing",null,null,null,null,"Not in Umbrella",null,"Cleveland Clinic Florida"]
["Active","Clinica Las Mercedes","Raad","Jorge","Owner","1479 NW 27th Ave","Miami","FL",33125,"305/633-3776",null,"FIU Contract","2014-08-01","2025-01-01","2024-07-01","2024-09-01","2024-10-01",null,"Nursing",null,null,null,null,"Not in Umbrella",null,"Clinica Las Mercedes"]
["Active","Clinical Care, Inc ","Sousa","Angel Garcia","ARNP","12700 West Dixie Hwy","Miami","FL",33161,"305-777-3554",null,"Facility Conrtact","2015-09-23","2025-01-01","2024-07-01","2024-09-01","2024-10-01",null,"Nursing",null,null,null,null,"Not in Umbrella",null,"Clinical Care, Inc "]
["Active","Clinicas Medicas Las Americas","President","",null,"8000 Biscayne Blvd Ste 101","Miami","FL",33138,"305/759 4778",null,"FIU Contract","2011-01-01","2025-01-01",{"$f":"IF(N196<>\"\",DATE(YEAR(N196),MONTH(N196)-6,DAY(N196)),\"\")","v":"2024-07-01"},{"$f":"IF(N196<>\"\",DATE(YEAR(N196),MONTH(N196)-4,DAY(N196)),\"\")","v":"2024-09-01"},{"$f":"IF(N196<>\"\",DATE(YEAR(N196),MONTH(N196)-3,DAY(N196)),\"\")","v":"2024-10-01"},null,"Nursing",null,null,null,null,"Not in Umbrella",null,"Clinicas Medicas Las Americas"]
["Inactive","Columbia Hospital (Name Changed To West Palm Hospital 7/2011) HCA","Eberhardt","Scott","Education Coordinator","2201 - 45th St.","West Palm Beach","FL",33407,"561/863-3940","Scott.Eberhardt@hcahealthcare.com","Facility Contract","2000-01-01","2015-02-01","2014-08-01","2014-10-01","2014-11-01",null,"OT, PT, SW, HSA DN, CSD, RT","X","X",null,null,"Umbrella",null,"West Palm Hospital"]
["Active","Comfort Health Center","Rodriquez","Joel",null,"5190 NW 167th St. Ste 109","Miami","FL",33014,"305/384-6450",null,"FIU Contract","2012-05-01","2025-01-01","2024-07-01","2024-09-01","2024-10-01",null,"Nursing",null,null,null,null,"Not in Umbrella",null,"Comfort Health Center"]
["Active","Community Habilitation Center","Laver","Natalia","Executive Director","11450 SW 79th St.","Miami","FL",33173,"305/279-7999","natalia@chcmiami.org","FIU Contract","2012-09-01","2025-01-01","2024-07-01","2024-09-01","2024-10-01",null,"OT",null,null,null,null,"Not in Umbrella",null,"Community Habitation Center"]
["Active","Compass Health Systems","Braun","Kristin",null,"1065 NE 125th St.","Miami","FL",33161,null,null,"FIU Contract","2014-06-01","2025-01-01","2024-07-01","2024-09-01","2024-10-01",null,"NUR OT",null,null,null,null,"Umbrella",null,"Compass Health Systems"]
["Active","Competent Group Services","Preciado","Alyanaid","Office Mgr","8370 West Flagler Street, Suite 240","Miami","FL",33144,null,null,"FIU Contract","2015-06-29","2025-01-01","2024-07-01","2024-09-01","2024-10-01",null,"Nursing",null,null,null,null,"Not in Umbrella"]
["Active","Complejo Hospitalario San Luis","Porras","Jorge",null,"Carretera de Burgos s/n 34004","Palencia","Spain",null,null,"jporras@sanLuis.org","FIU Contract","2013-10-01","2025-01-01","2024-07-01","2024-09-01","2024-10-01",null,"OT",null,null,null,null,"Not in Umbrella",null,"Complejo Hospitalario San Luis"]
["Active","Concentra Medical Centers","Rhine","Michael","DPT, OCS","National CCCE, 2141 Pennsylvania Ave","York","PA",17404,"443-831-9251","michael_rhine@concentra.com","Facilyt Contract","2009-04-01","2025-01-01","2024-07-01","2024-09-01","2024-10-01",null,"OT",null,null,null,null,"Not in Umbrella",null,"Concentra Medical Centers"]
["Active","Connection Therapy for Kids","Williams","Courtney","Owner","2833 Executive Park Dr. Ste 300","Weston","FL",33331,"954/353-8777","info@connections-therapy.com","FIU Contract","2015-04-06","2025-01-01","2024-07-01","2024-09-01","2024-10-01",null,"SP",null,null,null,null,null,null,"Connections Therapy for Kids "]
["Active","Cora Health Services Inc Umbrella","Roush","Brad","GENERAL COUNSEL","1110 Shawnee Road, Box 150","Lima","OH",45802,"419 221-3004",null,"FIU Contract","2008-03-01","2025-01-01","2024-07-01","2024-09-01","2024-10-01",null,"PT OT",null,null,null,null,"Not in Umbrella",null,"Cora Health Services Inc"]
["Active","Cora Health Services Umbrella","Bailey","Tina ","Hand Therapy Program Director","5575 S Semoran Blvd.","Orlando","FL",32822,"407/281-0228","tbailey@corahealth.com","FIU Contract","2008-03-01","2025-01-01","2024-07-01","2024-09-01","2024-10-01",null,"OT",null,null,null,null,"Not in Umbrella"]
["Active","Cora Rehab","Crusoe","Vikki",null,"1500 Douglas Road, Ste 210","Coral Gables","FL",33134,"954-435-5300",null,"FIU Contract","2001-04-01","2025-01-01","2024-07-01","2024-09-01","2024-10-01",null,"OT",null,null,null,null,"Not in Umbrella"]
["Active","Coral Gables Hospital","Carlsen","Maria","ADMINISTRATIVE ASSISTANT","3100 Douglas Road","Coral Gables","FL",33134,"305-441-6801","maria.carlsen@tenethealth.com","Facility Contract","2014-10-01","2019-10-01","2019-04-01","2019-06-01","2019-07-01",null,"OT, PT, DN, NUR",null,"X",null,null,"Umbrella",null,"Coral Gables Hospital"]
["Active","Coral Reef Medical Group","Blanco","Antonio","Medical Director","30334 Old Dixie Hwy, 11440 N Kendall #208, Miami 33176, 7775 SW 87th Ave #100, Miami 33173","Homestead, & Miami","FL",null,"305/661-0181",null,"","2012-11-01","2025-01-01","2024-07-01","2024-09-01","2024-10-01",null,"Nursing",null,null,null,null,"Not in Umbrella",null,"Coral Reef Medical Group"]
["Active","Coral Rock Academy/Gersh Educational Center","Roth Edd","Steven","Director of Development","11155 SW 112th Avenue","Miami","FL ",33176,"786-972-5998","sroth@gershacademy.org","FIU Contract","2009-01-01","2025-01-01","2024-07-01","2024-09-01","2024-10-01",null,"OT",null,null,null,null,"Not in Umbrella"]
["Inactive","Coral Springs Medical Center( see Broward Health)","","",null,"3000 Coral Hills Drive","Coral Springs","FL",33065,null,null,"Facility Contract",null,"2020-04-05","2019-10-05","2019-12-05","2020-01-05",null,"OT",null,null,null,null,"Not in Umbrella"]
["Active","Coral Square Pediatrics","Deville","Eli ",null,"700 Riverside Drive","Coral Spring","FL",33065,"(954) 753-7870",null,"FIU Contract","2001-05-01","2025-01-01","2024-07-01","2024-09-01","2024-10-01",null,"Nursing",null,null,null,null,"Not in Umbrella"]
["Active","Cornerstone Therapies","Welch","Nina","Co-Director","18700 Beach Boulevard #120","Huntington Beach","CA",92648,null,"cornerstonetherapies@horizon.net","FIU Contract","2008-10-01","2025-01-01","2024-07-01","2024-09-01","2024-10-01",null,"OT",null,null,null,null,"Not in Umbrella"]
["Active","Correct Care/GeoCare LLC South Florida State Hospital","Pyngolil","Mariamma","CNO","800 East Cypress Drive","Pembroke Pines","FL",33025,"954/392-3060","mpyngolil@geocareInc com","Facility Contract","2013-09-27","2016-12-31","2016-07-01","2016-08-31","2016-10-01",null,"OT PT Nurisng HSA"]
["Active","Courtyard Gardens Rehabilitation Center","Coombs","Kelli","Director of Rehab","17781 Thelma Ave","Jupiter","FL",33458,"561-746-2998","REHAB@courtyardgardensrehab.com","FIU Contract","2010-07-01","2025-01-01","2024-07-01","2024-09-01","2024-10-01",null,"OT, PT",null,null,null,null,"Umbrella",null,"Courtyard Gardens Rehabilitation Center"]
["Active","Crane Rehab Center","Crane","Mo","Owner","101 River Rd. Ste 112","Jefferson ","LA",70121,"504/828-7696","mcrane@cranerehab.com","FIU Contract","2014-11-01","2025-01-01","2024-07-01","2024-09-01","2024-10-01",null,"PT",null,null,null,null,"Not in Umbrella",null,"Crane Rehab"]
["Active","Cranial Technologies, Inc ","Mcneal","Nathaly","Clinical Educator","9035 Sunset Drive, #101","Miami","FL",33173,"305 596-2744",null,"FIU Contract","2005-03-01","2025-01-01","2024-07-01","2024-09-01","2024-10-01",null,"OT",null,null,null,null,"Not in Umbrella"]
["Active","Creative Children Therapy","Bravo","Natacha","Director of OT","12608 SW 88 Street","Miami","FL",33186,"305 412-4177",null,"FIU Contract","2006-01-01","2025-01-01","2024-07-01","2024-09-01","2024-10-01",null,"OT",null,null,null,null,"Not in Umbrella",null,"Creative Children Therapy"]
["Active","Creative Children Therapy","Orfila","Maria",null,"12608 SW 88 ST","Miami","FL","33186","305 412-4177","Lmanzaon@creative-children.org","FIU Contract","2005-02-01","2025-01-01","2024-07-01","2024-09-01","2024-10-01",null,"PT",null,null,null,null,"Not in Umbrella"]
["Active","Crystal Ac ademy Primary School","Jcutler","Jodi","Program Director","110 Phoenetia Ave","Coral Gables","FL",33134,"305/567-5881","cutler-jodi@thecrystalacademy.net","FIU","2012-05-22","2025-01-01","2024-07-01","2024-09-01","2024-10-01",null,"SP",null,null,null,null,null,null,"Crystal Academy"]
["Active","CSI Pediatric Rehabilitation","Acosta","Sharon","OT","150 Avenue  BSE","Winter Haven","FL",33880,"941/294-9826",null,"FIU Contract","2004-07-01","2025-01-01","2024-07-01","2024-09-01","2024-10-01",null,"OT",null,null,null,null,"Not in Umbrella",null,"CSI Pediatric Rehabilitation"]
["Active","D & D Rehab Center","Cater","Sylvianne","Director of Rehab","3412 West 84th St. Unit 102","Hialeah","FL",33018,"305/827-7344","sylvi.llovet@yahoo.com","FIU Contract","2011-09-01","2025-01-01","2024-07-01","2024-09-01","2024-10-01",null,"OT, PT, CSD",null,null,null,null,"Umbrella",null,"D and D Rehab Center"]
["Active","DACCO ( Drug Abuse Comprehensive Coordinating Office)","Dr. Fields",null,"Medical Director","4422 E. Columbus Drive","Tampa","FL",33605,"910-431-4614","jasonf@dacco.org","Facility Contract","2015-09-08","2025-01-01","2024-07-01","2024-09-01","2024-10-01",null,"Nursinfg",null,null,null,null,"Not in Umbrella",null,"Drug Abuse Comprehensive Coordinating Office (DACCO)"]
["Active","Dade Therapy Inc","Sardinas","Laura","OTR/L","12595 SW 137th Ave Ste 303","Miami","FL",33186,"786/219-0151","dadetherapy@gmail.com","FIU Contract","2013-02-01","2025-01-01","2024-07-01","2024-09-01","2024-10-01",null,"OT, SP",null,null,null,null,"Not in Umbrella",null,"Dade Therapy Inc"]
["Inactive","Dan Marino Center (See Nicklaus Miami  Umbrella Agreement)","","",null,null,"",null,null,null,null,"Facility Contract","2012-10-01","2016-05-01","2015-11-01","2016-01-01","2016-02-01",null,"All FIU Colleges",null,null,null,null,"Not in Umbrella",null,"Miami Childrens"]
["Active","Dangond, Alvaro J., M.D., P.A. - Office"," Vazquez","Laura","MD","8501 SW 124th Avenue, Suite 208","Miami","FL",33183,null,null,"Facility Contract","2015-03-28","2025-01-01","2024-07-01","2024-09-01","2024-10-01",null,"Nursing",null,null,null,null,"Not in Umbrella"]
["Active","Daniel D. Cantor Senior Center","Weisberg","Gail","Executive Director","5000 Nob Hill Rd. ","Sunrise","FL",33351,"854/742-2299","gail@cantorcenter.com","FIU Contract","2011-02-01","2025-01-01","2024-07-01","2024-09-01","2024-10-01",null,"OT",null,null,null,null,"Not in Umbrella",null,"Daniel D Cantor Senior Center"]
["Active","Daniel Memorial, Inc ","Standod","Dough","Administrator","4203 Southpoint Blvd","Jacksonville","FL",32216,"904 296-1055","cprescott@danielkids.org","FIU Contract","2006-03-01","2025-01-01","2024-07-01","2024-09-01","2024-10-01",null,"OT",null,null,null,null,"Not in Umbrella",null,"Daniel Memorial"]
["Active","Daughters Of Charity/Seton Medical Center (Multiple Locations)","Duncan, Cla","Nancy","Legal Assistant","1201 W 38 ST","Austin","TX",78705,"512.324-5796","mnduncan@seton.org","Facility Contract","2010-04-01","2025-01-01","2024-07-01","2024-09-01","2024-10-01",null,"PT",null,null,null,null,"Not in Umbrella",null,"Daughters of Charity"]
["Active","Davina Medical Care P.A.","Lopez-Luciano","Luisa ","MD","925 NE 30th Terrace #316","Homestead","FL",33030,"305/245-8787",null,"FIU Contract","2014-06-01","2025-01-01","2024-07-01","2024-09-01","2024-10-01",null,"Nursing",null,null,null,null,"Not in Umbrella"]
["Active","Delgado Medical Center","Baker","Ivette",null,"1923 SW 8 Street","Miami","FL",33135,"(305) 541-6828",null,"FIU Contract","2000-09-01","2025-01-01","2024-07-01","2024-09-01","2024-10-01",null,"Nursing",null,null,null,null,"Not in Umbrella"]
["Active","Dennis A. Cortes - Office","Cortes","Dennis","MD","12600 Pembroke Road, Suite 206","Miramar","FL",33027,"954/435-6211","mydoctor206@yahoo.com","FIU Contract","2016-03-29","2021-03-28",{"$f":"IF(N232<>\"\",DATE(YEAR(N232),MONTH(N232)-6,DAY(N232)),\"\")","v":"2020-09-28"},{"$f":"IF(N232<>\"\",DATE(YEAR(N232),MONTH(N232)-4,DAY(N232)),\"\")","v":"2020-11-28"},{"$f":"IF(N232<>\"\",DATE(YEAR(N232),MONTH(N232)-3,DAY(N232)),\"\")","v":"2020-12-28"},null,"Nursing",null,null,null,null,"Not in Umbrella",null,"Dennis A. Cortes , M.D."]
["Active","Department Of Health, Physical Education Recreation","Cleary, Phd","Michelle","ATHLETIC TRAINING COORDINATOR","Athletic Training Room, Golden Panther Arena","Miami","FL ",33199,null,null,"FIU Contract","2005-08-01","2025-01-01","2024-07-01","2024-09-01","2024-10-01",null,"AT",null,null,null,null,"Not in Umbrella"]
["Active","Desarrollo Integral Familiar","Montero De Hurtado","Maria Del Carmen","Presienta DIF Estatal Campeche","Calle 10#584, Centro Historico, Ciudade de Campeche, Campeche","Campeche, Mexico",null,24000,"01152981-8113384, 01152981-8113673","presidenciacampeche@hotmail.com","FIU Contract","2009-01-01","2025-01-01","2024-07-01","2024-09-01","2024-10-01",null,"OT",null,null,null,null,"Not in Umbrella",null,"Desarrollo Integral Familiar"]
["Active","DeSoto memorial Hospital","Johnson","John","Director of OT","1311 E Oak Street","Arcadia","FL",34266,"954/494-5691",null,"Contract","1999-01-28","2025-01-01","2024-07-01","2024-09-01","2024-10-01",null,"OT",null,null,null,null,null,null,"DeSoto Memorial"]
["Active","Desoto Memorial Hospital","Johnson","John","Director of OT","1311 E Oak Street","Arcadia","FL",34266,"941 494-5691",null,"FIU Contract","1999-01-01","2025-01-01","2024-07-01","2024-09-01","2024-10-01",null,"OT",null,null,null,null,"Not in Umbrella"]
["Active","Developmental Therapy Associates","Gozzo","Linda","OTR/L","3345 Burns Road, Ste #301","Palm Beach Gardens","FL",33410,"561-691-4088",null,"FIU Contract","2002-08-01","2025-01-01","2024-07-01","2024-09-01","2024-10-01",null,"OT",null,null,null,null,"Not in Umbrella",null,"Developmental Rehab Center"]
["Active","Dewitt Nursing Rehab Center","Yagudayez","Leon","OT Director","211 East 79th Street","New York","NY",10021,"212-879-1600x1309",null,"FIU Contract","2004-04-01","2025-01-01","2024-07-01","2024-09-01","2024-10-01",null,"OT",null,null,null,null,"Not in Umbrella",null,"DeWitt Nursing Rehab Center"]
["Active","Diabetes & Thyroid Care Center Of South Florida","Jain","Mudit","MD","300 NW 70th Ave, Ste 105","Plantation","FL",33317,"954-585-6292","doesn't use email ","FIU Contract","2011-01-01","2025-01-01","2024-07-01","2024-09-01","2024-10-01",null,"Nursing",null,null,null,null,"Not in Umbrella",null,"Diabetes and Thyroid Care Center of South Florida"]
["Active","Diamond Community Health Care, Inc","Parker","Brenda",null,"20338 NW 2nd Ave","Miami","FL",33169,"(305) 655-3020",null,"FIU Contract","1999-08-01","2025-01-01","2024-07-01","2024-09-01","2024-10-01",null,"Nursing",null,null,null,null,"Not in Umbrella"]
["Active","Dimension Achievement & Therapy","Cortez","Kimberly","MSPT","20700 W. Dixie Highway Ste 102","North Miami Beach","FL",33180,"305-933-5887","dimensions@bellsouth.net","FIU Contract","2008-10-01","2025-01-01","2024-07-01","2024-09-01","2024-10-01",null,"OT PT CSD",null,null,null,null,"Umbrella"]
["Active","Dimensions Therapy Center","Herskowitz","Valerie","Director  ","12545 Orange Drive, Ste 502","Davie","FL",33330,"954 236-9415",null,"FIU Contract","2006-04-01","2025-01-01","2024-07-01","2024-09-01","2024-10-01",null,"OT",null,null,null,null,"Not in Umbrella",null,"Dimensions Therapy Center"]
["Active","DNA Kids Therapy","Cirrone","Philip","Bus Dev Mgr","14180 Metropolis Ave Ste 2","Ft. Myers","FL",33912,"239/223-2751","Philip@Dnakidstherapy.com","FIU Contract","2014-06-01","2025-01-01","2024-07-01","2024-09-01","2024-10-01",null,"OT",null,null,null,null,"Not in Umbrella",null,"DNA Kids Therapy"]
["Active","Doctors Hospital Bahamas","Erica","Rolle","Rehab Services Coordinator","#1 Collins Ave & Shirley St. P.O. Box N 3018","Nassau Bahmas",null,null,"242/302-4644","erolle@doctorshosp.com","FIU Contract","2010-04-01","2025-01-01","2024-07-01","2024-09-01","2024-10-01",null,"OT   PT",null,null,null,null,"Umbrella"]
["Inactive","Doctors Hospital Of Sarasota HCA","Crafton","Andrea ","Exec Asst to CEO","5731 Bee Ridge Rd.","Sarasota","FL",34233,"941/342-1167","Andrea.Crafton@hcahealthcare.com","Facility Contract","2012-03-01","2014-11-01","2014-05-01","2014-07-01","2014-08-01",null,"OT",null,null,null,null,"Not in Umbrella"]
["Active","Doctors Medical Center","Laguen","Fermin",null,"1240 NW 119th St.","Miami","FL",33167,"305/685-5688 x 1135",null,"","2012-11-01","2025-01-01","2024-07-01","2024-09-01","2024-10-01",null,"Nursing",null,null,null,null,"Not in Umbrella"]
["Active","Dolphin Human Therapy","Sandelin","Diane","OTR/L","13615 S. Dixie Hwy #523","Miami","FL",33176,"305-451-9696","d.sandelin@dolphinhumantherapy.com","FIU Contract","1999-08-01","2025-01-01","2024-07-01","2024-09-01","2024-10-01",null,"OT",null,null,null,null,"Not in Umbrella"]
["Active","Donner Phsyical Therapy & Sport Rehab","Donner","Matt","Owner, MPT, CSCS","1021 South University Dr.","Plantation","FL",33324,"954-835-5619","donnerpt@bellsouth.net","FIU Contract","2010-11-01","2025-01-01","2024-07-01","2024-09-01","2024-10-01",null,"PT",null,null,null,null,"Not in Umbrella",null,"Donner Physical Therapy"]
["Active","Doral Academy Preparatory School","Gonzalez","Daniel","Athletic Director","11100 NW 27th St.","Doral","FL",33172,null,null,"FIU Contract","2014-08-01","2025-01-01","2024-07-01","2024-09-01","2024-10-01",null,"AT",null,null,null,null,"Not in Umbrella",null,"Doral Academy Prep School"]
["Active","Douglas Gardens","Yanes","Janett","Day Treatment Program Manager","701 Lincoln Road, 2nd Floor","Miami Beach","FL",33139,"786 439-1129",null,"FIU Contract","2005-11-01","2025-01-01","2024-07-01","2024-09-01","2024-10-01",null,"OT",null,null,null,null,"Not in Umbrella",null,"Douglas Gardens"]
["Active","Dove Medical Centers Llc","Gaston","Pierre","MD","  2901 West  Oakland Park Blvd","Oakland Park","FL",33311,"954/510-3623",null,"FIU Contract","2014-07-01","2025-01-01","2024-07-01","2024-09-01","2024-10-01",null,"Nursing",null,null,null,null,"Not in Umbrella",null,"Dove Medical Centers"]
["Active","Dr Claudius Galen Therapy Center Inc","Medina","Barbara","Owner","489 East Hialeah Dr. #10","Hialeah","FL",33010,"786/953-6302","drclaudiusgalen@yahoo.com","FIU Contract","2012-05-01","2025-01-01","2024-07-01","2024-09-01","2024-10-01",null,"OT, PT, CSD",null,null,null,null,"Umbrella",null,"Dr Claudius Galen Therapy Center"]
["Active","Dr. Joan Lyn Family Medicine, PA","Lyn ","Joan","DO","17 NW 168th Street","North Miami","FL",33169,"786/955-6089",null,"Facility Contract","2016-01-26","2021-01-25","2020-07-25","2020-09-25","2020-10-25",null,"Nursing",null,null,null,null,null,null,"Dr. Joan Lyn Family Medicine, PA"]
["Active","Drs Ellis Rojas Ross and Debs d/b/a Kendall Anesthesia Assoc ","Palmer","Tracy","Exec Asst to CEO","1613 N Harrison Pkwy Ste 200 (SH-18)","Sunrise","FL",33323,null,null,"Facility Contract","2006-07-21","2018-06-30","2017-12-30","2018-03-02","2018-03-30",null,"Anesthesia",null,null,null,null,null,"Third Amendment active","Kendall Anesthesia Associates"]
["Active","Dynamic Childens Therapy","Phillips","Monica ","Director","10350 SW 137th Ct.","Miami","FL",33186,"305-431-7136","dynamicchildrens@yahoo.com","FIU Contract","2010-04-10","2025-01-01","2024-07-01","2024-09-01","2024-10-01",null,"OT",null,null,null,null,"Not in Umbrella",null,"Dynamic Childrens Therapy"]
["Active","Dynamic Pediatric Therapy Inc ","Castro","Ardee ","owner","30330 Old Dixie Hwy","Homestead","FL",null,"305/242-9424","ardeecastro@gmail.com","FIU Contract","2014-06-01","2025-01-01","2024-07-01","2024-09-01","2024-10-01",null,"OT",null,null,null,null,"Not in Umbrella",null,"Dynamic Pediatric Therapy"]
["Active","Dynamic Physical Therapy & Sport Enhancement","Williams","Sean A.","MPT","6175 NW 153rd Street","Miami Lakes","FL","33014","305 556-0315 ","DynamicPT@comcast.net","FIU Contract","2006-03-01","2025-01-01","2024-07-01","2024-09-01","2024-10-01",null,"PT",null,null,null,null,"Not in Umbrella"]
["Active","Easter Seals Rehabilitation Center","Mercer","Michelle","OTR/L","350 Braden Avenue","Sarasota","FL",34243,"941-355-7637 x 421","mmercer@easterseal.org","FIU Contract","2001-05-01","2025-01-01","2024-07-01","2024-09-01","2024-10-01",null,"OT",null,null,null,null,"Not in Umbrella",null,"Easter Seals"]
["Active","Easter Seals South Florida","Bornstein","Joan","Clinical Coordinator","1475 N.W. 14 Avenue","Miami","FL",33125,"305-547-4734",null,"FIU Contract","2005-03-01","2025-01-01","2024-07-01","2024-09-01","2024-10-01",null,"OT",null,null,null,null,"Not in Umbrella",null,"Easter Seals"]
["Active","Ed Venture Charter School","Tutein","Elizabeth ","Co-principal","200 Hypoluxo Road; Ste 201","Hypoluxo","FL",33462,"561-582-1454/582-0650","edventure98@hotmail.com","FIU Contract","2000-10-01","2025-01-01","2024-07-01","2024-09-01","2024-10-01",null,"OT",null,null,null,null,"Not in Umbrella",null,"Ed Venture Charter School"]
["Active","Edward Hines Jr -Va Hospital","Zandell","Sharon","Health Care Education Coordinator, Education Servcie","Depart of VA Affairs, Edward Hines Jr. Hospital","Hines","IL",60141,"708 202-5020","Sharon.Zandel @med.va.gove","Facility Contract","2005-04-01","2025-01-01",{"$f":"IF(N261<>\"\",DATE(YEAR(N261),MONTH(N261)-6,DAY(N261)),\"\")","v":"2024-07-01"},{"$f":"IF(N261<>\"\",DATE(YEAR(N261),MONTH(N261)-4,DAY(N261)),\"\")","v":"2024-09-01"},{"$f":"IF(N261<>\"\",DATE(YEAR(N261),MONTH(N261)-3,DAY(N261)),\"\")","v":"2024-10-01"},null,"OT",null,null,null,null,"Not in Umbrella"]
["Active","Elite Rehab (Multiple Locations)","Duffy","John","OT Director","44 South Broadway, Ste 614","White Plains","NY",10601,"305 979-3305","jduffy@eliterehab.net","FIU Contract","2007-05-01","2025-01-01","2024-07-01","2024-09-01","2024-10-01",null,"OT",null,null,null,null,"Not in Umbrella",null,"Elite Rehab"]
["Active","Elizabeth Seton Pediatric Center","Mcdermott ","George","OTR","590 Avenue of the Americas","New York","NY",10011,"646-459-3938","george.mcdermott@setonpediatric.org","FIU Contract","2009-09-01","2025-01-01","2024-07-01","2024-09-01","2024-10-01",null,"OT",null,null,null,null,"Not in Umbrella"]
["Active","Elvira J. Rives, M.D. (Solo Practice)","Rives",null,"MD","14505 Commerce Way, Suite 800","Miami","FL",33016,"305-821-8861",null,"FIU Contract","2015-09-15","2025-01-01","2024-07-01","2024-09-01","2024-10-01",null,"Nursing",null,null,null,null,"Not in Umbrella",null,"Elvira J. Rives, M.D. (Solo Practice)"]
["Active","Enrique J. Canton, M.D., P.A.","Canton","Enrique","MD","9360 Sunset Drive, Suite 205","Miami","FL",33173,"305-596-3100",null,"FIU Contract","2015-12-01","2025-01-01","2024-07-01","2024-09-01","2024-10-01",null,"Nursing",null,null,null,null,null,null,"Enrique J. Canton, M.D., P.A. Agreement -  Nursing Fall 2015"]
["Active","Eplepsy Foundation Of Florida","","",null,"1200 NW 78th ave Ste 400","Miami","FL",33126,null,null,"FIU Contract","2014-06-01","2025-01-01","2024-07-01","2024-09-01","2024-10-01",null,"HSA  PH  NUR",null," x",null,null,"Umbrella",null,"Epilepsy Fndtn of Florida"]
["Active","Equus For Humanity/Horses And Psychology","Faubel","Giselle","Director, clinical psychologist","18130 SW 50th Court","Southwest Ranches","FL",33331,"954/661-8586","drfaubel@bellsouth.net","FIU Contract","2011-10-01","2025-01-01","2024-07-01","2024-09-01","2024-10-01",null,"OT  PT  SW, RT","X","X",null,null,"Umbrella",null,"Equus for Human Horse and Psychology"]
["Active","Evelyn Lopez-Brignoni, M.D. & Associates","Joel","",null,"299 Alhambra Circle, Suite 218","Coral Gables","FL",33134,null,null,"Facility Contract","2015-03-23","2025-01-01","2024-07-01","2024-09-01","2024-10-01",null,"Nursing",null,null,null,null,"Not in Umbrella"]
["Active","Exceptional Speech Therapy","Osorio","Jennifer","President","2272 NW 87th Ave","Doral","FL",33172,"305/733-3405","info@exceptionalspeechtherapy.com","FIU Contract","2014-06-05","2025-01-01","2024-07-01","2024-09-01","2024-10-01",null,"SP",null,null,null,null,null,null,"Exceptional Speech Therapy"]
["Active","Families R' Us","Michel","Jack","Clinical Coordinator","7031 SW 62 Avenue","Miami","FL",33143,null,null,"FIU Contract","2001-03-01","2025-01-01","2024-07-01","2024-09-01","2024-10-01",null,"OT",null,null,null,null,"Not in Umbrella"]
["Active","Family Home Health Services","Tsolis","Lisa","Director","3127 W. Hallandale Beach Blvd.Ste 115","Pembroke Park","FL",33009,"866.825-3447",null,"FIU Contract","2003-02-01","2025-01-01","2024-07-01","2024-09-01","2024-10-01",null,"OT",null,null,null,null,"Not in Umbrella",null,"Family Home Health Center"]
["Active","Family Medical Center","James","Joseph","NP","1150 N. University Drive","Pembroke Pines","FL",33024,"954-616-2020",null,"Facility Contract","2015-11-24","2025-01-01","2024-07-01","2024-09-01","2024-10-01",null,"Nursing",null,null,null,null,null,null,"Family Medical Center Agreement"]
["Active","Family R Us Care Center","Maulin","Richardo",null,"11865 SW 26th Street, STE G-10","Miami","FL",33175,"(305) 559-8333",null,"FIU Contract","2007-05-01","2025-01-01","2024-07-01","2024-09-01","2024-10-01",null,"Nursing",null,null,null,null,"Not in Umbrella",null,"Families R Us"]
["Active","FAU Community Health Center","Proveda","Carlos","Clinical Programs Coordinator","1650 Osceola Drive","West Palm Beach","FL",33409,"561/803-8880","cpoveda@fau.edu","Facility ","2016-01-14","2021-02-23","2020-08-23","2020-10-23","2020-11-23",null,"NUR",null,null,null,null,null,null,"FAU Community Health Center"]
["Active","Fellowship House","Marx","Jena","Clinical Coordinator","5711 S. Dixie Hwy.","Miami","FL",33143,"305-667-1036 x 292",null,"FIU Contract","2004-08-01","2025-01-01","2024-07-01","2024-09-01","2024-10-01",null,"OT",null,null,null,null,"Not in Umbrella"]
["Active","Femlife Healthcare For Women","Martin","Nuria",null,null,"Pembroke Pines","FL",33029,null,null,"Facility Contract","2014-10-06","2025-01-01","2024-07-01","2024-09-01","2024-10-01",null,"Nursing",null,null,null,null,"Not in Umbrella"]
["Active","Fernandez, Juan Blemill, M.D. - Office","Fernandez","Juan Blemill ","M.D.","13303 SW 42nd Street","Miami","FL",33175,"305-227-6497",null,"FIU Conrtact","2015-09-23","2025-01-01","2024-07-01","2024-09-01","2024-10-01",null,"Nursing",null,null,null,null,"Not in Umbrella"]
["Active","Ferraro Spine and Rehabilitation","Manzella","Anthony","PT Director","230 Midland Ave","Saddle Brook","NJ",7663,"973/478-2212","dranthony@ferrarospine.com","FIU Contract","2015-07-21","2025-01-01","2024-07-01","2024-09-01","2024-10-01",null,"PT",null,null,null,null,null,null,"Ferraro Spine and Rehab"]
["Active","Fertility And Ivf Center Of Miami"," Jacobs","Michael","MD","8950 N Kendall","Miami","FL",33176,"(305) 596-4013 ",null,"FIU Contract","2012-04-01","2025-01-01","2024-07-01","2024-09-01","2024-10-01",null,"Nursing",null,null,null,null,"Not in Umbrella",null,"Fertility and IVF Center of Miami"]
["Active","First Hospital American Puerto Rico","Rosario","Myrta","administrator","State Rd. 787, K.M.","Cidra Puerto Rico",null,739,"787/739-5555","myrta.rosario@whsInc com","FIU Contract","2012-09-01","2025-01-01","2024-07-01","2024-09-01","2024-10-01",null,"OT",null,null,null,null,"Not in Umbrella",null,"First Hopsital Panamericano"]
["Active","Fishermans Hospital","Bassett","Kim ","CEO","3301 Overseas Hwy","Marathon","FL",33050,"305/289-6401","Kim.Bassett@hma.com","FIU Contract","2011-05-01","2025-01-01","2024-07-01","2024-09-01","2024-10-01",null,"Nursing",null,null,null,null,"Not in Umbrella",null,"Fishermans Hospital"]
["Inactive","Fit For Kids See Little Steps","Sanford","Steven","Owner","1868 NE 164 Street","No Miami","FL",33162,"305 949-7665",null,"FIU Contract","2006-03-01","2025-01-01","2024-07-01","2024-09-01","2024-10-01",null,"OT",null,null,null,null,"Not in Umbrella",null,"Fit for Kids "]
["Active","Fitness Quest Physical Therapy","Lovell","Robert","DIRECTOR OF OPERATIONS","630 E Olympia Ave, #112","Punta Gorda","FL",33950,"941 575-7300","lovellmpt@hotmail.com","FIU Contract","2006-08-01","2025-01-01","2024-07-01","2024-09-01","2024-10-01",null,"PT",null,null,null,null,"Not in Umbrella"]
["Active","Fl. Institute For Neurologic Rehab.Umbrella","Rayden","Lauren","Student Clinical Coordinator","1962 Vandolan Rd","Wachula","FL",33873,"800.697-5390 x4411","Lauren_Raden@yahoo.com","FIU Contract","2006-06-01","2025-01-01","2024-07-01","2024-09-01","2024-10-01",null,"OT PT",null,null,null,null,"Not in Umbrella",null,"FL Institute for Neurological Rehab"]
["Inactive","Flagler Institute for Rehabilitation","Kunkel","Kevin","Program Director","311 Golf Rd","West Palm Beach","FL",33407,"561/833-1747",null,"FIU Contract ","2004-05-01","2012-01-11","2011-07-11","2011-09-11","2011-10-11",null,"OT"]
["Active","Fleur Minott Nembhard OT"," Minott Nembhard","Fleur",null,"22 Deanery Rd.","Kingston 2","Jamaica ",null,"876/817-6251","fminnem.ot.jm@gmail.com","FIU Contract","2014-01-01","2025-01-01","2024-07-01","2024-09-01","2024-10-01",null,"OT",null,null,null,null,"Not in Umbrella",null,"Fleur Minott Nembhard"]
["Active","Florida Center For Allergy And Asthma","Bailey","Annie",null,"8970 SW 87 Court","Miami","FL",33176,"(305) 271-3555",null,"FIU Contract","2000-01-01","2025-01-01","2024-07-01","2024-09-01","2024-10-01",null,"Nursing",null,null,null,null,"Not in Umbrella"]
["Active","Florida Community Health Centers Inc ","Turco","Dara","Exec Admin Asst","4450 S. Tiffany Dr.","West Palm Beach","FL",33407,"561/844-9443",null,"","2012-12-01","2025-01-01","2024-07-01","2024-09-01","2024-10-01",null,"Nursing",null,null,null,null,"Not in Umbrella",null,"florida Community Health Centers"]
["Active","Florida Department Of Corrections",null,"","General Counsel","501 South Calhoun Street\n\n","Tallahassee","FL",32399,"850/717-3605",null,"Facility Contract","1997-10-01","2025-01-01","2024-07-01","2024-09-01","2024-10-01",null,"Nursing",null,null,null,null,"Not in Umbrella"]
["Active","Florida Fitness And Rehabilitation","Reed","Virginia","Director of Clinical Services","18900 N Tamiami Tr. Ste A-5","N. Ft. Myers","FL",33903,"239-731-6222","flfitnessandrehab.com","FIU Contract","2012-06-01","2025-01-01","2024-07-01","2024-09-01","2024-10-01",null,"PT",null,null,null,null,"Not in Umbrella",null,"Florida Fitness and Rehab"]
["Active","Florida Gulf Coast University","Collins","Kevin","Dir Of Health Svcs","10501 FGCU Blvd. South","Ft. Myers","FL","33965-7575","239/5901250",null,"FIU Contract","2014-02-01","2025-01-01","2024-07-01","2024-09-01","2024-10-01",null,"Nursing",null,null,null,null,"Not in Umbrella"]
["Active","Florida Hand Therapy And Rehab","Price ","Diana","OWNER AND DIRECTOR","2734 Polk St. Ste E","Hollywood","FL",33020,"305/661-1515 (ofc) 5955","'fhtdiana@comcast.net'","FIU Contract","2011-04-01","2025-01-01","2024-07-01","2024-09-01","2024-10-01",null,"OT, PT ",null,null,null,null,"Umbrella",null,"Florida Hand Therapy and Reha"]
["Active","Florida Heart And Vascular Center","Reyes","Noris","Area Practice Mgr In Dade","9200 Sunset Dr Bldg 4","Miami","FL",33173,"305/559-1857",null,"FIU Contract","2012-02-01","2025-01-01","2024-07-01","2024-09-01","2024-10-01",null,"Nursing",null,null,null,null,"Not in Umbrella",null,"Florida Heart and Vascular"]
["Inactive","Florida High School Athletic Assoc","Deering","Roger","Exec Director","1801 NW 80th Blvd","Gainesville","FL",32606,null,null,"FIU Contract","2016-03-02","2016-03-10","2015-09-10","2015-11-10","2015-12-10",null,"AT"]
["Active","Florida Home Bound Health","Owens","Joy ",null,"1400 NE 125 St.","North Miami","FL",33161,"(305) 892-7272 ",null,"","2012-09-01","2025-01-01","2024-07-01","2024-09-01","2024-10-01",null,"Nursing",null,null,null,null,"Not in Umbrella",null,"Florida Home Bound Health"]
["Active","Florida Hospital d/b/a Adventist Health System/Sunbelt, Inc ","Stunkard","Debbie","CONTRACT COORDINATOR","FLORIDA HOSPITAL HUMAN RESOURCES\nATTN:  University Contracts\n900 Winderley Place, Suite 1500","Maitland","FL","32751-7231","407/200-2896",null,"Facility Contract","2013-12-01","2016-03-01","2015-09-01","2015-11-01","2015-12-01",null,"OT, PT",null,"X",null,null,"Umbrella",null,"Florida Hospital - Adventist Health System"]
["Active","Florida House Experience Management Corp","Hirshfeld","David","Corp Counsel","505 South Federal Hwy","Deerfield Beach","FL",33441,"954/880-2595","dhirshfeld@fherehab.com","FIU Contract","2015-03-04","2025-01-01","2024-07-01","2024-09-01","2024-10-01",null,"Nursing",null,null,null,null,null,null,"Florida House"]
["Active","Florida Institute For Neuro Rehab Umbrella","Guzman","Wendy J.","PT,CCCE","P O BOX 1348","Wauchulu","FL","33873",null,null,"FIU Contract","2004-07-01","2025-01-01","2024-07-01","2024-09-01","2024-10-01",null,"PT",null,null,null,null,"Not in Umbrella",null,"Florida Institute for Neuro Rehab"]
["Active","Florida Institute Of Medical Centers","Gross","Barbara",null,"121 South State Road 7","Plantation","FL",33317,"(954) 321-0661",null,"FIU Contract","1995-11-01","2025-01-01","2024-07-01","2024-09-01","2024-10-01",null,"Nursing",null,null,null,null,"Not in Umbrella"]
["Active","Florida Neurospsychiatry Institute","Stojanivic","Branistav ",null,"1777 S Andrew Avenue","Ft. Lauderdale","FL",33316,"(945) 525-2003",null,"FIU Contract","2002-06-01","2025-01-01","2024-07-01","2024-09-01","2024-10-01",null,"Nursing",null,null,null,null,"Not in Umbrella"]
["Active","Florida Occupational And Orthopedic PT","","",null,"3405 NW 9 Ave Suite 1207","Ft. Lauderdale","FL","33309",null,null,"FIU Contract","2005-04-11","2025-01-01","2024-07-01","2024-09-01","2024-10-01",null,"PT",null,null,null,null,"Not in Umbrella"]
["Active","Florida Occupational Healthcare ","Blanco","Christina","Rehb director","8585 Sunset Drive #103","Miami","FL",33143,"305/274-3311 ","drblanco@cfohcpt.com","FIU Contract","2015-05-24","2025-01-01","2024-07-01","2024-09-01","2024-10-01",null,"PT",null,null,null,null,null,null,"Florida Occupational Health"]
[null,"Florida Rehab Professionals Centre Inc ","Florez-Garcia",null,null,"14750 SW 26th St.","Miami",null,null,null,null,null,null,null,"","","",null,"SP",null,null,null,null,null,null,"Florida Rehab Professional Centre"]
["Active","Florida Sports And Spinal Rehab","Schrumpf","Terry","Administrator","6300 N. Wickham Rd. Ste 116","Melbourne","FL",32940,"321/757-6899","fsstara@gmail.com","FIU Contract","2012-10-01","2025-01-01","2024-07-01","2024-09-01","2024-10-01",null,"OT   PT",null,null,null,null,"Umbrella",null,"Florida Sports and Spinal Rehab"]
["Active","Florida Women's Care","Mualin","Elias","M.D.","450 N. Park Road, Suite 202","Hollywood","FL",33021,"954/983-2101",null,"Facility Contrac","2015-11-10","2025-01-01","2024-07-01","2024-09-01","2024-10-01",null,"Nursing",null,null,null,null,"Not in Umbrella",null,"FloridaWomen's Care"]
["Active","Florida's Long Term Care Ombudsman Program","Valdes","Enrique","District Ombudsman Mgr","988 Woodcock Rd. Ste 198","Orlando","FL",32863,"305/671-7245","Valdese@elderaffairs.org","FIU Contract","2012-04-01","2025-01-01","2024-07-01","2024-09-01","2024-10-01",null,"PH, NUR, HSA",null,null,null,null,"Umbrella",null,"Florida Long Term Care Ombudsman Program"]
["Active","Focus Center","Gross","Laurie","Director","229 Engle Street","Englewood","NJ",7631,"201-894-5800 ex.25",null,"FIU Contract","2007-12-01","2025-01-01","2024-07-01","2024-09-01","2024-10-01",null,"OT",null,null,null,null,"Not in Umbrella"]
["Active","Force Physical Therapy (Formerly Jaguar Pt Rehab/Jaguar Therapeutics)","Krenkel","Hal","Manager","20754 W Dixie Hwy","Aventura","FL",33180,"305/935-9599","hkjaguarpt@gmail.com","FIU Contract","2015-09-25","2025-01-01","2024-07-01","2024-09-01","2024-10-01",null,"PT AT",null,null,null,null,"Not in Umbrella",null,"Force Physical Therapy"]
["Active","Fort Lauderdale Hospital","Dupis","Allen",null,"1601 E Las Olas Boulevard","Fort Lauderdale","FL",33301,"954-682-4130",null,"FIU Contract","2007-08-01","2025-01-01","2024-07-01","2024-09-01","2024-10-01",null,"Nursing",null,null,null,null,"Not in Umbrella"]
["Active","Fox Medical Centers","Ramirez","Ms. ",null,null,"Miami","FL",33176,null,null,"Facility Contract","2014-12-19","2025-01-01","2024-07-01","2024-09-01","2024-10-01",null,"Nursing",null,null,null,null,"Not in Umbrella"]
["Active","Francisco Hernandez, Md","Hernandez","Francisco","MD, DIRECTOR, AFFILIATED CLINICAL SITE","13055 SW 42nd Street, Suite 105","Miami","FL",33175,null,null,"FIU Contract","2007-08-01","2025-01-01","2024-07-01","2024-09-01","2024-10-01",null,"AT",null,null,null,null,"Not in Umbrella"]
["Active","Franklin Hospital (North Shore-Long Island Jewish Health System Including Lenox Hill)","Parziale","Teresa","STUDENT COORDINATOR","900 Franklin Avenue","Valley Street","NY",11580,"516-256-6000","Kmaguire@NSHS.edu","Facility Contract","2007-01-01","2025-01-01","2024-07-01","2024-09-01","2024-10-01",null,"PT",null,null,null,null,"Not in Umbrella"]
["Active","Franklin Medical Center","","",null,"48 Sanderson St.","Greenfield","MA","01301",null,null,"Facility Contract","2005-02-16","2025-01-01","2024-07-01","2024-09-01","2024-10-01",null,"PT",null,null,null,null,"Not in Umbrella"]
["Active","Gables Pediatrics","Jimeniz","Joquin",null,"358 San Lorenzo Ave Ste 3230","Coral Gables","FL",33146,"305/444-6882",null,"FIU Contract","2014-08-01","2025-01-01","2024-07-01","2024-09-01","2024-10-01",null,"Nursing",null,null,null,null,"Not in Umbrella",null,"Gables Pediatrics "]
["Active","Gains Kids Center","Gonzalez","Marialina","OWNER","351 Minorca Ave.","Coral Gables","FL",33134,"786-262-8189","marialinag@hotmail.com","FIU Contract","2010-11-10","2025-01-01","2024-07-01","2024-09-01","2024-10-01",null,"OT, CSD",null,null,null,null,"Umbrella",null,"Gain Kids Center"]
["Inactive","Galencare d/b/a Northside Hospital HCA","Brown","Kathleen","CCCE","6000 49th St. North","St. Petersburg","FL",null,null,null,null,null,null,"","","",null,null,null,null,null,null,null,null,"Galencare dba Northside"]
["Inactive","Galloway Therapy","Ramos","Paul ","Owner","9415 Sunset Drive Ste 195","Miami","FL",33173,"305-593-1973",null,"FIU Contract","2003-05-01","2025-01-01","2024-07-01","2024-09-01","2024-10-01",null,"OT",null,null,null,null,"Not in Umbrella",null,"Galloway Therapy"]
["Active","Gardens Wellness Treatment Center","Torre-Verdejo","Kristina J.","ARNP","16565 NE 4th Avenue","North Miami","FL",33162,"305-748-3805","taniat@tgwcdetox.com","Facility contract","2015-12-14","2018-12-13","2018-06-13","2018-08-13","2018-09-13",null,"Nursing",null,null,null,null,null,null,"The Gardens Wellness Treatment Center"]
["Active","Gastro Health","Fernandez","Alejandro","CEO","7500 SW 87th Ave Ste 200","Miami","FL",33173,"305/905-0390","hshahidppor@gmail.com","FIU Contract","2014-04-01","2025-01-01","2024-07-01","2024-09-01","2024-10-01",null,"Nursing",null,null,null,null,"Not in Umbrella"]
["Active","Gateway Medical","Erwin","Rachel ","ARNP","2257 Hwy 44 Ste A ","North Okeechobee","FL",34972,"863/467-4788","rachel.erwin@yahoo.com","FIU Contract","2012-06-01","2025-01-01","2024-07-01","2024-09-01","2024-10-01",null,"Nursing",null,null,null,null,"Not in Umbrella",null,"Gateway Medical"]
["Active","Genesis Healthcare - Edgewater Pointe Estates","Brothers","Alison","Clinical Manager Specialist","Edgewater Pointe Estates, 23315 Bluewater Circle","Boca Raton","FL",33433,"610.925-4439","Alison.Brothers@genesishcc.com","FIU Contract","2007-08-01","2025-01-01","2024-07-01","2024-09-01","2024-10-01",null,"OT",null,null,null,null,"Not in Umbrella"]
["Active","Genesis Healthcare - Edgewater Pointe Estates","Brothers","Alison","CLINICAL MANAGER/SPECIALIST","Edgewater Pointe Estates, 23315 Bluewater Circle","Boca Raton","FL",33433,"610.925-4439",null,"FIU Contract","2007-08-01","2025-01-01","2024-07-01","2024-09-01","2024-10-01",null,"PT",null,null,null,null,"Not in Umbrella"]
["Active","Genesis Rehab Services","Strydom","Estelle","CLINICAL EDUCATION SPECIALIST FOR FLORIDA (effective 2/1/12)","101 East State Street","Kennett Square","PA",19348,"610-444-6350","esstelle.strydom@genesishcc.com","FIU Contract","2009-11-01","2025-01-01","2024-07-01","2024-09-01","2024-10-01",null," OT, PT, CSD",null,null,null,null,"Umbrella",null,"Genesis Rehab Services "]
["Inactive","Geocare Inc /South Florida State Hospital/Correct Care LLC","Pyngolil","Mariamma","CNO","800 East Cypress","Pembroke Pines","FL",33025,"954/392-3060","mpyngolil@geocareInc com","Facility Contract","2013-06-01","2016-12-31","2016-07-01","2016-08-31","2016-10-01","annual renewal after Dec 2016","OT PT NUR HSA",null,null,null,null,"Umbrella",null,"GeoCare LLC"]
["Active","Georgia Hand Shoulder & Elbow","Williams","Ericka","OTR/L","2061 Peachtree Rd","Atlanta","GA",30309,"770/795-7979","ewilliams@gahand.org","FIU Contract","2012-10-01","2025-01-01",{"$f":"IF(N325<>\"\",DATE(YEAR(N325),MONTH(N325)-6,DAY(N325)),\"\")","v":"2024-07-01"},{"$f":"IF(N325<>\"\",DATE(YEAR(N325),MONTH(N325)-4,DAY(N325)),\"\")","v":"2024-09-01"},{"$f":"IF(N325<>\"\",DATE(YEAR(N325),MONTH(N325)-3,DAY(N325)),\"\")","v":"2024-10-01"},null,"OT   PT",null,null,null,null,"Umbrella",null,"Georgia Hand Shuolder and Elbow"]
["Active","Gi Care Center","Goldberg","Harris ","MD","7500 SW 87th Avenue","Miami","FL",33177,"(305) 913-0666",null,"FIU Contract","2002-09-01","2025-01-01","2024-07-01","2024-09-01","2024-10-01",null,"Nursing",null,null,null,null,"Not in Umbrella"]
["Active","Gilda de La Calle, M.D., P.A.","de La Calle",null,"Owner","1435 West 49th Place, Suite 40B","Hialeah","FL",33012,"305-303-4386",null,"FIU Contract","2015-09-11","2025-01-01","2024-07-01","2024-09-01","2024-10-01",null,"Nursing",null,null,null,null,"Not in Umbrella",null,"Gilda de La Calle, M.D., P.A."]
["Active","Gilda's Club Of South Florida","Bitondo","Sal","Program Director","119 Rose Drive","Ft. Lauderdale","FL",33316,"954-763-6776","Sal@gildasclubsouthflorida.org","FIU Contract","2007-03-01","2025-01-01","2024-07-01","2024-09-01","2024-10-01",null,"OT",null,null,null,null,"Not in Umbrella"]
["Active","Gold Coast Physical Therapy Associates Inc ","561/432-0111","Brian Russ","CEE","6169 Jog Rd, Ste A-11","Ft. Worth","FL",33467,"561-432-0111","bruss@goldcoastpt.com","FIU Contract","2010-09-01","2025-01-01","2024-07-01","2024-09-01","2024-10-01",null,"PT",null,null,null,null,"Not in Umbrella",null,"Gold Coast Physical Therapy"]
["Active","Good Hope Equestrian Training Ctr","Toole","Peggy","Director","22155 SW 147 Avenue","Miami","FL",33170,"305 258-2838",null,"FIU Contract","2004-07-01","2025-01-01","2024-07-01","2024-09-01","2024-10-01",null,"OT",null,null,null,null,"Not in Umbrella"]
["Active","Goodwill Industries Of Broward County, Inc ","Board","Shirley","Director of Community Services","2104 W. Commercial Blvd.","Ft. Lauderdale","FL",33309,"954-486-1600 x 116","gwibci@msn.com","FIU Contract","2005-04-01","2025-01-01","2024-07-01","2024-09-01","2024-10-01",null,"OT",null,null,null,null,"Not in Umbrella",null,"Goodwill Industries of Broward County "]
["Active","Grady Health System Umbrella","Washington","Janice","Rehab Therapy Svcs","80 Jesse Hill Dr. SE","Atlanta","GA",30303,"404/616-7229","JWASHINGTON@gmh.edu","Facility Contract","2014-12-06","2018-03-31","2017-10-01","2017-12-01","2017-12-31",null,"OT PT",null,null,null,null,"Not in Umbrella",null,"Grady Health System"]
["Active","Greater Orlando Therapy Clinic","Towson","Angela","OTR/L","445 Oceola St.","Altamonte Springs","FL",32701,"407-831-1333",null,"FIU Contract","2003-04-01","2025-01-01","2024-07-01","2024-09-01","2024-10-01",null,"OT",null,null,null,null,"Not in Umbrella"]
["Active","Greater Southeast Community Hospital","Gainer","Frank","DIRECTOR, REHAB SERVICES DEPT","1310 Southern Ave, SE - Room 102","Washington","DC","20011","202.574-6000",null,"FIU Contract","2004-07-01","2025-01-01","2024-07-01","2024-09-01","2024-10-01",null,"PT",null,null,null,null,"Not in Umbrella"]
["Active","Greystone Health Care Management (Includes 18 Different Facilities In Florida And More In In And Il)","Marconi","Matthew","Corp Director of Recruitment","4042 Park Oaks Blvd Ste 300","Tampa","FL",33610,"813/675-2312","mmarconi@greystonehcm.com","Facility Contract","2011-01-01","2025-01-01","2024-07-01","2024-09-01","2024-10-01",null,"OT, PT, CSD",null,null,null,null,"Umbrella",null,"Greystone Health Care Management"]
["Active","Gulf Coast Health Care - Margate Health","Chiti Block","Giulia","Asst General Counsel","4 West Red Oak Lane Ste 201","White Plains ","NY",10604,"914/390-4324","Gblock@hcnavigator.net","FIU Contract","2016-01-01","2017-12-31","2017-07-01","2017-08-31","2017-10-01",null,"NUR",null,null,null,null,null,null,"Gulf Coast Health Care"]
["Active","Gulf Coast Jewish Family & Community Care","Bankert","Craig","Program Director","14041 Icot Blvd","Clearwater","FL",33760,"954/703-3576","Cbankert@gcjfcs.org","FIU Contract","2014-02-01","2025-01-01","2024-07-01","2024-09-01","2024-10-01",null,"OT",null,null,null,null,"Not in Umbrella",null,"Gulf Coast Jewish Family and Community Care"]
["Active","H.A.N.D.S. Rehab, Inc ","Vazquez","Nelson","Administrator","13500 N Kendall Drive, Ste 171","Miami","FL",33186,"305 969-0830",null,"FIU Contract","2005-01-01","2025-01-01","2024-07-01","2024-09-01","2024-10-01",null,"OT",null,null,null,null,"Not in Umbrella",null,"Hands of St Lucie County"]
["Active","Halcyon Rehabilitation (Formerly Elite Rehab)","Harris","Kayla","HR coordinator","4 West Oak Lane Ste 201","White Plains","NY",10614,"914/390-4347","Kharris@halcyonrehab.net","FIU Contract","2012-10-01","2025-01-01","2024-07-01","2024-09-01","2024-10-01",null,"OT   PT",null,null,null,null,"Umbrella",null,"Halcyon Rehab"]
["Active","Halifax Health Medical Center","Hall","David","Dir of Education","311 N. Clyde Morris Blvd","Daytona Beach","FL",32114,"386/254-4053","david.Hall@halifax.org","FIU Contract","2014-01-01","2025-01-01","2024-07-01","2024-09-01","2024-10-01",null,"AT CSD DN NUR OT PT Psy PH RT SW ","x","x","x",null,"Umbrella",null,"Halifax Health"]
["Active","Hammock Medical Center","Valdes","Daisy","Office Mgr","15122 SW 72nd Street","Miami","FL",33193,null,null,"Facility Contract","2015-03-04","2025-01-01","2024-07-01","2024-09-01","2024-10-01",null,"Nursing",null,null,null,null,"Not in Umbrella",null,"Hammock Medical Center"]
["Inactive","Hand In Hand Family And Child Development Center - Facility Closed","Jacobson","Pam","Director","17200 Ventura Boulevard, Ste 112","Encino","CA",91316,"818-986-7776","pam@handinhandonline.org","FIU Contract","2008-09-01","2025-01-01","2024-07-01","2024-09-01","2024-10-01",null,"OT",null,null,null,null,"Not in Umbrella",null,"Hand in Hand Child Development Center"]
["Active","Hands Of St. Lucie County","Roberts ","James","Medical Director","3855 South U.S. 1, Ste B","Ft. Pierce","FL",34982,"772/344-2541",null,"FIU Contract","2012-05-01","2025-01-01","2024-07-01","2024-09-01","2024-10-01",null,"Nursing",null,null,null,null,"Not in Umbrella"]
["Active","Hands On Therapy","Tran","Hoang ","owner","6555 NW 36th St Ste 106","Virginia Gardens","FL",33166,"786/615-9879","joangot@gmail.com","FIU Contract","2014-06-01","2025-01-01","2024-07-01","2024-09-01","2024-10-01",null,"OT",null,null,null,null,"Not in Umbrella"]
["Active","Hands Rehab","Baggott","Christa","OWNER, OT","11350 N Kendall Drive, #171","Kendall","FL",33186,null,null,"FIU Contract","2007-06-01","2025-01-01","2024-07-01","2024-09-01","2024-10-01",null,"PT",null,null,null,null,"Not in Umbrella"]
["Active","Hands With Care","Juliette","Matis","OTR/L","9980 Central Park Blvd., Ste 102","Boca Raton","FL",33428,"561-470-2205","561-470-2215","FIU Contract","2008-11-01","2025-01-01","2024-07-01","2024-09-01","2024-10-01",null,"OT",null,null,null,null,"Not in Umbrella"]
["Active","Hardee Services Of Rehabilitaiton","Bobe","Maggie","Dir of Rehab","6325 US 27 North, Ste 101","Sebring","FL",33870,"941-314-4466",null,"FIU Contract","2000-04-01","2025-01-01","2024-07-01","2024-09-01","2024-10-01",null,"OT",null,null,null,null,"Not in Umbrella",null,"Hardee Svcs of Rehabilitation"]
["Active","Harmony Healthcare Center@ Greenbriar (See Ihs)","","",null,"9820 N. Kendall Drive","Miami","FL","33176",null,null,"FIU Contract","2005-08-01","2025-01-01","2024-07-01","2024-09-01","2024-10-01",null,"PT",null,null,null,null,"Not in Umbrella"]
["Active","Harst Harbor ( Sea Crest) Health Care","Bend","Connie","Executive Director","11565 Harst Rd.","Jacksonville","FL",32218,"904/751-7092",null,"FIU Contract","2003-04-01","2025-01-01","2024-07-01","2024-09-01","2024-10-01",null,"OT",null,null,null,null,"Not in Umbrella"]
["Active","Haywood Regional Medical Center","Imel","Patricia","Contract Coordinator","262 Leroy George Dr. ","Clyde","NC",28721,"828/452-8361","patricia.imel@haymed.org","Facility Contract","2014-06-01","2017-08-01","2017-02-01","2017-04-01","2017-05-01",null,"PT",null,null,null,null,"Not in Umbrella",null,"Haywood Regional Medical Center"]
["Active","Haywood Regional Medical Center","Lee","Jeff","Director of Rehabilitation","262 Leroy George Drive","Clyde","NC",28721,null,"jeff.lee@haymed.org","FIU Contract","2007-12-01","2025-01-01","2024-07-01","2024-09-01","2024-10-01",null,"OT",null,null,null,null,"Not in Umbrella"]
["Active","Hba Therapy Services (Broward Nur & Rehab, Tamarac Nur & Rehab, Plantation Nur & Rehab, Springtree Walk Nur & Rehab)","Boudreaux","Tami","DIRECTOR ","5310 NW 33rd Avenue, Suite 211","Fort Lauderdale","FL",33309,null,"Tbootip2@aol.com","FIU Contract","2007-09-01","2025-01-01","2024-07-01","2024-09-01","2024-10-01",null," OT, PT, CSD",null,null,null,null,"Umbrella"]
["Active","HCR Healthcare LLC (Formerly Manorcare And Hearland Healthcare)","Harris ","Karen","Regional Director Of Operations",null,"",null,null,null,null,"","2012-12-01","2025-01-01","2024-07-01","2024-09-01","2024-10-01",null,"Nursing",null,null,null,null,"Not in Umbrella",null,"HCR Healthcare"]
["Active","HCR Healthcare Llc (Formerly Manorcare, Hcr Manorcare, Heartland Healthcare","Pagaoga","Jim","VP of Rehab Services","333 N. Summit St.","Teledo","OH",43604,"419/254-7814","jgralak@hcr-manorcare.com","Facility Contract","2011-10-01","2025-01-01","2024-07-01","2024-09-01","2024-10-01",null,"OT, PT, CSD, NUR",null,null,null,null,"Umbrella",null,"HCR Healthcare"]
["Active","Healing Touch Caring and Compassion","Espinosa","Hugo","M.D.","4385 W 16th Avenue","Hialeah","FL",33012,"305/767-7183","hespinosa@healingtouchcc.net","Facility Contract","2015-11-05","2025-01-01","2024-07-01","2024-09-01","2024-10-01",null,"Nursing",null,null,null,null,"Not in Umbrella",null,"Healing Touch Caring and Compassion"]
["Active","Healis - The Childrens Clinic","Kent","Brenda","DIRECTOR OF OPERATIONS","18001 OLD CUTLER RD. STE 354","Palmetto Bay","FL",33157,"305/251-7477","info@healist.net","FIU Contract","2010-11-01","2025-01-01","2024-07-01","2024-09-01","2024-10-01",null,"OT, PT, CSD",null,null,null,null,"Umbrella",null,"Healis"]
["Active","Healis Summit Rehab","Welch","Greg","Clinic Director","10300 Sunset Drive, Ste 270","Miami","FL",33173,"305.273-5520","gwelch227@aol.com","FIU Contract","2007-03-01","2025-01-01","2024-07-01","2024-09-01","2024-10-01",null,"OT",null,null,null,null,"Not in Umbrella",null,"Healis Summit Rehab"]
["Active","Health And Physical Services Inc","Reid","Lorna","MD ","4179 North State Rd 7","Lauderdale Lakes","FL",33319,"954/486-1127",null,"FIU Contract","2014-01-01","2025-01-01","2024-07-01","2024-09-01","2024-10-01",null,"Nursing",null,null,null,null,"Not in Umbrella",null,"Health and Physical Services"]
["Active","Health Care Connections Of Tampa","Jubert.","Angela ","MD ",null,"Tampa","FL",33612,null,null,"Facility Contract","2015-02-12","2025-01-01","2024-07-01","2024-09-01","2024-10-01",null,"Nursing",null,null,null,null,"Not in Umbrella",null,"Healthcare Connections of Tampa"]
["Active","Health Center Of Coconut Creek","Corley","Shawn","Administrator","4125 W Sample Rd","Coconut Creek","FL",33073,"954/968-8333","scorely@thc-cc.com","FIU Contract","2013-06-01","2025-01-01","2024-07-01","2024-09-01","2024-10-01",null,"OT  PT",null,null,null,null,"Umbrella",null,"Health Center of Coconut Creek"]
["Inactive","Health Central Rehab","Curtis","Daniel ","PT, MTC, CCCE","10000 W Colonial Dr. Ste 381","Ocoee","FL",34761,null,"daniel.curtis@healthcentral.org","FIU Contract","2009-09-01","2025-01-01","2024-07-01","2024-09-01","2024-10-01",null,"OT",null,null,null,null,"Not in Umbrella",null,"Health Central Rehab"]
["Inactive","Health Central Rehab","Curtis","Daniel","PT MTC","10000 W. Colonial Drive, Suite 381","Ocoee","FL",34761,null,"daniel.curtis@healthcentral.org","FIU Contract","2009-09-01","2025-01-01","2024-07-01","2024-09-01","2024-10-01",null,"PT",null,null,null,null,"Not in Umbrella",null,"Health Central Rehab"]
["Active","Health First (Includes Holmes Regional Medical Center, Palm Bay Hospital, Viera Hospital, Cape Canaveral Hospital)","Holland","Debra","CLINICAL EDUCATION  ","Rivercrest Professional Center; 3470 N. Harbour CityBlvd. (US1)","Melbourne","FL",32935,"321/434-1960","debbie.holland@healthfirst.org","Facility Contract","2010-10-01","2025-01-01","2024-07-01","2024-09-01","2024-10-01",null,"OT, PT, CSD",null,null,null,null,"Umbrella",null,"Health First Inc"]
["Active","Health Foundations Of South Florida","O'Neil","John H. ",null,"1550 North Miami Avenue","Miami","FL",33136,"(305) 329-3021",null,"FIU Contract","1999-11-01","2025-01-01","2024-07-01","2024-09-01","2024-10-01",null,"Nursing",null,null,null,null,"Not in Umbrella"]
["Active","Health Rehab","Limehouse","Rob",null,"1844 UNIVERSITY DRIVE","Coral Springs","FL",33071,null,"rob@healthrehab.com","FIU Contract","2007-05-01","2025-01-01","2024-07-01","2024-09-01","2024-10-01",null,"PT",null,null,null,null,"Not in Umbrella"]
["Active","Health Rehab Plus","Limehouse","Rob","Director","1279 North University Drive","Coral Springs","FL",33071,"954 255-1515",null,"FIU Contract","2005-06-01","2025-01-01","2024-07-01","2024-09-01","2024-10-01",null,"OT",null,null,null,null,"Not in Umbrella",null,"Health Rehab Plus"]
["Active","Health Safety And Consultants Llc","Anderson","Susan","MS, OTR/L","2458 SE 12th Court","Homestead","FL",33035,"305-490-7184","susanmsot_hscllc@hotmail.com","FIU Contract","2009-03-01","2025-01-01","2024-07-01","2024-09-01","2024-10-01",null,"OT",null,null,null,null,"Not in Umbrella"]
["Active","Healthsouth Corporation","Shook","Angela","CLINICAL AFFILIATIONS COORDINATOR","3660 Grandview Parkway, Ste 200","Birmingham","AL",35243,"205.970-7919","portia.osby@healthsouth.com","Facility Contract","2014-05-01","2017-08-01","2017-02-01","2017-04-01","2017-05-01",null,"OT, PT,  CSD, NUR, HSA DN, SW",null,"X",null,null,"Umbrella",null,"HealthSouth"]
["Active","Hearing And Speech Center Of Florida","Debra","Knox","Exec Director","9425 Sw 72nd St. #261","Miami","FL",null,null,null,"FIU Contract","2012-01-01","2025-01-01","2024-07-01","2024-09-01","2024-10-01",null,"OT",null,null,null,null,"Not in Umbrella"]
["Active","Heart Of Florida Therapy","Lawson ","Joyce","PT, CCCE","1705 U.S. Highway 27 North; Ste 103","Davenport","FL","  33837-5901","863-421-1709",null,"FIU Contract","2005-12-01","2025-01-01","2024-07-01","2024-09-01","2024-10-01",null,"OT",null,null,null,null,"Not in Umbrella",null,"Heart of Florida Therapy Center"]
["Active","Heartland Rehabilitation Center (See HCR Healthcare)","Behrens","John","OTR/L"," "," "," ",32250,"904-249-4000",null," ","2015-10-15","2025-01-01","2024-07-01","2024-09-01","2024-10-01",null,"OT PT SP",null,null,null,null,"Not in Umbrella"]
["Active","Heaven On Earth Foundation","Leblanc","Julia ",null,"16333 SW 47th Ct.","Miramar","FL",null,null,null,"FIU Contract","2010-11-01","2025-01-01","2024-07-01","2024-09-01","2024-10-01",null,"OT",null,null,null,null,"Not in Umbrella",null,"Heaven on Earth Foundation"]
["Active","Helen B Bentley Family Health Center","Meiselman","Mark","Dir HR","3090 SW 37th Avenue","Miami","FL",33133,"305-351-1332","mmeiselman@hcnetwork.org","FIU Contract","2009-10-01","2025-01-01","2024-07-01","2024-09-01","2024-10-01",null,"Nursing",null,null,null,null,"Not in Umbrella"]
["Active","Hendry Regional Medical Center","Jafferi","Ghulam Ali ","MD","524 West Sagamore ","Clewiston","FL",33440,"803/983-9121","gwilson@hendryregional.org","FIU Contract","2011-04-01","2025-01-01","2024-07-01","2024-09-01","2024-10-01",null,"Nursing",null,null,null,null,"Not in Umbrella"]
["Active","Henry Lin, M.D. - Office","Lin","Henry","MD","3900 N. Andrews Ave","Oakland Park","FL",33309,"954-979-3292",null,"FIU Contract","2015-09-11","2025-01-01","2024-07-01","2024-09-01","2024-10-01",null,"Nursing",null,null,null,null,"Not in Umbrella",null,"Henry Lin, M.D."]
["Active","Hershman Medical Center","Landera","Mario","ARNP","11479 SW 40th Street","Miami","FL",33165,"305/221-7235","sherline@hershmanmd.com","FIU Contract","2016-03-02","2018-03-01","2017-09-01","2017-11-01","2017-12-01",null,"Nursing",null,null,null,null,"Not in Umbrella",null,"Hershman Medical Center"]
["Active","Hialeah Convalescent Home","","Ruby","OT Manager","190 West 28th Street","Hialeah","FL",33010,null,null,"FIU Contract","2008-03-01","2025-01-01","2024-07-01","2024-09-01","2024-10-01",null,"OT",null,null,null,null,"Not in Umbrella"]
["Active","Hialeah Hospital","Hinkson","Susan","Director of Education","651 EAST 25TH STREET","Hialeah","FL",33013,"305/835-4219","susan.hinkson@Tenethealth.com","Facility Contract","2010-07-01","2025-01-01","2024-07-01","2024-09-01","2024-10-01",null,"OT, NUR",null,null,null,null,"Umbrella",null,"Hialeah Hospital"]
["Active","Highland Park Pavilion (Under Jackson Memorial Umbrella)","","",null,"1660 NW 7th Ct","Miami","FL",33136,"305/355-9400",null,"Facility Contract",null,"2018-01-31","2017-07-31","2017-10-01","2017-10-31",null,"OT",null,null,null,null,"Not in Umbrella"]
["Active","Highlands County Health Department","Moore","Barbara ",null,"7205 South George Boulevard","Sebring","FL",33870,"863/385-8825","Barbar_Moore@doh.state.fl.us","FIU Contract","2013-09-01","2025-01-01","2024-07-01","2024-09-01","2024-10-01",null,"Nursing",null,null,null,null,"Not in Umbrella",null,"Highlands County DOH"]
["Active","Highlands Regional Medical Center","Callahan","Michael",null,"3600 Highlands Avenue","Sebring","FL",33870,"(863) 385-6101",null,"FIU Contract","2000-11-01","2025-01-01","2024-07-01","2024-09-01","2024-10-01",null,"Nursing",null,null,null,null,"Not in Umbrella"]
["Active","Highpoint Focus Health Care Of Florida","Hart","Joe",null,"5960 SW 106 Avenue","Cooper City","FL",33328,"(954) 680-2700",null,"FIU Contract","1999-01-01","2025-01-01","2024-07-01","2024-09-01","2024-10-01",null,"Nursing",null,null,null,null,"Not in Umbrella"]
["Active","Hillcrest Nursing And Rehab Center","Urbina","Valeska","OTR/L","4200 Washington St","Hollywood","FL",33021,"954-266-3042","hillcrestrehab@salusrehab.com","FIU Contract","2008-11-01","2025-01-01","2024-07-01","2024-09-01","2024-10-01",null,"OT",null,null,null,null,"Not in Umbrella",null,"Hillcrest Nursing and Rehab Center"]
["Active","Hogar Carlos Maria Ulloa","Valerin Arias","Sonia","Administrator","Apartado Postal 1744-1000","San Jose","Costa Rica",null,"2521-5340 x122","asistente@hcmu.org","FIU Contract","2014-01-14","2025-01-01","2024-07-01","2024-09-01","2024-10-01",null,"OT",null,null,null,null,"Not in Umbrella",null,"Hogar Carlos Maria Ulloa"]
["Active","Holistix By The Sea","Tyler","Allan","Executive Director","803 NE 2nd Avenue","Pompano Beach","FL",33060,null,null,null,"2015-02-27","2025-01-01","2024-07-01","2024-09-01","2024-10-01",null,"Nursing",null,null,null,null,"Not in Umbrella",null,"Holistix by Sea"]
["Active","Hollywood Medical Center (Under Memorial Health System)","","",null,null,"",null,null,null,null,"","2007-08-01","2025-01-01","2024-07-01","2024-09-01","2024-10-01",null,"OT",null,null,null,null,"Not in Umbrella",null,"Memorial Healthcare"]
["Active","Holmes Regional Medical Center aka Cape Canaveral Hospital See Health First Inc ","Holland","Debbie","Clinic Education Practitioner","3470 North Harbor City Plaza","Melbourne","FL",32935,"321/434-7391",null,"","2010-10-10","2025-01-01","2024-07-01","2024-09-01","2024-10-01",null,"OT PT SP",null,null,null,null,"Not in Umbrella",null,"Health First"]
["Active","Holy Cross Including Orthopedic Institute at HC Hospital","Vroebel","Patty","Assitant to General Counsel","4725 N Federal Hwy","Ft. Lauderdale","FL",33308,"954/229-8501","patty.vrobel@holy-cross.com","Facility Contract","2011-07-01","2025-01-01","2024-07-01","2024-09-01","2024-10-01",null,"OT, PT, NUR, CSD, AT, HSA, DN, RT, SW, PSY, PH",null,null,null,null,"Umbrella",null,"Holy Cross"]
["Active","Holy Name Medical Center","Jason","Kavountzis","PT","718 Teaneck Rd","Teaneck","NJ",7666,"201/833-3086","kavountzis@holyname.org","FIU Contract","2012-09-01","2025-01-01",{"$f":"IF(N389<>\"\",DATE(YEAR(N389),MONTH(N389)-6,DAY(N389)),\"\")","v":"2024-07-01"},{"$f":"IF(N389<>\"\",DATE(YEAR(N389),MONTH(N389)-4,DAY(N389)),\"\")","v":"2024-09-01"},{"$f":"IF(N389<>\"\",DATE(YEAR(N389),MONTH(N389)-3,DAY(N389)),\"\")","v":"2024-10-01"},null,"PT",null,null,null,null,"Not in Umbrella"]
["Active","Home Builders Institute","Torbett","Dennis","VP","8200 So Palm Drive, Building 67","Pembroke Pines","Fl",33025,null,null,"FIU Contract","2007-01-01","2025-01-01","2024-07-01","2024-09-01","2024-10-01",null,"OT",null,null,null,null,"Not in Umbrella"]
["Active","Hommen Orthopedic Institute","Hommen","Jan Pieter","Director","8940 N Kendall Dr. Ste 101E","Miami","FL",33176,"305/520-5625",null,"FIU Contract","2012-05-01","2025-01-01","2024-07-01","2024-09-01","2024-10-01",null,"AT",null,null,null,null,"Not in Umbrella",null,"Hommen Orthopedic Institute"]
["Active","Hoover Family Medicine","Hoover","Keila ","MD Owner","7371 SW 24th St.","Miami","FL",33155,"305/265-4441",null,"FIU Contract","2014-08-01","2025-01-01","2024-07-01","2024-09-01","2024-10-01",null,"Nursing",null,null,null,null,"Not in Umbrella",null,"Hoover Family Medicine"]
["Active","Hope Center See Upc Of South Florida","Phelan","Aileen",null,"666 SW 4th Street","Miami","FL",33130,"305-545-7572 ext. 220","aphelan@hopecenterhc.org","FIU Contract","2007-03-01","2025-01-01","2024-07-01","2024-09-01","2024-10-01",null,"OT",null,null,null,null,"Not in Umbrella"]
["Inactive","Horse And Psychology-  See Equus For Humanity Umbrella","Faubel","Giselle",null,null,"",null,null,null,null,"",null,null,"","","",null,"OT PT",null,null,null,null,"Not in Umbrella",null,"Horses and Psychology"]
["Inactive","Human Resources Health Center-Public Health Trust (Under Jackson Healthcare Umbrella Agreement)","","",null,null,"",null,null,null,null,"",null,null,"","","",null,"OT",null,null,null,null,"Not in Umbrella"]
["Active","Humana Inc  Dba Continue Care","Sumfest","Jill","MD","3501 SW 160th Ave, 4th Fl","Miramar","FL",33027,"305/626-5597","jsumfest@humana.com","FIU Contract","2014-06-01","2025-01-01","2024-07-01","2024-09-01","2024-10-01",null,"Nursing",null,null,null,null,"Not in Umbrella",null,"Humana"]
["Active","I & B Medical Associates, In.c","Franco","Sindy","Director","9400 NW 12th Avenue","Miami","FL",33150,"305-835-9264","sindy32502@yahoo.com","Facility Contract","2015-06-19","2025-01-01","2024-07-01","2024-09-01","2024-10-01",null,"Nursing",null,null,null,null,"Not in Umbrella"]
["Active","I H S @ Greenbriar - Kendall - Name Changed To Harmony Health Center","Yam","Donna","NHA","9820 N. Kendall Dr.","Miami","FL","33176","941.371-8900",null,"Facility Contract","2000-07-01","2025-01-01",{"$f":"IF(N398<>\"\",DATE(YEAR(N398),MONTH(N398)-6,DAY(N398)),\"\")","v":"2024-07-01"},"2024-09-01","2024-10-01",null,"PT",null,null,null,null,"Not in Umbrella"]
["Active","Ideal Family Health (Just For Nps)","Hernandez","Otniel ","ARNP","4410 W 16th Ave, Ste 55","Hialeah","FL",33012,"305/824-8559",null,"FIU Contract","2011-06-01","2025-01-01","2024-07-01","2024-09-01","2024-10-01",null,"Nursing",null,null,null,null,"Not in Umbrella",null,"Ideal Family Health"]
["Active ","Ideal Physical ","Hokanson","Lisa","Compliance Mgr","668 N 44th St. Ste 218 W","Phoenix","AZ",85008,"602/368-6356","Lhokanson@idealtherapy.com","FIU Contract","2016-01-02","2019-03-30","2018-09-30","2018-11-30","2018-12-30",null,"PT",null,null,null,null,null,null,"Ideal Therapy of Texas LLC"]
["Active","Impact Health And Performance","Ivanov","Philip","PT Clinician","180 Alt 19 N. Ste B","Palm Harbor","FL",34683,"727/785-8737","pivanov@impacthp.net","FIU Contract","2012-08-01","2025-01-01","2024-07-01","2024-09-01","2024-10-01",null,"PT",null,null,null,null,"Not in Umbrella",null,"Impact Health and Performance"]
["Active","Impact Kids","Lisa","Strom","President","451 - 41st St.","Miami Beach","FL",33140,"(305) 672-2992","impactkids451@yahoo.com'","FIU Contract","2012-11-01","2025-01-01","2024-07-01","2024-09-01","2024-10-01",null,"OT   PT   CSD",null,null,null,null,"Umbrella",null,"Impact Kids "]
["Inactive","Imperial Point Hospital (North Broward Hospital Dist. Umbrella)","","",null,null,"",null,null,null,null,"",null,null,"","","",null,"OT",null,null,null,null,"Not in Umbrella"]
["Active","Independence Rehab LLC","Smith","David","Dir of Recruiting","Multiple","Provo","UT",null,"801/494-0485","dave@indrehab.com","FIU Contract","2016-02-01","2020-01-31","2019-07-31","2019-10-01","2019-10-31",null,"OT PT",null,null,null,null,null,null,"Independence Rehab LLC"]
["Active","Infinite Behavioral Health","Hedgemond","Venus","ARNP","2421 Hollywood Blvd, Suite 1 & 2","Hollywood","FL",33020,"954-923-9111",null,"Facility Contract","2015-10-15","2025-01-01","2024-07-01","2024-09-01","2024-10-01",null,"Nursing",null,null,null,null,"Not in Umbrella",null,"Infinite Behavioral Health"]
["Active","In-House Rehabilitation Solutions - Name Changed To Ambassador Rehab See Genesis Rehab","Teal","Rae","COORDINATOR OF CLINICAL EDUCATOR","800 Concourse Pkwy South, Suite 200 ","Maitland","FL",32751,null,"RLTeall@inhousecaresolutions.com","Facility Contract","2008-03-01","2025-01-01","2024-07-01","2024-09-01","2024-10-01",null," OT, PT, CSD, AT, NUR",null,null,null,null,"Umbrella",null,"In-House Rehabilitations Solutions"]
["Active","Insight Provider Group, Inc ","Duretz","Alan","Owner",null,"Margate","FL",33063,null,null,"Facility Contract","2014-12-15","2025-01-01","2024-07-01","2024-09-01","2024-10-01",null,"Nursing",null,null,null,null,"Not in Umbrella"]
["Active","Institute of Health Services","Lakhani","Habeeb","MD","10031 Pines Blvd, Suite 103","Pembrole Pines","FL",33024,"954-442-3400","hlakhani@aol.com","Facility Contract","2016-01-06","2025-01-01","2024-07-01","2024-09-01","2024-10-01",null,"Nursing",null,null,null,null,null,null,"Institue of Health Services"]
["Active","Instituto De Terpia Ocupacional","Bolanos","Maria Cristina ","Director","Av. San Antonio 341-1 ","San Pedro De Los Pinos","Mexico",null,"55-63-00-86 ","cbolanos@ito-edu.org.mx","FIU Contract","2013-09-01","2025-01-01","2024-07-01","2024-09-01","2024-10-01",null,"OT",null,null,null,null,"Not in Umbrella",null,"Instituto de Terpia Occupational"]
["Active","Integra Rehabilitation Center","Pluchino","Alessandra","MD","3650 NW 82nd Avenue","Miami","FL",33166,"305-537-7227","apluchino@rehabintegra.com","FIU Contract","2008-09-01","2025-01-01","2024-07-01","2024-09-01","2024-10-01",null,"OT",null,null,null,null,"Not in Umbrella"]
["Active","Integra Rehabilitation Center","Pluchino","Alessandra","MD","3650 NW 82nd Avenue","Doral","FL",33166,"305-5377227","apluchino@rehabintegra.com","FIU Contract","2008-09-01","2025-01-01","2024-07-01","2024-09-01","2024-10-01",null,"PT",null,null,null,null,"Not in Umbrella"]
["Active","Integrando Y Aprendiendo Sac - Peru","Flores Rio","Jamie ","Administrator","Calle Beethoven 311","San Borja, Lima","Peru",null,null,"jefr_tmto@hotmail.com","FIU Contract","2012-11-01","2025-01-01","2024-07-01","2024-09-01","2024-10-01",null,"OT",null,null,null,null,"Not in Umbrella",null,"Integrando Y Aprecdiendo Sac"]
["Active","Integrated Children Therapy","Cabrera","Veronica",null,"2828 Coral Way Ste 103","Miami","FL",33145,"305-9789358","vcabrera@integratedChildrens.com","FIU Contract","2010-04-10","2025-01-01","2024-07-01","2024-09-01","2024-10-01",null,"OT",null,null,null,null,"Not in Umbrella",null,"Integrated Childrens Therapy"]
["Active","Integrated Physical Therapy","Cohen ","Craig","Owner","2142 NE 123rd St. ","North Miami","FL",33181,"305/967-8976","craig@IPTMiami.com","FIU Contract","2014-10-29","2025-01-01","2024-07-01","2024-09-01","2024-10-01",null,"PT",null,null,null,null,"Not in Umbrella",null,"Integrated Physical Therapy"]
["Active","Integrated Rehabilitation Center","Espinosa","Ana","President","5931 NW 173 Drive, Unit 10","Miami","FL",33015,"305.826-7884","interrehacen@aol.com","FIU Contract","2006-09-01","2025-01-01","2024-07-01","2024-09-01","2024-10-01",null,"OT",null,null,null,null,"Not in Umbrella"]
["Active","Interamerican Medical Center"," Pira","Julie",null,"multiple SF address","","FL",null,"305-455-3500",null,"FIU Contract","2013-08-01","2025-01-01","2024-07-01","2024-09-01","2024-10-01",null,"Nursing",null,null,null,null,"Not in Umbrella",null,"Interamerican Medical Center"]
["Active","Intermountain Health Care","Kamerath","Kara","Student Contracts Administrator","36 S State St, STE 1000","Salt Lake City","UT"," 84111-9704","801 442-3144","kara.kamerath@ihc.com","Facility Contract","2005-01-01","2025-01-01","2024-07-01","2024-09-01","2024-10-01",null,"OT",null,null,null,null,"Not in Umbrella",null,"IHC Health Services"]
["Active","Internal Medicine Associates Of Boca Raton"," Slotnik","David Lawrence","MD","1601 Clint Moore Rd","Boca Raton","FL",33487,null,null,"FIU Contract","2012-01-01","2025-01-01","2024-07-01","2024-09-01","2024-10-01",null,"Nursing",null,null,null,null,"Not in Umbrella"]
["Active","International Rehab & Professionals","Franklin Noel","Dehlia","President & Owner","17900 NW 5th St., Ste 103,Pines Prof.Campus","Pembroke Pines","FL",33029,"954-435-9905","drfranklin@internationaltherapy.com","FIU Contract","2012-09-01","2025-01-01","2024-07-01","2024-09-01","2024-10-01",null,"OT",null,null,null,null,"Not in Umbrella",null,"International Rehabilitation Professionals"]
["Active","International Rehab Professionals","Franklin","Dehlia","President & Dir of Rehab","17900 NW 5th St. Ste 103"," Pembroke Pines","FL",33029,"954/435-9905","drfranklin@internationaltherapy.com","FIU Contract","2012-09-01","2025-01-01","2024-07-01","2024-09-01","2024-10-01",null,"PT",null,null,null,null,"Not in Umbrella",null,"International Rehabilitation Professionals"]
["Active","Its For Kids","Graffeo","Eric","Director & Owner","4902 Creekside Drive, Ste A","Clearwater","FL",33760,"727 592-9100","itsforkids@aol.com","FIU Contract","2006-09-01","2025-01-01","2024-07-01","2024-09-01","2024-10-01",null,"OT",null,null,null,null,"Not in Umbrella"]
["Active","Jackson Memorial Hospital (Operated By Public Health Trust Of Miami-Dade County, Florida, Jackson North Medical Center, Jackson South Community Hospital","Meridy","Cheryl","Asst. Administrator Contracts and records Management","JACKSON MEMORIAL HOSPITAL\nCONTRACTS & RECORDS MANAGEMENT\nB069\n1611 NW 12 AVENUE","Miami","FL",33136,"305.585-7353","CMeriedy@jhsmiami.org","Facility Contract","2014-09-01","2018-01-01","2017-07-01","2017-09-01","2017-10-01",null,"OT, PT, CSD, NUR, DN, HSA, RT, SW, PH, PSY (Masters level)","X","X","X",null,"Umbrella",null,"Jackson Health"]
["Active","Jaffer Medical Group","Richardson","Laurie",null,"601 N Flamingo Rd","Pembroke Pines","FL",33028,null,null,"FIU Contract","2012-01-01","2025-01-01","2024-07-01","2024-09-01","2024-10-01",null,"Nursing",null,null,null,null,"Not in Umbrella"]
["Active","Jaguar Pt Rehab Name Change - See Force Physical Therapy","Herrera","Chris","owner","3305 Rice St.","Miami","FL",33133,"305/792-8393","jaguarpt@gmail.com","Amendment To FIU Contract","2014-01-01","2025-01-01","2024-07-01","2024-09-01","2024-10-01",null,"AT",null,null,null,null,"Not in Umbrella",null,"Jaguar PT Rehab "]
["Active","Jaller Raad, Inc ","Zayas","Alfredo","Administrator","710 SW 57 Avenue","Miami","FL",33144,"305 260-9177","zayas72ama@aol.com","FIU Contract","2007-03-01","2025-01-01","2024-07-01","2024-09-01","2024-10-01",null,"OT",null,null,null,null,"Not in Umbrella"]
["Active","James A. Haley Va Hospital","Barroso","Sonia","Education Specialist","13000 Bruce B. Downs Blvd.","Tampa","FL",33612,"813-972-2000 x4340","sonia.barrosa@va.gov","Facility Contract","2009-12-01","2025-01-01","2024-07-01","2024-09-01","2024-10-01",null,"OT",null,null,null,null,"Not in Umbrella"]
["Active","Jessie Trice Center For Community Health","Sawyers","Eleace ","Vp, Planning & Business","700 South Royal Poinicana Blvd., Suite 300","Miami","FL",33166,"305-805-1700","ESawyers@HCNetwork.org","FIU Contract","2015-03-18","2025-01-01","2024-07-01","2024-09-01","2024-10-01",null,"NUR HSA",null,null,null,null,"Not in Umbrella",null,"Jessie Trice Center for Community Health"]
["Inactive","JFK Medical Center","Thomas","Sharon","Contract Coordinator","5503 S Congress","Atlantis ","FL",33462,"561/548-8100","Sharon.Thomas@hcahealthcare.com","Facility ","2012-04-01","2014-03-30","2013-09-30","2013-11-30","2013-12-30",null,"Umbrella",null,null,null,null,null,null,"JFK Medical Center"]
["Active","Joaquin A. Gomez, M.D., PA","Gomez","Joaquin","MD","2760 SW 97th Avenue, Suite 105","Miami","FL",33165,"305-228-7120","joaquingomezmd@att.net","FIU Ccntract","2016-01-13","2021-01-12","2020-07-12","2020-09-12","2020-10-12",null,"Nursing",null,null,null,null,null,null,"Joaquin A. Gomez, M.D., PA"]
["Active","Joe Dimaggio Childrens Hospital (Under Memorial Healthcare Umbrella Agreement)","","",null,"1000 Joe DiMaggio Drive","Hollywood","FL","33021",null,null,"","","","","","",null,"PT",null,null,null,null,"Not in Umbrella"]
["Active","John Knox Village","Scharmann","Robert","President/CEO","651 SW 6th St. ","Pompano Beach","FL",33060,null,null,"FIU Contract","2014-08-04","2025-01-01","2024-07-01","2024-09-01","2024-10-01",null,"HAS",null,null,null,null,null,null,"John Knox Village 2014 HSA"]
["Active","Juan Blemill Fernandez","Fernandez","Juan Blemill ","M.D","13303 SW 42nd Street","Miami","FL",33175,"305-227-6497",null,"FIU Contract","2015-09-23","2025-01-01","2024-07-01","2024-09-01","2024-10-01",null,"Nursing",null,null,null,null,"Not in Umbrella",null,"Juan Blemill Fernandez, M.D."]
["Active","Jubilee Center Of South Broward, Inc","Curtis","Joyce"," Executive Director","1704 Buchanan Street","Hollywood","FL",33020,"(954) 922-7683",null,"FIU Contract","2001-01-01","2025-01-01","2024-07-01","2024-09-01","2024-10-01",null,"Nursing",null,null,null,null,"Not in Umbrella"]
["Active","Jumping Step by Step","Maccubin","Patricia","Director","8320 SW 16th St","Miami","FL",33144,"305/262-6868","patrygvm@gmail.com","FIU Contract","2014-10-27","2025-01-01","2024-07-01","2024-09-01","2024-10-01",null,"OT",null,null,null,null,null,null,"Jumping Step by Step"]
["Active","Jupiter Medical Center","Justine","Stacey","Director of Rehab Services","1210 S. Old Dixie Hwy","Jupiter","FL",33458,"561/744-4466","sjustine@jupitermed.com","Facility Contract","2013-10-01","2016-12-31","2016-07-01","2016-08-31","2016-10-01",null,"OT, PT ",null,null,null,null,"Umbrella",null,"Jupiter Medical"]
["Active","Kara Dodds and Associates","Dodds","Alisa","Clinic Director","7840 Mission Center court Ste 200","San Diego","CA",92108,"619/692-0622","Alisa@KaraDodds.com","FIU Contract","2016-02-10","2019-02-09","2018-08-09","2018-10-09","2018-11-09",null,"OT PT SP",null,null,null,null,null,null,"Kara Dodds and Associates"]
["Active","Kendall Hand And Physical Therapy","Jackson","Jim","Clinic Director","9415 Sunset Drive Ste 111","Miami","FL",33173,"786/507-8278","jjackson@theoppt.com","FIU Contract","2013-10-01","2025-01-01","2024-07-01","2024-09-01","2024-10-01",null,"PT  OT",null,null,null,null,"Umbrella",null,"Kendall Hand and PT"]
["Active","Kendall Regional Medical Center HCA","Escobar","Caridad","Administrative Assistant to CEO","EDUCATION DEPARTMENT\n11750 BIRD ROAD","Miami","FL",33175,"305/222-6759","caridad.escobar@hcahealthcare.com","Facility Contract","2015-04-21","2018-07-31","2018-01-31","2018-03-31","2018-05-01",null,"PT, NUR, DN, HSA, PH, Psych NPs",null,"X",null,null,"Umbrella"," (No Anesthesia Placements Until Further Notice 5/25/11)","Kendall Regional"]
["Active","Kendall Speech & Language Center","Nottoli","Wendy","Administrator","10725 SW 104 Street","Miami","FL",33176,"305 274-7883",null,"FIU Contract","2006-01-01","2025-01-01","2024-07-01","2024-09-01","2024-10-01",null,"OT",null,null,null,null,"Not in Umbrella"]
["Active","Kenilworth Care & Rehab (Signature Healthcare facility)","Ramos","Rafael","Contracts Paralegal","3011 Kenilworth Blvd","Sebring","FL",33870,"(863) 382-2153",null,null,"2012-03-01","2025-01-01","2024-07-01","2024-09-01","2024-10-01",null,"OT PT SP"]
["Active","Kessler Institute For Rehabilitation","Snowden","Lauren","Clinical Mgr, Co-Center Coordinator for Clinical Education","1199 Pleasant Valley Way","West Orange ","NJ",7052,"973/731-3600 x 2539","lsnowden@kessler-rehab.com","",null,"2025-01-01","2024-07-01","2024-09-01","2024-10-01",null,"OT  PT  RT","X",null,null,null,"Umbrella",null,"Kessler Inst for Rehab"]
["Active","Kessler Rehabilitation Ctr. S. Region","Joplin","Pam","Admin Assistant","600 El Paseo","Lakeland","FL",33805,"888-682-7199 x100",null,"FIU Contract","2003-02-01","2025-01-01","2024-07-01","2024-09-01","2024-10-01",null,"OT",null,null,null,null,"Not in Umbrella",null,"Kessler Rehabilitation Center South Region"]
["Active","Key Biscayne Physical Therapy","Yacoub","Ron","President ","240 Crandon Blvd. Ste 202","Key Biscayne","FL",33149,"786/464-5930",null,"","2013-02-06","2025-01-01","2024-07-01","2024-09-01","2024-10-01",null,"AT",null,null,null,null,"Not in Umbrella",null,"Key Biscayne PT"]
["Active","Kids In Distress","Badeaux","Terry",null,"819 NE 26th Street","Wilton Manors","FL",33305,"954-390-7620","terrybadeaux@kidsindistress.org","FIU Contract","2009-02-01","2025-01-01","2024-07-01","2024-09-01","2024-10-01",null,"OT",null,null,null,null,"Not in Umbrella"]
["Active","Kids R Kids","Furton","Kelly","Administrator","120 E. Oakland Prk Blvd. #102","Wilton Manors","FL",33334,"954/561-0058",null,"FIU Contract","2001-10-01","2025-01-01","2024-07-01","2024-09-01","2024-10-01",null,"OT",null,null,null,null,"Not in Umbrella",null,"Kids R Kids"]
["Active","Kids Sp.P.O.T","Bouchereau","Annie","President","1955 N. Federal Hwy Ste 253 (alternate site in Hollywood)","Pompano Beach","FL",33062,"954/925-0136","anniept@bellsouth.net","FIU Contract","2016-04-11","2021-04-10","2020-10-10","2020-12-10","2021-01-10",null,"OT PT SP",null,null,null,null,null,null,"Kids SPOT"]
["Active","Kids Therapy Network","Panagopoulos","Chene",null,"5991 Parkway N. Blvd, Ste A","Cumming","GA",30040,"770-205-5551",null,"FIU Contract","2008-12-01","2025-01-01","2024-07-01","2024-09-01","2024-10-01",null,"OT",null,null,null,null,"Not in Umbrella"]
["Active","Kids Therapy Works","Waldrop","Karen","Owner","3500 Powerline Rd","Oakland Park","FL",33309,"954/599-4185","ktowry@me.com","FIU Contract","2011-04-01","2025-01-01","2024-07-01","2024-09-01","2024-10-01",null,"CSD "]
["Active","Kidz Connection","Heldenmuth","Tracy","DIRECTOR","1897 NE 146TH ST.","Miami","FL",33181,"305-949-4191","tbheldcmsn.com","FIU Contract","2010-11-10","2025-01-01","2024-07-01","2024-09-01","2024-10-01",null,"OT, PT, CSD",null,null,null,null,"Umbrella",null,"Kidz Connection"]
["Active","Kidz Korner","Horin","Michelle","OT Director","220 Eglin Pkwy SE ","Ft Walton Beach","FL",32548,"850/543-6227","kidzkornerot@gmail.com","FIU Contract","2013-05-01","2025-01-01","2024-07-01","2024-09-01","2024-10-01",null,"OT",null,null,null,null,"Not in Umbrella",null,"Kidz Korner"]
["Active","Kidz Medical Services","Valdivia","Ana","ARNP","6280 SW 72nd St., Ste 607","Miami","FL",33143,"305/668-0075",null,"FIU Contract","2014-05-01","2025-01-01","2024-07-01","2024-09-01","2024-10-01",null,"Nursing",null,null,null,null,"Not in Umbrella"]
["Active","Kidz Therapy Services","Pliscofsky","Gail","OT Supervisor","300 Garden City Plaza, Ste #350","Garden City","NY",11530,"516 747-9030",null,"FIU Contract","2005-08-01","2025-01-01","2024-07-01",{"$f":"IF(N452<>\"\",DATE(YEAR(N452),MONTH(N452)-4,DAY(N452)),\"\")","v":"2024-09-01"},{"$f":"IF(N452<>\"\",DATE(YEAR(N452),MONTH(N452)-3,DAY(N452)),\"\")","v":"2024-10-01"},null,"OT",null,null,null,null,"Not in Umbrella",null,"Kidz Therapy Services "]
["Active","Kindred Hospitals (See Rehab Care)","Belgeri","Annie","Student Program Mgr","Facilities nationwide","Eastern US Regions",null,null,"800/677-1202 x 2131",null,"","2013-02-02","2025-01-01","2024-07-01","2024-09-01","2024-10-01",null,"NUR OT SP PT SW Health care fields",null,null,null,null,"Not in Umbrella"]
["Active","Kinetic Kids, Inc ","Gober","Jennifer ","Founder/Directtor","1000 West Ave #1311","Miami Beach","FL",33139,"305/778-9198","jgober01@hotmail.com","FIU Contract","2013-10-01","2025-01-01","2024-07-01","2024-09-01","2024-10-01",null,"OT  PT  CSD RT","X",null,null,null,"Umbrella",null,"Kinetic Kids Inc"]
["Active","King's County Hospital","Crick","Neville","DEPARTMENT OF REHAB MEDICINE","451 CLARKSON AVE","Brooklyn","NY","11203","718.245-7298",null,"Facility Contract","2002-07-01","2025-01-01","2024-07-01","2024-09-01","2024-10-01",null,"PT",null,null,null,null,"Not in Umbrella"]
["Active","Kraig Schultz/Krs Pediatric Therapy","Schultz","Kraig","Owner","2519 N Ocean Blvd, #303","Boca Raton","FL",33431,"561.378-0986",null,"FIU Contract","2000-04-01","2025-01-01","2024-07-01","2024-09-01","2024-10-01",null,"OT",null,null,null,null,"Not in Umbrella"]
["Active","La Colonia Medical Center ","Ramirez","Yeimi","HR Manager","Multiple location throughout Miami","Hialeah","FL",33310,null,null,"Facility Contract","2015-08-25","2025-01-01","2024-07-01","2024-09-01","2024-10-01",null,"Nursing",null,null,null,null,"Not in Umbrella",null,"La Colonia Medical Center"]
["Active","La Salle High School","","",null,"3601 South Miami Avenue","Miami","FL",33133,null,null,"FIU Contract","2009-08-01","2025-01-01","2024-07-01","2024-09-01","2024-10-01",null,"AT",null,null,null,null,"Not in Umbrella"]
["Active","Lamperts Therapy Group","Lampert","Harold","owner","8254 118th Ave N., Ste 100","Largo","FL",33773,"727/541-5304","harold@lampertstherapy.com","FIU Contract","2014-08-01","2025-01-01","2024-07-01","2024-09-01","2024-10-01",null,"OT",null,null,null,null,"Not in Umbrella"]
["Active","Larkin Community Hospital","Fernandez","Manuel","VP of Nursing","703 SW 62nd Ave","Miami","FL",33143,"305/740-3353",null,"FIU Contract Amendment","2013-09-01","2025-01-01","2024-07-01","2024-09-01","2024-10-01",null,"OT, PT, CSD, HSA, NUR",null,null,null,null,"Umbrella",null,"Larkin Hospital"]
["Active","Lavie Rehab Previously Salus Rehabilitation Llc) See 2009 Genesis Agreement","Boodram","Diane","EXECUTIVE DIRECTOR","10210 Highland Manor Drive, Suite 290","Tampa","FL",33610,"866-400-4557","t dkendrick@lavierehab.com","Facility Contract","2010-04-10","2025-01-01",{"$f":"IF(N461<>\"\",DATE(YEAR(N461),MONTH(N461)-6,DAY(N461)),\"\")","v":"2024-07-01"},"2024-09-01","2024-10-01",null,"OT, PT, CSD",null,null,null,null,"Umbrella",null,"LaVie Rehab"]
["Active","Lawnwood Regional Medical Center HCA","Sherwood","Dee",null,"1700 S 23rd St.","Ft. Pierce","FL",34950,"772/7468-4507","Dee.Sherwood@HCAHealthcare.com","Facility Contract","2014-11-01","2016-10-01","2016-04-01","2016-06-01","2016-07-01",null,"OT",null,null,null,null,"Not in Umbrella",null,"Lawnwood Regional Medical Center"]
["Active","Lee County Health Dept","MacKellar","Mary","Exec Comm Hlt Nurs Dir","3920 Michigan Ave","Fort Myers","FL","33916-2298","239/332-9569","Mary_MacKellar@doh.state.fl.us","Facility","2006-01-09","2025-01-01","2024-07-01","2024-09-01","2024-10-01",null,"NUR",null,null,null,null,null,null,"Lee County Health Dept"]
["Active","Lee Memorial Health System","Mattis","Kathleen","Assistant to Director of Medical Education","2780 Cleveland Ave Ste 709","Ft. Myers","FL",33902,"239/343-2396","kathleen.mattis@leememorial.org","Facility Contract","2014-11-01","2018-02-01","2017-08-01","2017-10-01","2017-11-01",null,"OT PT",null,null,null,null,"Umbrella",null,"Lee Memorial"]
["Active","Leesburg Regional Medical Center","Kimball"," Marlene",null,"600 East Dixie Ave","Leesburg","FL",34748,"352-323-5552","Mkimball@leesburgregional.com","FIU Contract","2006-09-01","2025-01-01","2024-07-01","2024-09-01","2024-10-01",null,"OT",null,null,null,null,"Not in Umbrella",null,"Leesburg Regional Medical Center"]
["Active","Leesburg Regional Medical Center (Central Florida Health Alliance) Umbrella","Lammers","Lynn","Records & Compliance","700 North Palmetto St.","Leesburg","FL",34748,"352/323-4141","llammers@cfhalliance.org","FIU Contract","2014-09-03","2025-01-01","2024-07-01","2024-09-01","2024-10-01",null,"PT",null,null,null,null,"Not in Umbrella",null,"Leesburg Regional"]
["Active","Leslie F Coughlan Primary Health And Care","Coughlan","Leslie",null,"2623 S Seacrest Blvd Ste 116","Boynton Beach","FL",33435,"561-509-6109","leslie@leslieno.com","FIU Contract","2014-06-01","2025-01-01","2024-07-01","2024-09-01","2024-10-01",null,"Nursing",null,null,null,null,"Not in Umbrella"]
["Active","Life Care Centers Of America, Inc ","Vaughn","Brenda","CONTRACT SPECIALIST","3001 KEITH ST.","Cleveland ","TN",37312,"423/473-5871","Brenda_Vaugh@LCCA.com","Facility Contract","2009-11-01","2025-01-01","2024-07-01","2024-09-01","2024-10-01",null,"OT, PT CSD, NUR",null,null,null,null,"Umbrella",null,"Life Care Centers Inc"]
["Active","Lifebridge -Sinai Hospital Of Baltimore","Tasoulis","Sophia","OT Fieldwork Coordinator","2401 West Bekvedere Ave; Mt. Pleasant Bldg II","Baltimore ","MD",21215,"401-601-5142","stasouli@lifebridgehealth.org","Facility Contract","2010-01-01","2025-01-01","2024-07-01","2024-09-01","2024-10-01",null,"OT, PT ",null,null,null,null,"Umbrella"]
["Active","Light Of The World Clinic"," Vasquez","Erwin","Medical Director","910 NE 62nd Street","Ft. Lauderdale","FL",33334,"(954) 938-0401",null,"FIU Contract","1998-08-01","2025-01-01","2024-07-01","2024-09-01","2024-10-01",null,"Nursing",null,null,null,null,"Not in Umbrella"]
["Active","Lighthouse Of Broward","Moser","Valerie","Manager of Children's Program","650 No. Andrews Ave","Ft. Lauderdale","FL",33311,"954 463-4217","vmoser@lhob.org","FIU Contract","2006-03-01","2025-01-01","2024-07-01","2024-09-01","2024-10-01",null,"OT",null,null,null,null,"Not in Umbrella",null,"Lighthouse of Broward"]
["Inactive","Little Hands Occupational Therapy Inc  Only Mar-Dec 2014","Perelmuter","Gabrielle","Clinical Director","500 Tamal Plaza Ste 527","Corte Madera","CA",94925,"415/531-3027",null,"",null,null,"","","",null,"OT",null,null,null,null,"Not in Umbrella",null,"Little Hands Occupational Therapy Inc"]
["Active","Little Steps Rehabilatation, Inc ","Torres","Teycha","OT SUPERVISOR","2265 NE 164TH ST.","North Miami","FL",33160,"305/949-7665","Ttorres@LittleStepsRehab.com","FIU Contract","2010-10-01","2025-01-01","2024-07-01","2024-09-01","2024-10-01",null,"OT, PT, CSD",null,null,null,null,"Umbrella",null,"Little Steps Rehab"]
["Active","Los Angeles Unified School District","Gibson","Martha","Fieldwork Coordinator","17551 Miranda Street","Encino","CA",91316,"818-342-2118","mjg1939@lausd.net","FIU Contract","2008-02-01","2025-01-01","2024-07-01","2024-09-01","2024-10-01",null,"OT",null,null,null,null,"Not in Umbrella"]
["Active","Lower Keys Medical Center","Will","Nicki","CEO","5900 COLELGE RD","Key West","FL",33040,"305-292-5872","Catherine.Ghioto@hma.com","Facility Contract","2009-11-09","2025-01-01","2024-07-01","2024-09-01","2024-10-01",null,"OT, PT ",null,null,null,null,"Umbrella"]
["Active","Lucerne Medical Center (Under Orlando Regional Healtcare Contract)","Meyer","Lindsay","College of Medicine Siebens 5","200 First STr. SW","Rochester","MN",null,null,null,"Facility Contract",null,"2016-04-01","2015-10-01","2015-12-01","2016-01-01",null,"OT",null,null,null,null,"Not in Umbrella"]
["Active","Lutheran Services Florida","Paula","Tamara","Director","16201 SW 95th Ave. Ste 300","Miami","FL",33157,"305-969-8700",null,"FIU Contract","2002-07-01","2025-01-01","2024-07-01","2024-09-01","2024-10-01",null,"OT",null,null,null,null,"Not in Umbrella",null,"Lutheran Services Florida"]
["Active","M.E.G. Therapies LLC","Balkenbush","Megan","Owner","600 NE 36th St. Ste 1417","Miami ","FL",33137,"786/201-2426","mbalk001@live.com","FIU Contract","2013-11-01","2025-01-01","2024-07-01","2024-09-01","2024-10-01",null,"OT",null,null,null,null,null,null,"MEG Therapies LLC"]
["Active","Mailman Segal Institute / Baudhuin Pre School","Perez","Belinda","MOT, OTR/L","NOVA SOUTHEASTERN UNIVERSITY 3301 College Ave.","Ft. Lauderdale","FL",33314,"954.262-6900",null,"FIU Contract","2009-08-01","2025-01-01","2024-07-01","2024-09-01","2024-10-01",null,"OT",null,null,null,null,"Not in Umbrella"]
["Active","Making A Difference For You, Inc ","Bethel","Karen","ARNP",null,"Pembroke Pines","FL",33026,null,null,"Facility Contract","2014-12-11","2025-01-01","2024-07-01","2024-09-01","2024-10-01",null,"Nursing",null,null,null,null,"Not in Umbrella"]
["Active","Manatee Memorial Hospital","Hodges","Sarah","Administrator ","206 Second Street East","Bradenton","FL",34208,"941 746-5111",null,"FIU Contract","2005-04-01","2025-01-01","2024-07-01","2024-09-01","2024-10-01",null,"OT",null,null,null,null,"Not in Umbrella"]
["Active","Manor Care - Heartland Healthcare (Multiple Facilities-Cities) See Hcr Healthcare Umbrella","Julie","Fought",null,"333 N. Summit Street, 15th Floor","Toledo","OH",43604,"419-252-5655","jfought@hcr-manorcare.com","Facility Contract","2007-01-01","2025-01-01","2024-07-01","2024-09-01","2024-10-01",null,"OT PT",null,null,null,null,"Not in Umbrella"]
["Active","Manor Medical Associates","Keisha","",null,null,"Fort Lauderdale","FL",33311,null,null,"FIU Contract","2015-02-23","2025-01-01","2024-07-01","2024-09-01","2024-10-01",null,"Nursing",null,null,null,null,"Not in Umbrella"]
["Active","Manuel D. Gonzalez, M.D. - Office","Gonzalez","Manuel","MD","721 NW 12st Court, Suite 100","Miami","FL",33125,"786-261-8872",null,"FIU Contract","2016-01-12","2021-01-11","2020-07-11","2020-09-11","2020-10-11",null,"Nursing",null,null,null,null,null,null,"Manuel D. Gonzalez, M.D. - Office"]
["Active","Manuel Garcia-Frangie, M.D., P.A.","Garcia-Frangie","Manuel-Garcia","MD","1321 NW 14th Street, Suite 400","Miami","FL",33125,"305-326-3343",null,"FIU contract","2015-09-11","2025-01-01","2024-07-01","2024-09-01","2024-10-01",null,"Nursing",null,null,null,null,"Not in Umbrella",null,"Manuel Garcia-Frangie, M.D., P.A."]
["Active","Margate Health and Rehab Center - Gulf Coast Healthcare","Farinella","Tony","Manager of Transitional Care","5951 Colonial Drive","Margate","FL",33063,"954/540-3496","tfarinella@gchc.com","FIU Contract","2016-01-01","2017-12-31","2017-07-01","2017-08-31","2017-10-01",null,"NUR",null,null,null,null,null,null,"Margate Health and Rehab Center"]
["Active","Martin Health System","Roy","Jessica","HR coordinator","200 SW Hospital Ave","Stuart","FL","34994-2346","772/223-5945 x 1478","Jessica.Roy@martinhealth.org","Facility Contract","2014-01-01","2025-01-01","2024-07-01","2024-09-01","2024-10-01",null,"Nursing",null,null,null,null,"Not in Umbrella",null,"Martin Health"]
["Active","Martin L Carrillo Physical Therapy","Carrillo","Martin","Owner","118 SW 27th Ave ","Miami","FL",33135,"305/801-2139","carrillo1@bellsouth.net","FIU Contract","2015-09-01","2025-01-01","2024-07-01","2024-09-01","2024-10-01",null,"PT",null,null,null,null,null,null,"Martin L Carrillo Physical Therapy"]
["Active","Martin Memorial Health System","Raos","Rachel","MEDIA & EDUCATION SPECIALIST","300 SE HOSPITAL AVE., I/P  REHAB 3 EAST","Stuart","FL","34994","772.223-5945 X3096","rraos@mmhs-fla.org","FIU Contract","2004-03-01","2025-01-01","2024-07-01","2024-09-01","2024-10-01",null,"PT",null,null,null,null,"Not in Umbrella"]
["Active","Mayo Clinic Rochester","Hanson","Julie","Administrative Assistant","200 First Street SW","Rochester","MN",55905,"507.266-2200","hanson.julie1@mayo.edu","Complete-Auto Renew","2006-06-01","2016-04-01","2015-10-01","2015-12-01","2016-01-01",null,"OT",null,null,null,null,"Not in Umbrella"]
["Active","Mayo Clinic Rochester","Boyd","Joanna","Education Admin Coordinator","200 First St SW","Rochester","MN",55905,"507/238-6542","boyd.joanna@mayo.edu","Facility Contract","2013-06-13","2018-05-01","2017-11-01","2018-01-01","2018-02-01",null,"PT",null,null,null,null,"Not in Umbrella",null,"Mayo Clinic Rochester"]
["Active","MCCI Medical Group","Plasencia","Alexandra",null,"Various facilities in Miami Dade, Broward, and Palm Beach Counties","Miami Dade, Broward And Palm Beach Counties","FL",null,"305/662-5200",null,"","2013-04-01","2025-01-01","2024-07-01","2024-09-01","2024-10-01",null,"Nursing",null,null,null,null,"Not in Umbrella",null,"MCCI"]
["Active","Med Plan Clinics","Montes","Robert","CEO","mulitple locations","Miami & Hialeah","FL",null,"305/262-1610","montes@floridamedplan.com","FIU Contract","2014-06-01","2025-01-01","2024-07-01","2024-09-01","2024-10-01",null,"Nursing",null,null,null,null,"Not in Umbrella"]
["Active","Medical Care Group","Charles ","Shawna","Ph.D","4431 SW 64th Avenue; Suite 101","Davie","FL",33314,"954/791-5500","sstcharl@fiu.edu","Facility Contract","2016-03-31","2021-03-30",{"$f":"IF(N494<>\"\",DATE(YEAR(N494),MONTH(N494)-6,DAY(N494)),\"\")","v":"2020-09-30"},{"$f":"IF(N494<>\"\",DATE(YEAR(N494),MONTH(N494)-4,DAY(N494)),\"\")","v":"2020-11-30"},{"$f":"IF(N494<>\"\",DATE(YEAR(N494),MONTH(N494)-3,DAY(N494)),\"\")","v":"2020-12-30"},null,"Nursing",null,null,null,null,"Not in Umbrella",null,"Medical Care Group"]
["Active","Medical Care Of Women's Ob/Gyn","Liburd","Marie Carmelle","MD","1190 NW 95th St. Ste 105","Miami","FL",33150,"305/696-9400","carmelleliburd@yahoo.com","FIU Contract","2014-01-01","2025-01-01","2024-07-01","2024-09-01","2024-10-01",null,"Nursing",null,null,null,null,"Not in Umbrella"]
["Active","Medi-Nurse Behavioral Health","","",null,"2800 W Oakland Park Blvd, Suite 206","Ft. Lauderdale","FL",33311,"(954) 484-0051",null,"FIU Contract","2000-07-01","2025-01-01","2024-07-01","2024-09-01","2024-10-01",null,"Nursing",null,null,null,null,"Not in Umbrella"]
["Active","Melbourne Terrace Rehabiliation Center","Lynn","Kelly","OTR/L","251 Florida Avenue","Melbourne","FL",32901,"321-725-3990","klynn@melbourneterracerehab.com","FIU Contract","2008-12-01","2025-01-01","2024-07-01","2024-09-01","2024-10-01",null,"OT",null,null,null,null,"Not in Umbrella"]
["Active","Memorial Health System","Luongo","Suzanne",null,"3711 Garfield Street","Hollywood","FL",33021,"954-987-2020 ext. 5452","SLuongo@mhs.net","Facility Contract","2007-08-01","2025-01-01","2024-07-01","2024-09-01","2024-10-01",null,"Nursing",null,null,null,null,"Not in Umbrella",null,"Memorial Healthcare"]
["Active","Memorial Healthcare (Memorial Regional Hospital South, Hollywood Medical Center, Memorial West-Pemproke-Miramar-Joe Dimaggio","Luongo","Suzanne","CLINICAL EDUCATION MANAGER also Isabel Cano, Support Analyst, 954-276-5278, icano@mhs.net","3051 COMMERCE WAY","Miramar","FL",33025,"954-276-5288","SLuongo@mhs.net","Facility Contract","2007-04-01","2025-01-01","2024-07-01","2024-09-01","2024-10-01",null,"OT, PT, RT, DN, SW","X","X",null,null,"Umbrella",null,"Memorial Healthcare   "]
["Inactive","Memorial Hospital 1999 and earlier (Archive)",null,null,null,null,null,null,null,null,null,null,null,null,"","","",null,null,null,null,null,null,null,null,"Memorial Hospital files 1999 and earlier"]
["Active","Memorial Hospital For Cancer & Allied Diseases (Sloan Kettering)","Espiritu","Noel","REHABILITATION DEPARTMENT","1275 YORK AVENUE","New York","NY","10021","212/639-7833","espiritn@mskcc.org","Facility Contract","2015-03-19","2025-01-01","2024-07-01","2024-09-01","2024-10-01",null,"PT OT",null,null,null,null,"Not in Umbrella",null,"Memorial Sloan Kettering"]
["Active","Mercy Hospital HCA","Urbina","Maria","Contracts Administrator","3663 South Miami","Miami","FL",33133,"305-285-2744","Maria.Urbina2@hcahealthcare.com","Facility Contract","2016-01-01","2018-12-31","2018-07-01","2018-08-31","2018-10-01",null,"CSD",null,"X",null,null,"Not in Umbrella",null,"Mercy Hospital "]
["Active","Mercy Hospital HCA","Urbina","Maria","Contracts Administrator","3663 South Miami","Miami","FL",33133,"305-285-2744","Maria.Urbina2@hcahealthcare.com","Facility Contract","2016-01-01","2018-12-31","2018-07-01","2018-08-31","2018-10-01",null,"DN",null,"X",null,null,"Not in Umbrella",null,"Mercy Hospital "]
["Active","Mercy Hospital HCA","Urbina","Maria","Contracts Administrator","3663 South Miami","Miami","FL",33133,"305-285-2744","Maria.Urbina2@hcahealthcare.com","Facility Contract","2016-01-01","2018-12-31","2018-07-01","2018-08-31","2018-10-01",null,"NUR",null,"X",null,null,"Not in Umbrella",null,"Mercy Hospital "]
["Active","Mercy Hospital HCA","Urbina","Maria","Contracts Administrator","3663 South Miami","Miami","FL",33133,"305-285-2744","Maria.Urbina2@hcahealthcare.com","Facility Contract","2016-01-01","2018-12-31","2018-07-01","2018-08-31","2018-10-01",null,"OT",null,"X",null,null,"Not in Umbrella",null,"Mercy Hospital "]
["Active","Mercy Hospital HCA","Urbina","Maria","Contracts Administrator","3663 South Miami","Miami","FL",33133,"305-285-2744","Maria.Urbina2@hcahealthcare.com","Facility Contract","2016-01-01","2018-12-31","2018-07-01","2018-08-31","2018-10-01",null,"PT",null,"X",null,null,"Not in Umbrella",null,"Mercy Hospital "]
["Active","Mercy Hospital HCA","Urbina","Maria","Contracts Administrator","3663 South Miami","Miami","FL",33133,"305-285-2744","Maria.Urbina2@hcahealthcare.com","Facility Contract","2016-01-01","2018-12-31","2018-07-01","2018-08-31","2018-10-01",null,"SW",null,"X",null,null,"Not in Umbrella",null,"Mercy Hospital "]
["Active","Mercy Medical Center - Iowa","Weber","Lou Ann","OTR/L","701 10th Street SE","Cedar Rapis","IA",null,null,"lweber@mercycare.org","FIU Contract","2008-10-01","2025-01-01","2024-07-01","2024-09-01","2024-10-01",null,"OT",null,null,null,null,"Not in Umbrella"]
["Active","Mercy Medical Center - Ohio","Hallgren","Cynthia","PT, MBA, CCCE","1320 MERCY DRIVE NW","Canton","OH",44708,"330-489-1135","cynthia.hallgren@csauh.com","FIU Contract","2008-08-01","2025-01-01","2024-07-01","2024-09-01","2024-10-01",null,"PT",null,null,null,null,"Not in Umbrella"]
["Active","Mercy Medical Center- Iowa","Lou Ann","Weber","OTR/L ","701 10TH STREET SE","Cedar Rapids","IA",52403,null,"lweber@mercycare.org","FIU Contract","2008-10-01","2025-01-01","2024-07-01","2024-09-01","2024-10-01",null,"PT",null,null,null,null,"Not in Umbrella"]
["Active","Mercy Medical Center NY","Abolafia","Sandy","PTA, CCCE","1000 North Village Avenue, Rockville Centre","New York","NY",11570,"516.705-2525","Lynn.Winter@chsli.org","Facility Contract","2005-05-01","2025-01-01","2024-07-01","2024-09-01","2024-10-01",null,"OT",null,null,null,null,"Not in Umbrella",null,"Mercy Medical Center NY"]
["Active","Metrohealth System Ohio","Mcdonald","Brad","Long Term Care Rehab Coord.","2500 MetroHealth Dr.","Cleveland ","OH",44109,"216/957-8139","bmcdonald@metrohealth.org","Facility Contrct","2013-05-01","2018-12-01","2018-06-01","2018-08-01","2018-09-01",null,"OT",null,null,null,null,"Not in Umbrella",null,"Metro Health System"]
["Active","MHAASA Mental Health And Anti Addiction Svc Admin - Puerto Rico","Malaret Yordan","Iliana","Esquire","Carr. No. 2 Km 8.2 Bo. Juan Sandchez Antiguo Hopsital Mepsi Center","Bayarmon ","PR",960,"787/763-7575 x 1249","jmalaret@assmca.pr.giv","FIU Contract","2013-10-01","2025-01-01","2024-07-01","2024-09-01","2024-10-01",null,"OT",null,null,null,null,"Not in Umbrella",null,"MHAASA Puerto Rico"]
["Active","Miami Behavioral Health","Rudes","Nancy ",null,"11031 NE Sixth Ave.","Miami","FL",33161,"305/398-6182 (direct line), 305/398-6100 (office) ","Nrudes@spectrumprograms.org ","FIU Contract","2012-01-01","2025-01-01","2024-07-01","2024-09-01","2024-10-01",null,"Nursing",null,null,null,null,"Not in Umbrella",null,"Miami Behavioral Health"]
["Active","Miami Behavioral Health Center, Inc  (Same As Spectrum)","Bohns","Rhonda","VP-Research Development","11031 ne 6th ave","Miami","FL",33161,"305-757-0602","rbohs@spectrumprograms.org","FIU Contract","2007-03-01","2025-01-01","2024-07-01","2024-09-01","2024-10-01",null,"OT",null,null,null,null,"Not in Umbrella",null,"Miami Behavorial Health "]
["Active","Miami Bridge Youth And Family Services, Inc ","Andrews","Mary","CEO","2810 NW South River Drive","Miami","FL",33125,"305/636-3510","mandrews@miamibridge.org","FIU Contract","2012-06-01","2025-01-01","2024-07-01","2024-09-01","2024-10-01",null,"PT   OT",null,null,null,null,"Umbrella",null,"Miami Bridge"]
["Active","Miami Cerebral Palsy Residential Inc","Morin","Marta","Executive Director","2200 NW 107 Avenue","Miami","FL",33172,"305 599-0899","sue.gallagher@ucpsouthflorida.org","FIU Contract","2005-07-01","2025-01-01","2024-07-01",{"$f":"IF(N517<>\"\",DATE(YEAR(N517),MONTH(N517)-4,DAY(N517)),\"\")","v":"2024-09-01"},{"$f":"IF(N517<>\"\",DATE(YEAR(N517),MONTH(N517)-3,DAY(N517)),\"\")","v":"2024-10-01"},null,"OT",null,null,null,null,"Not in Umbrella",null,"Miami Cerebral Palsy Residential Services"]
["Active","Miami Cerebral Palsy Residential Services","Hassell","Kellen","Administrator","14400 SW 32nd St.","Miami","FL",33172,"305/962-0754","kellen@ucpsouthflorida.org","FIU Contract","2013-12-01","2025-01-01","2024-07-01","2024-09-01","2024-10-01",null,"OT  HSA",null,null,null,null,"Umbrella",null,"Miami Cerebral Palsy Residential"]
["Active","Miami Cerebral Palsy Residential, Inc ","Gold","Cassie",null,"2200 NW 107 AVENUE","Miami","FL",33172,null,null,"Facility Contract","2005-07-01","2025-01-01","2024-07-01","2024-09-01","2024-10-01",null,"PT",null,null,null,null,"Not in Umbrella"]
["Active","Miami Community Health Center","Perez","Luisa","Office Mgr","2324 W 8th St.","Miami","FL",33135,"305/643-0535",null,"FIU Contract","2012-04-01","2025-01-01","2024-07-01","2024-09-01","2024-10-01",null,"Nursing",null,null,null,null,"Not in Umbrella"]
["Active","Miami Dade AHEC","Gomez","Tom","Director","1200 NW 78th Ave, Ste 209","Miami","FL",33126,"917/304-7149","tgomez@brainshield.com","FIU Contract","2013-01-01","2025-01-01","2024-07-01","2024-09-01","2024-10-01",null,"Nursing",null,null,null,null,"Not in Umbrella"]
["Active","Miami Dade College","Ferrer","Armando","CAMPUS PRESIDENT","11011 SW 104th St.","Miami  ","FL",33176,null,null,"FIU Contract","2010-06-01","2025-01-01","2024-07-01","2024-09-01","2024-10-01",null,"AT",null,null,null,null,"Not in Umbrella",null,"Miami Dade College AT"]
["Active","Miami Dade College","De La Torre","Rosa ",null,"950 NW 20th Street, Room 1360","Miami","FL",33127,"(305) 237-4330",null,"Facility Contract","2004-02-01","2025-01-01","2024-07-01","2024-09-01","2024-10-01",null,"Nursing",null,null,null,null,"Not in Umbrella"]
["Active","Miami Dade County Dept of Health","Shingles","J.D.","Contract Manager","8323 NW 12TH STREET, Ste 214","Miami","FL",33126,"786-845-0358","JD_Shingles@doh.state.fl.us","Facility Contract","2015-12-01","2020-11-30","2020-05-30","2020-07-30","2020-08-30",null,"OT, PT, NUR, CSD, DN, SW, PSY, RT, PH","X","X","X",null,"Umbrella",null,"FL DOH Miami Dade County"]
["Active","Miami Hand & Upper Extremity Institute","Stennett","Charleen","Director, Rehab Svcs","8905 SW 87th Ave ","Miami","FL",33176,"305/667-8686","charleen@thehandinstitute","FIU Contract","2013-09-01","2025-01-01","2024-07-01","2024-09-01","2024-10-01",null,"OT",null,null,null,null,"Not in Umbrella",null,"Miami Hand and Upper Extremity"]
["Active","Miami Hand Center","Stennett","Charleen","Administrator ","8905 SW 87th Avenue  #100","Miami","FL",33176,"305-595-0855 x 1219",null,"FIU Contract","2005-04-01","2025-01-01",{"$f":"IF(N526<>\"\",DATE(YEAR(N526),MONTH(N526)-6,DAY(N526)),\"\")","v":"2024-07-01"},"2024-09-01","2024-10-01",null,"OT",null,null,null,null,"Not in Umbrella",null,"Miami Hand"]
["Inactive","Miami Heart Institute","Oyarzun","Natasha","Admin","4701 Meridan Ave","Miami Beach","FL",33140,"305/672-1111",null,"Facility","1998-06-15","2025-01-01","2024-07-01","2024-09-01","2024-10-01",null,"MRA",null,null,null,null,null,null,"Miami Heart Institute"]
["Active","Miami Jewish Health Systems","Blair-Harmon","Kathleen","Contract Coordinator","5200 NE 2ND AVE","Miami","FL",33137,"305/751-8626 x2404","Kblair-Harmon@mjhha.org","Facility Contract","2013-02-01","2017-05-20","2016-11-20","2017-01-20","2017-02-20",null,"OT, PT, CSD, NUR",null,null,null,null,"Umbrella",null,"Miami Jewish Health System"]
["Active","Miami Jewish Health Systems","Blair-Harmon","Kathleen","Clinical Educator","5200 NE 2nd Ave","Miami","FL",33137,"305/751-8626 x 2404","Kblair-Harmon@mjhha.org","Facility Contract","2015-08-25","2017-04-01","2016-10-01","2016-12-01","2017-01-01",null,"Umbrella",null,null,null,null,null,null,"Miami Jewish Health Systems"]
["Active","Miami Joint Reconstruction Institute","Oliva ","Rafael","DIRECTOR","11801 SW 90TH ST. ","Miami","FL",33186,"305/595-5230","physicaltherapy@miamijoints.com","FIU Contract","2012-02-01","2025-01-01","2024-07-01","2024-09-01","2024-10-01",null,"PT",null,null,null,null,"Not in Umbrella",null,"Miami Joint Reconstruction"]
["Active","Miami Lighthouse For The Blind","Fernandez","Maria","Occ Therapist","601 SW 8th Avenue","Miami","FL",33130,"308-856-2288","mfernandez@miamilighthouse.org","FIU Contract","2007-07-01","2025-01-01","2024-07-01","2024-09-01","2024-10-01",null,"OT",null,null,null,null,"Not in Umbrella",null,"Miami Lighthouse for the Blind"]
["Active","Miami OB / GYN","Guell","Gregory","MD","3659 South Miami Avenue, Suite 5001, 5002, 5005","Miami","FL",33133,"305-854-2899",null,"Facility Contract","2015-10-15","2025-01-01","2024-07-01","2024-09-01","2024-10-01",null,"Nursing",null,null,null,null,"Not in Umbrella",null,"Miami OB / GYN"]
["Active","Miami Personal Management (MPM)","Hernandez","Nelson","MD","7575 West Flagler Street, Suite 200-A","Miami","FL",33144,"305-854-7952",null,"Facility Contract","2016-01-29","2021-01-28","2020-07-28","2020-09-28","2020-10-28",null,"Nursing",null,null,null,null,null,null,"Miami Personal Management (MPM)"]
["Active","Miami Physical Therapy Group","Garcia","Lania","Clinical Director","1797 Coral Way","Miami","FL",33145,"305/859-2454","lania@maimiphysicaltherapygroup.com","FIU Contract","2011-03-01","2025-01-01","2024-07-01","2024-09-01","2024-10-01",null,"AT",null,null,null,null,"Not in Umbrella",null,"Miami PT Group"]
["Active","Miami Speech Institute","Ruiz","Patricia","Exec Director","717 Ponce De Leon Blvd.","Coral Gables","FL",33134,"786/541-7289","miamispeechinstitute@gmail.com","FIU Contract","2013-05-17","2025-01-01","2024-07-01","2024-09-01","2024-10-01",null,"SP",null,null,null,null,null,null,"Miami Speech Institute"]
["Active","Miami Sports Medicine Physical Therapy","Calvo","David","CONTACT PERSON","9135 SW 87 Ave","Miami ","FL",33176,"305/279-2335","davidcalvo@bellsouth.net","FIU Contract","2010-09-01","2025-01-01","2024-07-01","2024-09-01","2024-10-01",null,"PT",null,null,null,null,"Not in Umbrella",null,"Miami Sports Medicine PT"]
["Active","Miami Urgent Care And Rehab Center"," Wayne","Christopher",null,"3800 North Miami Ave","Miami","FL",33127,"(305) 576-4800",null,"FIU Contract","1999-08-01","2025-01-01","2024-07-01","2024-09-01","2024-10-01",null,"Nursing",null,null,null,null,"Not in Umbrella"]
["Active","Miami-Dade Area Health Education Center","Gomez","Tom","Founder & Executive Director","1200 NW 78th Ave Ste 209","Miami","FL",33126,"305/994-9268","tgomez@brainshield.com","FIU Contract","2014-01-01","2025-01-01","2024-07-01","2024-09-01","2024-10-01",null,"NUR HSA",null,null,null,null,"Umbrella",null,"Miami Dade AHEC"]
["Active","Michael Ann Russell Jewish Community Center","Bloom","Carmel","Assistan Director, Special Needs Program","18900 NE 25th Avenue","North Miami Beach","FL",33180,"305-932-4200 ext 135","carmelb@marjcc.org","FIU Contract","2007-07-01","2025-01-01","2024-07-01","2024-09-01","2024-10-01",null,"OT",null,null,null,null,"Not in Umbrella"]
["Active","Michael Fili, M.D., PA","Arjona","Yaqueline","ARNP","8600 SW 92nd St. ","Miami","FL",33156,null,"arjonaarnp@yahoo.com","FIU Contract","2016-01-08","2021-01-07","2020-07-07","2020-09-07","2020-10-07",null,"Nursing",null,null,null,null,null,null,"Michael Fili, M.D., PA"]
["Inactive","Midland Outpatient Rehab Facility","Bayoh","Joanne Sealey","Director","9350  South Dadeland Blvd., Ste. #101","Miami","FL",33156,"305-670-7777",null,"FIU Contract","2003-03-01","2025-01-01","2024-07-01","2024-09-01","2024-10-01",null,"OT",null,null,null,null,"Not in Umbrella",null,"Midland Outpatient Rehab "]
["Active","Midwifery Associates","Suarez","Richard Louis ",null,"8600 SW 92nd St. Ste 105","Miami","FL",33156,"305/598-9594","riscnm@msn.com","FIU Contract","2012-05-01","2025-01-01","2024-07-01","2024-09-01","2024-10-01",null,"Nursing",null,null,null,null,"Not in Umbrella"]
["Active","Millenium Treatment Group","Rush","Donna","NP,CS, Ed.D","4949 Congress Avenue","Lake Worth ","FL",33461,"305/335-0583",null,"Facility Contract","2016-02-12","2021-02-11","2020-08-11","2020-10-11","2020-11-11",null,"Nursing",null,null,null,null,"Not in Umbrella",null,"Millenium Treatment Group"]
["Active","Minute Clinic Llc (Cvs Caremark)","St Thomas","Clara","ARNP Coordinator","One CVS Drive","Woonsocket","RI",2895,"401/770-3425","novalles@cvs.com","Facility Contract","2010-07-01","2025-01-01","2024-07-01","2024-09-01","2024-10-01","15/WEEK RENEWAL","Nursing",null,null,null,null,"Not in Umbrella",null,"Minute Clinic"]
["Active","Miramar Medical Center","Mendez","Oly",null,"11904 Miramar Pkwy","Miramar","FL",33025,"954/639-7560",null,"","2012-11-01","2025-01-01","2024-07-01","2024-09-01","2024-10-01",null,"Nursing",null,null,null,null,"Not in Umbrella",null,"Miramar Medical Center"]
["Active","Mission Clinic of Palm Springs","Maness","Don ","Exec Director","3300 10th Ave N","Palm Springs","FL",33461,"561/460-3555","dmaness@aol.com","Facility","2015-10-29","2025-01-01","2024-07-01","2024-09-01","2024-10-01",null,"NUR",null,null,null,null,"Not in Umbrella",null,"Mission Clinic of Palm Springs"]
["Active","Mona Rehabilitation Center","Pati","Mr. Prasant ","OT Department","7  Golding Avenue Kignston 7","Jamica","WI","WI","876 355-1217","prasantpati73@yahool.com","FIU Contract","2006-12-01","2025-01-01","2024-07-01","2024-09-01","2024-10-01",null,"OT",null,null,null,null,"Not in Umbrella"]
["Active","Monica M. Weller, Ms, Otr/L, Inc ","Weller","Monica M. ","Owner","4 Glamis Way","Boynton Beach","FL",33426,"561 352-6079",null,"FIU Contract","2005-07-01","2025-01-01","2024-07-01","2024-09-01","2024-10-01",null,"OT",null,null,null,null,"Not in Umbrella"]
["Active","Monroe County Health Department","Fernandez","Talia","Contract Admin","1100 Simonton Street, Gato Bldg.","Key West","FL",33041,"305/809-5616","talia.fernandez@flhealth.gov","Facility Contract","2015-12-08","2018-11-18","2018-05-18","2018-07-18","2018-08-18",null,"OT PT CSD NUR PH",null,null,null,null,"Not in Umbrella",null,"Monroe County DOH"]
["Active","Mount Sinai Medical Center/Miami Heart Institute","Torres","Catherine","EDUCATION MANAGER","4300 ALTON ROAD","Miami Beach","FL",33140,"305-695-7629","torrescs@msmc.com ","Facility Contract","2014-08-16","2017-08-31","2017-03-03","2017-05-01","2017-05-31",null,"OT, PT, CSD, NUR,DN,SW,RT, PSY, HSA","X","X","X",null,"Umbrella"]
["Active","Movement Matter Therapy","Dixon","Grace","OTR/L","155 Bayridge Avenue","Brooklyn","NY",11220,"718-238-0311","gdixon@movementmatters.com","FIU Contract","2009-08-01","2025-01-01","2024-07-01","2024-09-01","2024-10-01",null,"OT",null,null,null,null,"Not in Umbrella"]
["Active","Munroe Medical Center","Maier ","Thressa ","WORKFORCE DEVELOPMENT COORDINATOR","1500 SW 1ST AVENUE","Ocala","FL",34478,"352-671-2025","thressa_maier@MunroeRegional.com","Facility Contract","2012-10-01","2018-06-01","2017-12-01","2018-02-01","2018-03-01",null,"PT OT",null,null,null,null,"Not in Umbrella",null,"Munroe HMA Hospital"]
["Active","Munroe Regional Medical Center","Maier ","Thressa ","WORKFORCE DEVELOPMENT COORDINATOR","1500 WW 1 AVENUE","Ocala","FL",34474,"352-671-2263 ","ThressaMaier@munroeregional.com","FIU Contract","2015-06-02","2018-06-01","2017-12-01","2018-02-01","2018-03-01",null,"Nursing",null,null,null,null,"Not in Umbrella",null,"Munroe Regional Medical Center"]
["Active","My Doctor's Pediatrics","Cintas","Maura","MD","14704 Sw Miller Rd. and 9000 SW 137th Ave ","Miami","FL",null,"305/525-7403",null,"FIU Contract","2014-01-01","2025-01-01","2024-07-01","2024-09-01","2024-10-01",null,"Nursing",null,null,null,null,"Not in Umbrella"]
["Active","My Intensive Therapy","Lopez","Damary","MSPT","15904 SW 92 AVENUE","Miami","FL",33157,"305.969-7778","damarylopez@hotmail.com","FIU Contract","2006-03-01","2025-01-01","2024-07-01","2024-09-01","2024-10-01",null,"PT",null,null,null,null,"Not in Umbrella"]
["Active","My Therapy Center formerly Speech Therapy Center","Cristine","Blanco",null,"2153 Coral Way #602","Miami","FL",33145,"305/856-1999","cristinablancostc@gmail.com","FIU Contract","2014-06-01","2025-01-01","2024-07-01","2024-09-01","2024-10-01",null," OT, PT, SP",null,null,null,null,"Umbrella",null,"My Therapy Center"]
["Inactive","National Balance Improvement Centers Closed As Of 3/1/13 Per Email From Mbloyer","Blasolo","Gloria","PT","17240 NE 19TH AVE","North Miami Beach","FL","33162","305.940-0040",null,"FIU Contract","2005-04-01","2025-01-01","2024-07-01","2024-09-01","2024-10-01",null,"PT",null,null,null,null,"Not in Umbrella",null,"National Balance Improvement Center"]
["Active","Nationwide Laboratory Services ","Delahunty","Mark","CED","1537 NW 65 Ave","Plantation","FL",33313,"954.633.3580","mdelahunty@nationwidelab.com","FIU Contract","2015-07-30","2025-01-01","2024-07-01","2024-09-01","2024-10-01",null,"HAS",null,null,null,null,"Not in Umbrella",null,"Nationwide Laboratory Services"]
["Active","Naval Health Care New England Naval Ambulatory Care Center, Groton, Ct","Dewitt","Oj","FINANCIAL MANAGER","BOX 600, CODE 41","Groton","CT","06349-5600","860.694-2535",null,"Facility Contract","2003-12-01","2025-01-01","2024-07-01","2024-09-01","2024-10-01",null,"PT",null,null,null,null,"Not in Umbrella"]
["Active","Naval Hospital Camp Lejuene","Ford ","Justin","Swank Site and MOU Coordinator","100 Brewster Blvd","Camp Lejuene","NC","28547-2538","910/450-3068","justin.b.for2.civ@mail.mil","Facility Contract","2015-02-04","2018-05-31","2017-12-01","2018-01-31","2018-03-03",null,"AT",null,null,null,null,null,null,"Naval Hospital Camp Lejeune"]
["Inactive","NCR Healthcare "," Kinnas","Bryce","EDUCATION DEPARTMENT","350 7TH STREET NORTH","Naples","FL",34102,"239/436-5000","Bryce.Kinnas@nchmd.org","Facility Contract","2007-09-07","2013-07-01","2013-01-01","2013-03-01","2013-04-01",null,"OT, PT, CSD, NUR, HSA DN, PH and SW ",null,"X",null,null,"Umbrella",null,"NCH Health System"]
["Active","Nelson D. Hernandez, M.D., PA","Hernandez","Nelson","MD, PA","1300 Coral Way, Suite 208","Miami","FL",33145,"305-854-7952",null,"FIU contract","2015-12-14","2016-12-13","2016-06-13","2016-08-13","2016-09-13",null,"Nursing",null,null,null,null,"Not in Umbrella",null,"Nelson D. Hernandez, M.D., PA - Office"]
["Active","Nemours Foundation (Childrens Hospital)","Wallom","Lynn","Dir. Nursing Professional Excellence","13535 Nemours Pkwy","Orlando","FL",32827,"407/567-4501","Lynne.Wallom@nemours.org","Facility Contract","2014-01-01","2025-01-01","2024-07-01","2024-09-01","2024-10-01",null,"OT",null,null,null,null,"Not in Umbrella",null,"Nemours Foundation"]
["Active","Neuro Science Consultants","Brinegar","Elizabeth ","Director of Therapy","9090 SW 87th Court, Ste 101","Miami","FL",33176,"305 274-1500","brinegarw@bellsouth.net","FIU Contract","2009-05-01","2025-01-01","2024-07-01","2024-09-01","2024-10-01",null,"OT",null,null,null,null,"Not in Umbrella"]
["Active","Neuromuscular Therapy Of South Fl.","Gavilanes","Maria","PT","9425 SUNSET DRIVE, STE 186","Miami","FL","33173",null,null,"FIU Contract","2003-05-01","2025-01-01","2024-07-01","2024-09-01","2024-10-01",null,"PT",null,null,null,null,"Not in Umbrella"]
["Active","Neuroscience Consultants Llc","Brinegar","Elizabeth","DIRECTOR OF ANCILLARY SERVICES","P.O. BOX 160010","Hialeah","FL",33016,null,"ebrinegar@neuroscienceconsultants.com","FIU Contract","2009-05-01","2025-01-01","2024-07-01","2024-09-01","2024-10-01",null,"PT",null,null,null,null,"Not in Umbrella"]
["Active","Neurosport Physical Therapy","Cozzo","Leah","Mgr, Dir of Education","1163 Johnson Ferry Rd. Ste 100 & 6 other locations","Marietta","GA",30068,"770/321-0155","lharper@neurotour.com","FIU Contract","2013-10-01","2025-01-01","2024-07-01","2024-09-01","2024-10-01",null,"PT",null,null,null,null,"Not in Umbrella",null,"NeuroSport PT"]
["Active","New Health Community Centers","Felix","Michelet","ARNP","6300 NE 2nd Ave & 974 Old Dixie Hwy","Miami And Homestead","FL","33138  33030","305/754-8966",null,"","2013-04-01","2025-01-01","2024-07-01","2024-09-01","2024-10-01",null,"Nursing",null,null,null,null,"Not in Umbrella"]
["Active","New Horizons Community Mental Health Center","Bestman","Evaline ","Exec Director","1469 NW 36th Street","Miami","FL",33142,"(305) 635-0366",null,"FIU Contract","2000-10-01","2025-01-01","2024-07-01","2024-09-01","2024-10-01",null,"Nursing",null,null,null,null,"Not in Umbrella"]
["Active","New Horizons For Community-Bound Individuals, Inc  D/B/A Faye Clarks New Horizon","Aldama","Ed ","Executive Director","1340 S.E. 9th Avenue","Hialeah","FL",33010,"305 887-1535","ed@nuhorizons.org","D/B/A Faye Clarks New Horizon","2004-11-01","2025-01-01","2024-07-01","2024-09-01","2024-10-01",null,"OT",null,null,null,null,"Not in Umbrella"]
["Active","Nicklaus Childrens Hospital (formerly Miami Childrens Hospital)","Howell","Sharon","Project Coordinator","3100 SW 62 AVENUE","Miami","FL","33155-3009","786/624-2113","Sharon.Howell@mch.com","Facility Contract","2016-02-23","2021-02-23","2020-08-23","2020-10-23","2020-11-23",null,"ALL FIU Colleges","X","X","X","X","Umbrella",null,"Miami Childrens"]
["Active","Nob Hill Medical Center","Gennaro","Evangeline","ARNP","10098 W. McNab Road","Tamarac","FL",33321,"954/724-9080",null,"Facility Contract","2016-03-02","2021-03-01","2020-09-01","2020-11-01","2020-12-01",null,"Nursing",null,null,null,null,"Not in Umbrella",null,"Nob Hill Medical Center"]
["Active","North Beach Physical Therapy & Welness Center","Attard","Derrick Jan","MPT, PRESIDENT & OWNER","309 - 71st ST","Miami Beach","FL","33141","305.867-3925",null,"FIU Contract","2005-06-01","2025-01-01","2024-07-01","2024-09-01","2024-10-01",null,"PT",null,null,null,null,"Not in Umbrella",null,"North Beach PT and Wellness Center"]
["Active","North Broward Hospital District (See Tenet)","Teller","Lisa","CONTRACT COMPLIANCE SPECIALIST","303 SE 17 STREET\nFT. LAUDERDALE,  FL  33316","Ft. Lauderdale","FL",33316,"954-355-4759","lteller@browardhealth.org","Facility Contract","2015-04-15","2020-03-01","2019-09-01","2019-11-01","2019-12-01",null,"OT, PT, CSD, HSA, NUR, SW, PH, DN, Healthcare MBA, Health Informatics & Management Systems",null,"X",null,null,"Umbrella"]
["Active","North Shore Medical Center (Tenet)","Lehne","Christina","Contracts Administrator","1100 Northwest 95th St","Miami","FL",33150,"305/835-6108","Christina.lehne@tenethealth.com","Facility Contract ","2015-09-01","2025-01-01","2024-07-01","2024-09-01","2024-10-01",null,"OT PT, NUR CSD DN",null,null,null,null,"Umbrella",null,"North Shore Medical Center"]
["Active","Northwest Arkansas Pediatric Therapy Services, Inc ","Wilkerson","Shelia","Director","2705 SE G. Street, Ste 1","Bentonville","AR",72712,"479 273-2345","sheliapt@nwapt.com","FIU Contract","2004-11-01","2025-01-01","2024-07-01","2024-09-01","2024-10-01",null,"OT",null,null,null,null,"Not in Umbrella"]
["Active","Northwest Pediatrics","Beharrie","Patricia","ARNP","646 NW 183rd St.","Miami","FL",33169,"305/493-1605","gaby93@bellsouth.net","FIU Contract","2012-05-01","2025-01-01","2024-07-01","2024-09-01","2024-10-01",null,"Nursing",null,null,null,null,"Not in Umbrella"]
["Active","Nostrum Medical Center West Dade","Beltran","Jennifer","ARNP","4155 SW 130th Ave Ste 102","Miami","FL",33175,"305/223-3580",null,"FIU Contract","2014-07-01","2025-01-01","2024-07-01","2024-09-01","2024-10-01",null,"Nursing",null,null,null,null,"Not in Umbrella"]
["Active","Nova Care Rehabilitation - Select Physical Therapy - Multiple Locations - Multiple Cities","Noll","Colleen","Executive Assistant ","680 AMERICAN AVENUE","King Of Prussia","PA",19406,"610-992-7217","cmnoll@hq.novacare.com ","Facility Contract","2007-10-01","2025-01-01","2024-07-01","2024-09-01","2024-10-01",null,"OT",null,null,null,null,"Not in Umbrella"]
["Active","Nova Care Select Physical Therapy (Multiple Locations)","Noll","Colleen","EXECUTIVE ASSISANT","680 AMERICAN AVENUE","King Of Prussia","PA",19406,"610-992-7217","cmnoll@hq.novacare.com","Facility Contract","2007-10-26","2025-01-01","2024-07-01","2024-09-01","2024-10-01",null,"PT",null,null,null,null,"Not in Umbrella"]
["Active","Nova Southeastern University Ostepathic Manual","Shamus","Eric","PT, PHD, CSCS","3200 S. UNIVERSITY DR. Suite 4316","Ft. Laduerdale","FL","33328","954.262-1153","eshamus@nova.edu","FIU Contract","2005-03-01","2025-01-01","2024-07-01",{"$f":"IF(N581<>\"\",DATE(YEAR(N581),MONTH(N581)-4,DAY(N581)),\"\")","v":"2024-09-01"},{"$f":"IF(N581<>\"\",DATE(YEAR(N581),MONTH(N581)-3,DAY(N581)),\"\")","v":"2024-10-01"},null,"PT",null,null,null,null,"Not in Umbrella"]
["Active","Novacare Rehab Clinics Umbrella","Linda C. ","Swanson","MSPT","3695 BOYTON BEACH BLVD, Ste 9","Wpb","FL",33402,"561.691-4088",null,"","2004-11-01","2025-01-01","2024-07-01","2024-09-01","2024-10-01",null,"OT",null,null,null,null,"Not in Umbrella"]
["Active","Nu Vista Living","Voss","Rachel","Dir. Staff Development","10330 NuVista Ave ","Wellington","fL",33414,"561/598-5432","rvoss@nvliving.com","FIU Contract","2014-07-01","2025-01-01","2024-07-01","2024-09-01","2024-10-01",null,"PT",null,null,null,null,"Not in Umbrella",null,"Nu Vista Living"]
["Active","NYU Hospital For Joint Diseases","Cirami","Angela","Program Manager","301 East 17th Street","New York","NY",10003,"212-598-6000 ext/ 3932","angela.cirami@nyumc.org","Facility Contract","2009-02-01","2025-01-01","2024-07-01","2024-09-01","2024-10-01",null,"OT",null,null,null,null,"Not in Umbrella",null,"NYU Hospital for Joint Diseases"]
["Active","NYU Hospital For Joint Diseases","Cirami","Angela","PROGRAM MANAGER","301 EAST 17TH STREET","New York","NY",10003,"212-598-6000 X 3932","angela.cirami@nyumc.org","Facility Contract","2009-02-01","2025-01-01","2024-07-01","2024-09-01","2024-10-01",null,"PT",null,null,null,null,"Not in Umbrella",null,"NYU Hospital for Joint Diseases"]
["Active","Oakwood Center Of Palm Beaches","Cassoni","Andrea",null,"1041 45th Street","West Palm Beach","FL",33407,"561/383-5917","acassoni@oakwoodcenter.org","FIU Contract","2007-09-01","2025-01-01","2024-07-01","2024-09-01","2024-10-01",null,"Nursing",null,null,null,null,"Not in Umbrella"]
["Inactive","Oakwood Healthcare Inc","Atanosian","Rachel","CCCE"," 18101 Oakwood Blvd, #X201E","Dearborn","MI",48124,"313.436-2518","Rachel.Atanosian@oakwood.org","Facility Contract","2004-05-01","2008-06-30","2007-12-30","2008-03-01","2008-03-30",null,"PT",null,null,null,null,"Not in Umbrella"]
["Active","Oakwood Village","Moll","Angie","OTR","6205 Mineral Point Rd","Madison","WI",53705,"608-230-4680 (fax)","Angie.Moll@aokwoodvillage.net","FIU Contract","2010-01-10","2025-01-01","2024-07-01","2024-09-01","2024-10-01",null,"OT",null,null,null,null,"Not in Umbrella",null,"Oakwood Village "]
["Active","Oasis Institute","Munoz","George","MD","20880 WEST DIXIE HWY STE 101","North Miami Beach","FL",33180,null,null,"FIU Contract","2012-06-01","2025-01-01","2024-07-01","2024-09-01","2024-10-01",null,"AT",null,null,null,null,"Not in Umbrella"]
["Active","Ob/Gyn Specialists Of Palm Beaches","Ignace Morel","Marie","MD ","927 - 45th Ste 303","West Palm Beach","FL",33407,"561-626-3800",null,"FIU Contract","2012-01-01","2025-01-01",{"$f":"IF(N590<>\"\",DATE(YEAR(N590),MONTH(N590)-6,DAY(N590)),\"\")","v":"2024-07-01"},"2024-09-01","2024-10-01",null,"Nursing",null,null,null,null,"Not in Umbrella"]
["Active","Occupational Therapy Training Program (OTTP)","Dobson","Jessica ","MOT, OTR/L","425 Divasadero,  Ste 301","San Francisco","CA",94117,"415 551-0975","jessdobson@yahoo.com","FIU Contract","2006-01-01","2025-01-01","2024-07-01","2024-09-01","2024-10-01",null,"OT",null,null,null,null,"Not in Umbrella"]
["Active","Ochsner Health System","Tholen","Carol","Dir Medical Education","1514 Jefferson Hwy","New Orleans","LA",70121,"504/842-3267","ctholen@ochsner.org","Facility Contract","2014-05-01","2017-05-01","2016-11-01","2017-01-01","2017-02-01",null,"PT",null,null,null,null,"Not in Umbrella",null,"Ochsner Health System"]
["Active","Ohio Health (Doctor's Hospital, Dublin Methodist Hospital, Grady Memorial Hospital, Grand Medical Center, Riverside Methodist Hospital, All Ohiohealth Neighborhood Care","Groves","Lynn","Admin. Assistant","3535 Olentangy River Rd.","Columbus","OH",null,"614/566-5739","lgroves@ohiohealth.com","Facility Contract","2011-10-01","2025-01-01","2024-07-01","2024-09-01","2024-10-01",null,"OT, PT",null,null,null,null,"Umbrella",null,"Ohio Health"]
["Active","Oma International","Hoffman","Edgar ","Owner","2450 Miami Gardens Drive Ste 102","North Miami","FL",33180,"305-538-5116","edhoffas@aol.com","FIU Contract","2002-09-01","2025-01-01","2024-07-01","2024-09-01","2024-10-01",null,"OT",null,null,null,null,"Not in Umbrella"]
["Active","Onsite Physio","Sanchez","Daniel","VP of Clinical Operations","4215 South Point Vlvd Ste 190","Jacksonville","FL",32216,"866/907-4797","daniel.sanchez@onsitephysio.com","FIU Contract","2014-01-01","2025-01-01","2024-07-01","2024-09-01","2024-10-01",null,"PT",null,null,null,null,"Not in Umbrella",null,"Onsite Physio"]
["Active","Onsite Therapy","Canizares","Clara",null,"941 North Krome Avenue","Homestead","FL",33030,"786-243-0275",null,"FIU Contract","2007-03-01","2025-01-01","2024-07-01","2024-09-01","2024-10-01",null,"OT",null,null,null,null,"Not in Umbrella"]
["Active","Orlando Health Inc  Lucerne Regional Medical Ctr","Laxton","Angela","Mgr, Academic Programs","1414 Kuhl Ave MP 3","Orlando","FL",32806,"321/841-5776","angel.laxton@orlandohealth.com","Facility Contract","2014-09-01","2017-01-01","2016-07-01","2016-09-01","2016-10-01",null,"OT, PT, NUR",null,null,null,null,"Umbrella",null,"Orlando Health"]
["Active","Ortho Georgia","Bolt","Linda","Director of Hand Therapy","3708 Northside Drive","Macon","GA",31210,"478/254-5362","Lbolt@orthoga.org","FIU Contract","2012-11-01","2025-01-01","2024-07-01","2024-09-01","2024-10-01",null,"OT",null,null,null,null,"Not in Umbrella",null,"Ortho Georgia"]
["Active","Ortho Miami","Lage","Alex","Owner","7800 SW 87th Ave #A110","Miami","FL",33173,"305/596-2828","drlage@gmail.com","FIU Contract","2014-06-01","2025-01-01","2024-07-01","2024-09-01","2024-10-01",null,"PT",null,null,null,null,"Not in Umbrella",null,"Ortho Miami"]
["Active","Ortho Pro Associates","Alvarez","Aldo","Clinical Director","9150 SW 87th Ave Ste B-100","Miami","FL",33176,"305/598-9688","aldo@orthoproassociates.com","FIU Contract","2016-01-01","2019-12-31","2019-07-01","2019-08-31","2019-10-01",null,"OT",null,null,null,null,null,null,"Ortho Pro Associates"]
["Active","Orthonow","Charles ","Lascano","Physician","3650 NW 82nd Ave","Doral","FL",33166,"305-537-7272",null,"FIU Contract","2010-11-01","2025-01-01","2024-07-01","2024-09-01","2024-10-01",null,"AT",null,null,null,null,"Not in Umbrella",null,"Ortho Now"]
["Active","Orthopedic Center Of Palm Beach County","Bernstein","Steven L.","REHABILITATION ADMINISTRATOR","4801 S Congress Ave, Suite 100","Palm Beach Gardens","FL",33461,"561 967-6500 X1107","Steven.Bernstein@OCPBC.com","FIU Contract","2006-12-01","2025-01-01","2024-07-01","2024-09-01","2024-10-01",null,"PT",null,null,null,null,"Not in Umbrella"]
["Active","Orthopedic Specialists","Jenna","Platt","PT","7225 N University Dr #202","Tamarac","FL",33321,"954/739-9700","jplat001@gmail.com","FIU Contract","2012-12-01","2025-01-01","2024-07-01","2024-09-01","2024-10-01",null,"PT",null,null,null,null,"Not in Umbrella",null,"Orthopedic Specialists"]
["Active","Orthosport Inc ","Lane","Howard","CO-OWNER","5200 South University Drive, Suite 105","Davie","FL",33328,"954-382-4343","osptinc@aol.com","FIU Contract","2008-12-01","2025-01-01","2024-07-01","2024-09-01","2024-10-01",null,"PT",null,null,null,null,"Not in Umbrella",null,"Ortho Sport"]
["Active","Our Kids Playground","Brito","Katty","Pediatric Physical Therapist","1290 Weston Rd. Ste 200","Weston","FL",33326,"954/349-2922","britokatty@gmail.com","FIU Contract","2015-05-12","2025-01-01","2024-07-01","2024-09-01","2024-10-01",null,"PT",null,null,null,null,"Not in Umbrella",null,"Our Kids Playground"]
["Active","Outpatient Orthopedic Pt Clinic At Holy Cross Hospital","Desmarteen","James","PT","4725 NORTH FEDERAL HWY","Ft. Lauderdale","FL","33308",null,null,"FIU Contract","2004-12-01","2025-01-01","2024-07-01","2024-09-01","2024-10-01",null,"PT",null,null,null,null,"Not in Umbrella"]
["Active","Outpatient Therapy And Sports Rehabilitation","Erickson","Jonathan","PT, MS CERT MDT, CCCE","21525 Highway 410 East","Bonney Lake","WA",98391,"253-826-8520","jerickson@outpatientpt.com","FIU Contract","2007-07-01","2025-01-01","2024-07-01","2024-09-01","2024-10-01",null,"PT",null,null,null,null,"Not in Umbrella"]
["Active","Pace Center for Girls Inc","Giordano","Sherry","Exec Director","1400 NW 36th St. Ste 200","Miami","FL",33142,"305/978-1493","Sherry.Giordano@pacecenter.org","FIU Contract","2015-09-01","2025-01-01","2024-07-01","2024-09-01","2024-10-01",null,"OT",null,null,null,null,null,null,"Pace Center for Girls"]
["Active","Page Rehabilitation And Healthcare Center","Crowe","Deborah","contact person","2310 North Airport Rd","Ft. Myers","FL",null,null,null,"FIU Contract","2012-01-01","2025-01-01","2024-07-01","2024-09-01","2024-10-01",null,"OT",null,null,null,null,"Not in Umbrella",null,"PAGE Rehab"]
["Active","Palace At Kendall Nursing & Rehab Center","Carrillo","Rosemary","PT","11215 S.W. 84TH ST.","Miami","FL","33173","305.271-2225 X2478",null,"FIU Contract","2004-12-01","2025-01-01","2024-07-01","2024-09-01","2024-10-01",null,"PT",null,null,null,null,"Not in Umbrella"]
["Active","Palm Beach County Department Of Health","Mckenna ","David","CONTRACT ADMINISTRATOR","800 Clemantis St. Ste 5540","West Palm Beach","FL",33401,"561/671-4003","daniel_mckenna@doh.state.fl.us","Facility Contract","2011-12-01","2025-01-01","2024-07-01","2024-09-01","2024-10-01",null,"All Fields in Nur and HS","X","X","X",null,"Umbrella"]
["Active","Palm Beach Institute Of Sports Medicine","Armstrong","Matthew","MSPT, CCCe","3848 FAU Blvd","Boca Raton","FL",33431,"561/997-5210","Matt@pt-care.com","FIU Contract","2013-02-01","2025-01-01","2024-07-01","2024-09-01","2024-10-01",null,"PT",null,null,null,null,"Not in Umbrella",null,"Palm Beach Inst of Sports Medicine"]
["Active","Palm Beach Orthopedic Institute","Bayham","Bret","MD ","2055 Military Trail","Jupiter","FL",33458,"561/694-7776 x 13007 or 1312",null,"FIU Contract","2014-01-01","2025-01-01","2024-07-01","2024-09-01","2024-10-01",null,"Nursing",null,null,null,null,"Not in Umbrella",null,"Palm Beach Orthopedic Institute"]
["Active","Palm Beach School For Autism","Balbosa","Olive ","Assistant Principal","1199 West Lantana Road","Lantana","FL",33462,"561 582-1645",null,"FIU Contract","2005-08-01","2025-01-01","2024-07-01","2024-09-01","2024-10-01",null,"OT",null,null,null,null,"Not in Umbrella"]
["Active","Palm Court Nursing & Rehab Center","Marks","Monika ","Rehab Director","2675 N. Andrews Ave.","Ft. Lauderdale","FL",33311,"954-563-5711",null,"FIU Contract","2004-07-01","2025-01-01","2024-07-01","2024-09-01","2024-10-01",null,"OT",null,null,null,null,"Not in Umbrella"]
["Active","Palm Court Nursing & Rehab Ctr","Marotta","Joya","PT","2675 N. ANDREWS AVE.","Ft. Lauderdale","FL","33311",null,null,"FIU Contract","2005-02-01","2025-01-01","2024-07-01","2024-09-01","2024-10-01",null,"PT",null,null,null,null,"Not in Umbrella"]
["Active","Palm Garden Of Aventura","Duffy","John","Director of OT","21251 East Dixie Highway","Aventura","FL",33180,"305-979-3305",null,"FIU Contract","2004-10-01","2025-01-01","2024-07-01","2024-09-01","2024-10-01",null,"OT",null,null,null,null,"Not in Umbrella"]
["Active","Palm Garden Of N. Miami Beach","Duffy","John E.","DIRECTOR OF REHAB","21251 EAST DIXIE HWY","N. Miami Beach","FL","33180","407.353-0616","jduff313.bellsouth.net","FIU Contract","2005-04-01","2025-01-01","2024-07-01","2024-09-01","2024-10-01",null,"PT",null,null,null,null,"Not in Umbrella"]
["Active","Palmer Trinity School","","",null,"7900 SW 176th Street","Palmetto Bay","FL",33157,null,null,"FIU Contract","2009-08-01","2025-01-01","2024-07-01","2024-09-01","2024-10-01",null,"AT",null,null,null,null,"Not in Umbrella"]
["Active","Palmetto General Hospital (Lifemark Hospitals of Florida)","Autore","Silvia Dubon","CONTRACS COORDINATOR & EXECUTIVE ASSISTANT TO COO","2001 W 68 STREET","Hialeah","FL",33016,"305.364-2114","silvia.autore@tenethealth.com","Facility Contract","2014-05-01","2017-08-01","2017-02-01","2017-04-01","2017-05-01",null,"OT, PT, NUR, DN, PSY HSA SP",null,"X","X",null,"Umbrella",null,"Palmetto General Hospital"]
["Active","Palmetto Rehabilitation And Health Center Umbrella","Iglesias","Maria ","Nursing Home Administrator","6750 W 22 Court","Hialeah","FL",33016,"305 823-3119 x215",null,"FIU Contract","2005-02-01","2025-01-01","2024-07-01","2024-09-01","2024-10-01",null,"OT",null,null,null,null,"Not in Umbrella"]
["Active","Palmetto Sub-Acute Ctr.","Gonzalez","Diana ","Dir. Rehab","7600 SW 8th St.","Miami","FL",33144,"305-261-2525",null,"FIU Contract","2015-04-15","2025-01-01","2024-07-01","2024-09-01","2024-10-01",null,"OT",null,null,null,null,"Not in Umbrella",null,"Palmetto Subacute Care Center"]
["Active","Palms Rehab And Nursing Center","Builes","Andres","Dir of Rehab","3370 NW 47th Terrace","Lauderdale Lakes","FL",33319,"954/733-0655 x150","Andres.Builes@palmsrehab.com","FIU Contract","2011-11-01","2025-01-01","2024-07-01","2024-09-01","2024-10-01",null,"OT",null,null,null,null,"Not in Umbrella",null,"Palms Rehab and Nursing Center"]
["Active","Palms Rehabilitation Center","Builes","Andres","Director of Rehabilitation","3370 NW 47th Terace","Lauderdale Lakes, ","FL",33319,"954/733-0655 ext 150","Andres.Builes@PalmsRehab.com","FIU Contract","2011-10-01","2025-01-01","2024-07-01","2024-09-01","2024-10-01",null,"OT   PT   CSD",null,null,null,null,"Umbrella"]
["Active","Palms Springs General Hospital","Rojas","Mirta","Nurse Supervisor","1475 W 49 Street","Hialeah","FL",33012,"(305) 824-4804",null,"FIU Contract","1999-09-01","2025-01-01","2024-07-01","2024-09-01","2024-10-01",null,"Nursing",null,null,null,null,"Not in Umbrella",null,"Palm Springs General Hospital"]
["Active","Pam Bay Hospital See Health First","Holland","Debbie","Clinical Educator","6450 US Highway 1","Rockledge ","FL",32955,"321/434-7391",null,null,"2010-10-10","2025-01-01","2024-07-01","2024-09-01","2024-10-01",null,"OT PT SP"]
["Inactive","Pan American Hospital","Carlos","Juan  ","VP Support Services","5959 NW 7th St.","Miami","FL",33126,null,null,null,null,null,"","","",null,null,null,null,null,null,null,null,"Pan American Hospital"]
["Active","Paragon Rehabilitation Services","Hodge ","Jonie","College Recruiter","150 Second Avenue","Nashville","TN",37201,"502-424-8743","jhodge@trilogyhs.com","FIU Contract","2008-09-01","2025-01-01","2024-07-01","2024-09-01","2024-10-01",null,"OT",null,null,null,null,"Not in Umbrella"]
["Active","Paragon Rehabilitation Services","Hodge","Jonie","COLLEGE RECRUITER","150 Second Avenue","Nashville","TN",37201,"502-424-8743","jhodge@trilogyhs.com","FIU Contract","2008-09-01","2025-01-01","2024-07-01","2024-09-01","2024-10-01",null,"PT",null,null,null,null,"Not in Umbrella"]
["Inactive","Parrish Medical Center Contract Will Expire May 2013 And Facility Will Not Renew","Alexandra","Gutierrez","EDUCATION COORDINATOR","951 N Washington Ave","Titusville","FL",32796,"321-268-6111","alexandra.gutierrez@parrishmed.com","FIU Contract","2009-10-09","2013-05-01","2012-11-01","2013-01-01","2013-02-01",null,"OT,  PT  ",null,null,null,null,"Umbrella",null,"Parrish Medical Center"]
["Active","Partners In Health","Gidwani","Monali","MD","9730 NE 2nd Ave ","Miami Shores","FL",33138,"305/758-7979",null,"FIU Contract","2013-04-01","2025-01-01","2024-07-01","2024-09-01","2024-10-01",null,"Nursing",null,null,null,null,"Not in Umbrella",null,"Partners in Health"]
["Active","Pasteur Medical Center","Alvarez","Liliana",null,"4578 West 12th Ave","Hialeah","FL",33012,"(305) 828-1989\n",null,"","2012-08-01","2025-01-01","2024-07-01","2024-09-01","2024-10-01",null,"Nursing",null,null,null,null,"Not in Umbrella",null,"Pasteur medical Center"]
["Active","Patches Inc ","Simon","Raiza",null,"335 SOUTH KROME AVENUE","Florida City","FL",33034,null,"raiza7@bellsouth.net","FIU Contract","2010-01-01","2025-01-01","2024-07-01","2024-09-01","2024-10-01",null,"OT, PT, CSD",null,null,null,null,"Umbrella",null,"Patches"]
["Active","Patches Inc ","Caideo","Carmen",null,"335 S. Krome Avenue, Suite 104","Florida City","FL",333034,"305-242-8122","clwcdc@aol.com ","FIU Contract","2009-05-01","2025-01-01","2024-07-01","2024-09-01","2024-10-01",null,"Nursing",null,null,null,null,"Not in Umbrella",null,"Patches"]
["Active","Patricia A. Labella & Associates PAL Clinic","LaBella","Patricia","President/Founder","2863 Executive Park Dr. Ste 103","Weston","FL",33331,"954/372-9710","plabella@palclinic.com","FIU Contract","2010-02-02","2025-01-01","2024-07-01","2024-09-01","2024-10-01",null,"CSD, OT, PT",null,null,null,null,null,null,"Patricia Labella Academy"]
["Active","Pavilion for Women's Health and Wellness","Carbo","Clarissa","ARNP","11760 SW 40th Street, Suite 654","Miami","FL",33175,"786/615-6123",null,"Facility Contract",null,null,{"$f":"IF(N636<>\"\",DATE(YEAR(N636),MONTH(N636)-6,DAY(N636)),\"\")","v":""},{"$f":"IF(N636<>\"\",DATE(YEAR(N636),MONTH(N636)-4,DAY(N636)),\"\")","v":""},{"$f":"IF(N636<>\"\",DATE(YEAR(N636),MONTH(N636)-3,DAY(N636)),\"\")","v":""},null,"Nursing",null,null,null,null,"Not in Umbrella"]
["Active","Peak Performance Rehabilitation Llc","Santiso","Aaron","Director of PT and Sports Medicine","632 N Federal Hwy","Ft. Lauderdale","FL",33304,"954/302-7717","asantiso2@gmail.com","FIU Contract","2011-03-01","2025-01-01","2024-07-01","2024-09-01","2024-10-01",null,"OT, PT ",null,null,null,null,"Umbrella",null,"Peak Performance"]
["Active","Pediatric & Neonatal of South Florida","Gutierrez","Maria Del C.","M.D.","10621 N. Kendall Drice, Suite 113","Miami","FL",33176,"305-670-6006",null,"Facility Contract","2015-08-11","2025-01-01","2024-07-01","2024-09-01","2024-10-01",null,"Nursing",null,null,null,null,"Not in Umbrella",null,"Pediatric & Neonatal of South Florida, LLC"]
["Active","Pediatric Associates","Gilberd","Hilda",null,"4260 N. State Rd. 7, 3rd Fl","Lauderdale Lakes","FL",33319,"954-486-8020",null,"","2012-08-01","2025-01-01","2024-07-01","2024-09-01","2024-10-01",null,"Nursing",null,null,null,null,"Not in Umbrella",null,"Pediatric Associates"]
["Active","Pediatric Associates","Gilberd","Hila",null,"4500 Sheridan Street","Hollywood","FL",33021,"(954) 741-4280","hgilberd@pediatricsassociates.com ","FIU Contract","2011-06-01","2025-01-01","2024-07-01","2024-09-01","2024-10-01",null,"Nursing",null,null,null,null,"Not in Umbrella",null,"Pediatric Associates"]
["Active","Pediatric Consultants","Mennella","Veronica","Practice Administrator","3319 State Rd 7 Ste 109","Wellington","FL",33449,null,null,"Facility Contract","2014-10-29","2025-01-01","2024-07-01","2024-09-01","2024-10-01",null,"Nursing",null,null,null,null,"Not in Umbrella",null,"Pediatric Consultants"]
["Active","Pediatric Extended Care","Horn","Janet","Director","15839 NW 2nd Avenue","Miami","FL",33169,"305-948-5683",null,"FIU Contract","2008-06-01","2025-01-01","2024-07-01","2024-09-01","2024-10-01",null,"Nursing",null,null,null,null,"Not in Umbrella"]
["Active","Pediatric MDs","Schettino","Antonieta","MD ","4018 Sheridan St.","Hollywood","FL",33021,"954/374-8769",null,"FIU Contract","2012-05-01","2025-01-01","2024-07-01","2024-09-01","2024-10-01",null,"Nursing",null,null,null,null,"Not in Umbrella",null,"Pediatric MDs"]
["Active","Pediatric Partners","Angel","Deana",null,"1025 Military Trail","Jupiter","FL",33458,"561/741-0000",null,"FIU Contract","2011-07-01","2025-01-01","2024-07-01","2024-09-01","2024-10-01",null,"Nursing",null,null,null,null,"Not in Umbrella"]
["Active","Pediatric Skills Builder","Beyer","Jennifer","OTR/L","911 North Orange Avenue #538","Orlando","FL",33199,null,null,"FIU Contract","2008-02-01","2025-01-01","2024-07-01","2024-09-01","2024-10-01",null,"OT",null,null,null,null,"Not in Umbrella"]
["Active","Pediatric Therapy Associates","Anderson","Jennifer",null,"447 NW 73rd Avenue","Plantation","FL","FL 33317","954-583-7383",null,"FIU Contract","2004-09-01","2025-01-01","2024-07-01",{"$f":"IF(N646<>\"\",DATE(YEAR(N646),MONTH(N646)-4,DAY(N646)),\"\")","v":"2024-09-01"},{"$f":"IF(N646<>\"\",DATE(YEAR(N646),MONTH(N646)-3,DAY(N646)),\"\")","v":"2024-10-01"},null,"PT",null,null,null,null,"Not in Umbrella"]
["Active","Pediatric Therapy Associates","Anderson","Jennifer","OTR/L","447 NW 73rd Avenue","Plantation","FL",33317,"954-583-7383",null,"FIU Contract","2004-07-01","2025-01-01","2024-07-01","2024-09-01","2024-10-01",null,"OT",null,null,null,null,"Not in Umbrella"]
["Active","Pediatric Therapy Centers Inc ","Leonard","Jordon","President","1897 NE 146TH ST.","North Miami","FL",33181,"305/949-4191","Jordon@pediatrictherapycenters.com","FIU contract","2015-10-01","2025-01-01","2024-07-01","2024-09-01","2024-10-01",null,"OT SP PT",null,null,null,null,null,null,"Pediatric Therapy Center"]
["Active","Pediatric Therapy Group","Azpeitia","Gyasi ","OTR/L","9095 SW 87 Avenue","Miami","FL",33176,"305 274-9966","gyasiazpeitia@bellsouth.net","FIU Contract","2006-05-01","2025-01-01","2024-07-01","2024-09-01","2024-10-01",null,"OT",null,null,null,null,"Not in Umbrella"]
["Active","Peditherapy, Inc ","Cristina","Godin","OTR/L","1605 Town Center Boulevard, Ste A","Weston","FL",33326,"954-385-3456 x103(ph)",null,"FIU Contract","2007-11-01","2025-01-01","2024-07-01","2024-09-01","2024-10-01",null,"OT",null,null,null,null,"Not in Umbrella"]
["Active","Penn State Hershey Rehabilitation Llc","Miller","Jan","DIRECTOR, OTR/L","2501 N. 3RD STREET","Harrisburg","PA",17110,"717-782-2763","janmmiller@selectmedicalcorp.com","Facility Contract","2010-03-01","2025-01-01","2024-07-01","2024-09-01","2024-10-01",null,"OT, PT, CSD",null,null,null,null,"Umbrella"]
["Active","Perfect Speech","Reid","Lydia",null,"10200 St. Rd. Ste 223","Davie","FL",33324,"954/775-5013","doctorreid@perfectspeech.org","FIU Contract","2010-11-01","2025-01-01","2024-07-01","2024-09-01","2024-10-01",null,"OT, PT, CSD",null,null,null,null,"Umbrella",null,"Perfect Speech"]
["Active","Performance Spine & Sports Medicine","Tholany","Jim","Director of Rehab","9500 K Johnson Blvd","Bordertown ","NJ",8505,"914/443-8150","jtholany@pssmwellness.com","FIU Contract","2014-12-01","2025-01-01","2024-07-01","2024-09-01","2024-10-01",null,"PT",null,null,null,null,"Not in Umbrella",null,"Performance Spine and Sports Medicine"]
["Active","Phoenix Childrens Hospital","Linos","Elizabeth","Director of Rehabilitation","1919 E Thomas Rd.","Phoenix","AZ",85016,"602/9330951","elinos@phoenixchildrens.com","Facility Contract","2011-08-01","2015-05-01","2014-11-01","2015-01-01","2015-02-01",null,"OT   PT   CSD",null,null,null,null,"Umbrella"]
["Inactive","Physia Of Guatemala","Pineda","Marta Beatriz","Owner","6ta. Av. 7-39 zona 10 Edificio Las Brisas 2do. Nivel Oficina 204 \"A","Guatemala",null,null,null,"mbp@fisioterapiavanzada.com","FIU International Contract","2013-09-01",null,{"$f":"IF(N655<>\"\",DATE(YEAR(N655),MONTH(N655)-6,DAY(N655)),\"\")","v":""},"","","SEND AMENDMENT TO AUTO RENEW","OT",null,null,null,null,"Not in Umbrella",null,"Physia of Guatemala"]
["Active","Physical Rehabilitation Centers","Anaya","Luis","Owner, Clinic Director","7177 W. Oakland Park Blvd","Lauderhill","FL",33313,"954/432-6829","L.Anaya@physicalrehabcenters.com","FIU Contract","2013-03-01","2025-01-01","2024-07-01","2024-09-01","2024-10-01",null,"PT",null,null,null,null,"Not in Umbrella",null,"Physical Rehab Centers"]
["Active","Physical Therapy & Fitness Management","Dupont","Joan","PT DEPARTMENT","3399 NW 72 AVE  #103","Miami","FL","33122",null,null,"FIU Contract","2004-03-01","2025-01-01","2024-07-01","2024-09-01","2024-10-01",null,"PT",null,null,null,null,"Not in Umbrella"]
["Active ","Physical Therapy Specialists","Krawcyzk","David","Owner","7300 Sandlake Commons  Blvd. Ste 305","Orlando","FL",32819,"407/802-4514","david@ptspecialists.org","FIU Contract","2016-01-06","2019-01-05","2018-07-05","2018-09-05","2018-10-05",null,"PT",null,null,null,null,null,null,"Physical Therapy Specialists"]
["Active","Physicians Health Center","Kerness","Daniel","Director Clinic Operations","20215 NW 2nd Avenue, Suite #3","Miami","FL",33169,"954/778-1463","ommanagement.com","FIU Contract","2015-08-31","2025-01-01","2024-07-01","2024-09-01","2024-10-01",null,"PT",null,null,null,null,"Not in Umbrella",null,"Physicians Health Center"]
["Active","Physiotherapy Associates","Tucholke","Lisa","CONTRACTS ADMINISTRATOR","855 Springdale Drive, Suite 200","Exton","PA",19341,"610-644-7824",null,"FIU Contract","2008-06-01","2025-01-01","2024-07-01","2024-09-01","2024-10-01",null,"PT",null,null,null,null,"Not in Umbrella"]
["Active","Physiotherapy Associates-Pediatrics (Covers All 500+ Facilities Nationwide)","Lopez","Javier A. ","Adminstrator","10683 N Kendall Drive","Miami","FL",33176,"305-271-9901",null,"FIU Contract","2004-01-01","2025-01-01","2024-07-01","2024-09-01","2024-10-01",null,"OT",null,null,null,null,"Not in Umbrella"]
["Active","Pinecrest Physical Therapy","Yacoub","Ron","President","9492 S. Dixie Highway","Miami","FL",33156,null,"ronyacoub@aol.com","FIU Contract","2007-11-01","2025-01-01","2024-07-01","2024-09-01","2024-10-01",null,"PT",null,null,null,null,"Not in Umbrella",null,"Pinecrest PT"]
["Active","Pinecrest Physical Therapy","Yacoub","Ron","PRESIDENT, MSPT, ATC, CSCS","9563 S. Dixie Highway","Pinecrest","FL",33156,null,null,"FIU Contract","2006-10-01","2025-01-01","2024-07-01","2024-09-01","2024-10-01",null,"AT",null,null,null,null,"Not in Umbrella"]
["Inactive","Pinecrest Rehab Hospital - Expired Facility Comes Under Delray Mc And There Is No Agreement","","","STAFF DIRECTOR","5360 LINTON BLVD","Delray Beach","FL","33484","561.495-3652",null,"Facility Contract","2006-06-01","2008-06-01","2007-12-01","2008-02-01","2008-03-01",null,"PT",null,null,null,null,"Not in Umbrella"]
["Inactive","Pinecrest Rehab Hospital (No Contract In Place Currently)","Kasmere","Bonnie ","OTR/L","5360 Linton Boulevard","Delray Beach","FL",33484,"561-495-3634/936-4500 bpr","bonnie.kasmere@tenethealth.com","Facility Contract","2006-06-01","2008-06-01","2007-12-01","2008-02-01","2008-03-01",null,"OT",null,null,null,null,"Not in Umbrella"]
["Active","Planned Parenthood","Levine","Linda R. ",null,"1699 SW 27th Avenue","Miami","FL",33145,"(305) 285-7911",null,"FIU Contract","2004-06-01","2025-01-01","2024-07-01","2024-09-01","2024-10-01",null,"Nursing",null,null,null,null,"Not in Umbrella"]
["Active","Planned Parenthood Of South Florida And The Treasure Coast (10 Locations)","Fowler","Michelle","CEO","2300 N Florida Mango Rd","West Palm Beach","FL",33409,"561/472-9990",null,"","2012-12-01","2025-01-01","2024-07-01","2024-09-01","2024-10-01",null,"Nursing",null,null,null,null,"Not in Umbrella",null,"Planned Parenthood of South Florida"]
["Active","Plantation General Hospital (See Mercy Hosptital) HCA","Piehl","Deborah","DIRECTOR OF STAFF DEVELOPMENT/EDUCATION","3633 South Miami Hospital","Miami","FL",33133,"305/285-2744","dpiehl@mercymiami.org","Facility Contract","2016-01-01","2018-12-31","2018-07-01","2018-08-31","2018-10-01",null,"PT",null,null,null,null,"Not in Umbrella"]
["Active","Plaza Health Network","Bloom","Elaine","CEO","1800 NE 168th St, Ste 200","North Miami Beach","FL",33162,"305/917-0400","mpinto@plazahealthnetwork.org","FIU Contract","2015-08-27","2025-01-01","2024-07-01","2024-09-01","2024-10-01",null,"OT PT NUR SW DN CSD RT PH SW ",null,null,null,null,"Umbrella",null,"Plaza Health Network"]
["Active","Polestar Physical Therapy And Pilates Center","Lubbers","Jarrod","PT","1500 Monza Ave., Ste 350","Miami","FL",33146,"305/740-6001","jarrod.lubbers@polestarmiami.com","FIU Contract","2011-11-01","2025-01-01","2024-07-01","2024-09-01","2024-10-01",null,"PT",null,null,null,null,"Not in Umbrella"]
["Active","Potentials School, Arc Of Palm Beach County","Pengally","Mary","CLINICAL COORDINATOR","1210 AUSTRAILIAN AVE","Riviera Beach","FL",33404,"561-842-3213",null,"FIU Contract","2010-01-10","2025-01-01","2024-07-01","2024-09-01","2024-10-01",null,"OT, PT ",null,null,null,null,"Umbrella",null,"Potential School ARC of Palm Beach County"]
["Active","Premier Medical Center","Huguet ","Rosalino","MD","6741 SW Coral Way, Suite 38","Miami","FL",33155,"305-262-5476","drhuguet@hotmail.com","Facility Contract","2016-01-05","2021-01-03","2020-07-03","2020-09-03","2020-10-03",null,"Nursing",null,null,null,null,null,null,"Premier Medical Center"]
["Active","Preste Medical Group","Golden","Donna","Administrator","3075 E. Commercial Blvd. Ste 1A","Ft. Lauderdale","FL",33308,"954/491-6200","ja.woods@comcast.net","FIU Contract","2014-01-01","2025-01-01","2024-07-01","2024-09-01","2024-10-01",null,"Nursing",null,null,null,null,"Not in Umbrella",null,"Preste Medical Group"]
["Active","Preventive Health","Rodriguez","Carlos","MD","8040 NW95th Street; #331","Hialeah Gardens","FL",33016,"305-819-1110","isaias0719@comcast.net","FIU Contract","2015-06-25","2025-01-01","2024-07-01","2024-09-01","2024-10-01",null,"Nursing",null,null,null,null,"Not in Umbrella",null,"Preventive Health"]
["Active","Primary Care Physicians","Sabaitue","Sharon","ARNP","6517 Taft St. Ste 101 and multiple locations","Hollywood","FL",33024,"954/907-3593",null,"FIU Contract","2014-04-22","2025-01-01","2024-07-01","2024-09-01","2024-10-01",null,"Nursing",null,null,null,null,"Not in Umbrella",null,"Primary Care Physicians"]
["Active","Prime Health Physicians Group","Beltran","Jennifer ","ARNP","9049 SW 87th CT","Miami","FL",33176,"305-662-7234",null,"Facility Contract","2015-10-07","2025-01-01","2024-07-01","2024-09-01","2024-10-01",null,"Nursing",null,null,null,null,"Not in Umbrella",null,"Prime Health Physicians Group"]
["Active","Primecare Of Coral Gables","Guest","Rosalino","ARNP",null,"Coral Gables","FL",33134,null,null,"Facility Contract","2015-01-03","2025-01-01","2024-07-01","2024-09-01","2024-10-01",null,"Nursing",null,null,null,null,"Not in Umbrella"]
["Active","Progessive Therapy Center","Welch","Greg","CLINIC DIRECTOR","12651 S. DIXIE HWY, STE 205","Miami","FL",33156,"305-232-9222","GWELCH227@AOL.COM","FIU Contract","2010-10-10","2025-01-01","2024-07-01","2024-09-01","2024-10-01",null,"OT, PT, CSD",null,null,null,null,"Umbrella",null,"Progressive Therapy Center"]
["Active","Progressive Pediatric Development Center","Smith","Tammy","Administrator/Founder","1915 Welby Way; Ste 5","Tallahassee","TN",32308,"850/325-6301","tammy@progressivepediatric.org","FIU Contract","2010-10-01","2025-01-01","2024-07-01","2024-09-01","2024-10-01",null,"OT, PT ",null,null,null,null,"Umbrella",null,"Progressive Pediatric Development Center"]
["Active","Progressive Pediatric Therapy In Boca Raton","Brueck","Aimee","Owner","23270 Boca Chica Circle","Boca Raton","FL",33433,"561/376-2573","aimee@ppt4kids","FIU Contract","2012-08-01","2025-01-01","2024-07-01","2024-09-01","2024-10-01",null,"OT   PT",null,null,null,null,"Umbrella",null,"Progressive Pediatric Therapy"]
["Active","Progressive Physical Therapy","Welch","Greg ","President","12651 South Dixie Hwy, Ste 205","Miami","FL",33156,"(305) 232-9222","gwelch227@aol.com","FIU Contract","2007-11-01","2025-01-01","2024-07-01","2024-09-01","2024-10-01",null,"OT",null,null,null,null,"Not in Umbrella"]
["Active","Progressus Therapy Llc","Barrows","Andrew","Business Analyst","2701 N Rocky Point Dr. Ste 650","Tampa","FL",33607,"813/549-5818","andrew.barrows@progressustherapy.com","FIU Contract","2013-04-01","2025-01-01","2024-07-01","2024-09-01","2024-10-01",null,"OT PT CSD",null,null,null,null,"Umbrella",null,"Progressus Therapy"]
["Active","Project Hope","Peterson","Matthew","Senior Projects Director","255 Carter Hall Lane","Millwood","VA",22646,"1-800-544-4673",null,"Memorandum Of Standing","2013-01-06","2018-03-01","2017-09-01","2017-11-01","2017-12-01",null,"Nursing",null,null,null,null,"Not in Umbrella",null,"Project Hope"]
["Active","Prosthetic And Orthotic Associates","Dickerson","Ronnie",null,"Lower Limb & Athletic Specialist","Orlando","FL",32806,"863/651-6844","dickson.ronnie@gmail.com","FIU Contract","2015-02-01","2025-01-01","2024-07-01","2024-09-01","2024-10-01",null,"OT",null,null,null,null,"Not in Umbrella",null,"Prosthetic and Orthotic Associates"]
["Active","Providence Hospital - DC","Wright","Jeff","PT, ATC, CSCS","1150 Varnum Street, NE","Washington","DC",20017,"(202) 269-7161","jwright@provhosp.org","FIU Contract","2008-09-01","2025-01-01","2024-07-01","2024-09-01","2024-10-01",null,"PT",null,null,null,null,"Not in Umbrella"]
["Active","Psych Mental Health","Munoz","Asuncion",null,"777 East 25 St. #302","Hialeah","FL",33013,"786/502-2502",null,"FIU Contract","2014-08-01","2025-01-01","2024-07-01","2024-09-01","2024-10-01",null,"Nursing",null,null,null,null,"Not in Umbrella"]
["Active","Psychiatric Hospital","Phillips","Lyman ","Hospital Director","Black Rock, St. Michael","Barbados","West Indies","West Indies","246.425-8691","dirpsyche@sunbeach.net","FIU Contract","2005-01-01","2025-01-01","2024-07-01","2024-09-01","2024-10-01",null,"OT",null,null,null,null,"Not in Umbrella",null,"Psychiatric Hospital Barbados"]
["Active","Pulmonary Physicians of South Florida","Cendan","Ignacio E. ","MD","4302 Alton Road, Suite 310","Miami Beach","FL",33140,"305-672-7928",null,"Fiu Facility","2016-01-08","2021-01-07","2020-07-07","2020-09-07","2020-10-07",null,"Nursing",null,null,null,null,null,null,"Pulmonary Physician of South Florida"]
["Active","Quality Care Care Rehab Inc "," Hammitt","Sarah","CAMPUS REATIONS RECRUITER","8477 S. SUNCOAST BLVD","Homosassa","FL",34446,"352/422-1080","shammitt@therapymgmt.com","FIU Contract","2008-12-01","2025-01-01","2024-07-01","2024-09-01","2024-10-01",null,"OT, PT ",null,null,null,null,"Umbrella",null,"Quality Care Rehab"]
["Active","Quality Women's Care Of Florida","Giardini","Laura",null,"601 N Flamingo Rd","Pembroke Pines","FL",33028,"954/431-1211",null,"FIU Contract","2014-04-01","2025-01-01","2024-07-01","2024-09-01","2024-10-01",null,"Nursing",null,null,null,null,"Not in Umbrella"]
["Active","Radiology Associates Of Hollywood","Croghan","Kathy",null,"9050 Pines Blvd","Pembroke Pines","FL",33024,"954/442-8346","kathy.croghan@rahmail.net","FIU Contract","2012-02-01","2025-01-01","2024-07-01","2024-09-01","2024-10-01",null,"Nursing",null,null,null,null,"Not in Umbrella",null,"Radiology Associates of Hollywood"]
["Active","Raeni Coleman Inc  Umbrella","Coleman","Raeni","President","6035 Bird Rd. Ste 205","Miami","FL",33155,"305/609-9763","rcolemanot@bellsouth.net","FIU Contract","2013-12-01","2025-01-01","2024-07-01","2024-09-01","2024-10-01",null,"OT",null,null,null,null,"Not in Umbrella",null,"Raeni Coleman Inc"]
["Active","Raeni Coleman Inc  Umbrella","Coleman","Raeni","Owner","6035 Bird Rd. Ste 203","Miami","FL",33155,"305/609-9763","rcolemanot@bellsouth.net","FIU Contract","2013-12-01","2025-01-01","2024-07-01","2024-09-01","2024-10-01",null,"PT",null,null,null,null,"Not in Umbrella",null,"Raeni Coleman Inc"]
["Active","Rainbow Pediatric","Albrecht","Johanna",null,"3389 Woolbright Rd","Boynton Beach","FL",33436,"(561) 733-0033",null,"FIU Contract","1999-08-01","2025-01-01","2024-07-01","2024-09-01","2024-10-01",null,"Nursing",null,null,null,null,"Not in Umbrella"]
["Active","React Physical Therapy","Roberts","Vince","CEO","939 W Madison St. Ste 103","Chicago ","IL",60607,"312/243-9350","vroberts@bereact.com","FIU Contract","2012-09-01","2025-01-01","2024-07-01","2024-09-01","2024-10-01",null,"PT",null,null,null,null,"Not in Umbrella",null,"React PT"]
["Active","Recovery Unplugged","Harrison","Robert","Program Director","915 Middle River Drive, Suite 114","Fort Lauderdale","FL",33304,"954-368-0888","roberth@recoveryunplugged.com","Facility Contract","2016-01-13","2021-01-12","2020-07-12","2020-09-12","2020-10-12",null,"Nursing",null,null,null,null,null,null,"Recovery Unplugged"]
["Active","Regents Park","Lodouski","Jill","Rehab Director","18905 NE 25 Ave","Aventura","FL",33018,"434-924-5039",null,"FIU Contract","2000-05-01","2025-01-01","2024-07-01","2024-09-01","2024-10-01",null,"OT",null,null,null,null,"Not in Umbrella"]
["Active","Rehab Care (Kindred Rehab)","Vincent","Jennifer","Mgr, Student Programs","680 S. 4th St.","Louisville","KY ",40202,"502/596-6278","Jenn.Vincent@rehabcare.com","Facility Contract","2011-01-01","2025-01-01","2024-07-01","2024-09-01","2024-10-01",null,"all health care fileds requiring clinical experience","X","x","x",null,"Umbrella",null,"Rehab Care - Kindred Rehab"]
["Active","Rehab One","Eckelman","Ellen","PT","11809 W DALE MABRY","Tampa","FL",33618,null,null,"FIU Contract","2004-09-01","2025-01-01","2024-07-01","2024-09-01","2024-10-01",null,"PT",null,null,null,null,"Not in Umbrella"]
["Active","Rehab Visions","Lacey","Debbie","Vice Presient, Human Resources","11623 Arbor Street","Omaha","NE",68144,"800-334-1919 ext 6040","DLacey@RehabVisions.com","FIU Contract","2007-11-01","2025-01-01","2024-07-01","2024-09-01","2024-10-01",null,"OT",null,null,null,null,"Not in Umbrella"]
["Active","Rehabcare Group","Gilcrease","Tiana ","OTR/L","7733 Forsyth Boulevard, Ste 2300","St. Louis","MI",63105,"800 677-1202","TNGilcrease@rehabcare.com","FIU Contract","2004-10-01","2025-01-01","2024-07-01","2024-09-01","2024-10-01",null,"OT",null,null,null,null,"Not in Umbrella"]
["Active","Rehabclinics, Inc  d/b/a Novacre Rehabilitation","Noll","Colleen","CLINICAL CONTRACT COORDINATOR","680 AMERICAN AVENUE","King Of Prussia","PA",19406,"610.992-7215","CMNoll@hq.novacare.com","Facility Contract","2004-11-01","2025-01-01","2024-07-01","2024-09-01","2024-10-01",null,"PT",null,null,null,null,"Not in Umbrella"]
["Active","Rehabilitation Center For Children And Adults","Holmstock","Donna","OTR/L","300 Royal Palm Way","Palm Beach ","FL",33480,"561-655-7266 ext. 20","dholmstock@rcca.org","FIU Contract","2008-12-01","2025-01-01","2024-07-01","2024-09-01","2024-10-01",null,"OT",null,null,null,null,"Not in Umbrella"]
["Active","Rehabilitation Of South Florida","Lopez","William","Owner","2590 SW 107th Ave","Miami","FL",33165,"305/226-7718","williamlopezotr@rosfl.com","FIU Contract","2013-09-01","2025-01-01","2024-07-01","2024-09-01","2024-10-01",null,"OT   PT",null,null,null,null,"Umbrella"]
["Active","Rehabilitation Service LLC","Carvajal","Pedro Md","also Contact Christine Gutierrez","9195 Sunset Drive, Suite 100","Miami","FL",33173,"305-598-3223","cgutierrez@pedrocarvajalmd.com","FIU Contract","2009-12-01","2025-01-01","2024-07-01","2024-09-01","2024-10-01",null,"PT",null,null,null,null,"Not in Umbrella"]
["Active","Riviera Health Resort","Rodriguez","Jose ","Chief Administrative Officer","6901 Yumuri St.","Coral Gables","FL",33146,"786/348-1381","jrodriguez@rivierahealthresort","FIU Contract","2013-09-01","2025-01-01","2024-07-01","2024-09-01","2024-10-01",null,"OT   PT",null,null,null,null,"Umbrella"]
["Active","Robert F. Salazar Office","Salazar ","Robert","ARNP","12955 Biscayne Blvd. Ste 100","Miami","FL",33181,null,null,"","2013-02-01","2025-01-01","2024-07-01","2024-09-01","2024-10-01",null,"Nursing",null,null,null,null,"Not in Umbrella"]
["Active","Rockdale Medical Center","Chupp","Brenda ","Director of Education","1412 Milstead Avenue","Conyers","FL",30012,"770 918-3424","bchupp@rockdale.org","FIU Contract","2006-09-01","2025-01-01","2024-07-01","2024-09-01","2024-10-01",null,"OT",null,null,null,null,"Not in Umbrella"]
["Active","Rub Pediatric","Rub","Beny","MD",null,"Aventura ","FL",33180,null,null,"Facility Contract","2014-10-28","2025-01-01","2024-07-01","2024-09-01","2024-10-01",null,"Nursing",null,null,null,null,"Not in Umbrella"]
["Active","Rush University Medical Center","Ozelie","Becky ","Fieldwork Coordinator","600 S Paulina St. Ste 1010D","Chicago","IL",60612,"312/942-8721","Rebecca_Ozelie@rush.edu ","Facility Contract","2012-06-01","2017-04-01","2016-10-01",{"$f":"IF(N710<>\"\",DATE(YEAR(N710),MONTH(N710)-4,DAY(N710)),\"\")","v":"2016-12-01"},{"$f":"IF(N710<>\"\",DATE(YEAR(N710),MONTH(N710)-3,DAY(N710)),\"\")","v":"2017-01-01"},null,"OT",null,null,null,null,"Not in Umbrella"]
["Active","Sabal Palms Health Care Center","Schwartz","Tara ","PT","499 Alternate Keene Road","Largo","FL",33771,"727-586-4211",null,"FIU Contract","1999-12-01","2025-01-01","2024-07-01","2024-09-01","2024-10-01",null,"OT",null,null,null,null,"Not in Umbrella"]
["Inactive","Saint Andrews Estates ","Rodrigues Burgos","Jose","Director of Rehab","6045 Verde Trao; Spitj","Boca Raton","FL",33433,"561/487-5500","Jose.RodriguezBurgos@aegistherapies.com","no contract","2015-01-06","2025-01-01","2024-07-01","2024-09-01","2024-10-01",null,"OT",null,null,null,null,null,null,"Saint Andrews Estates"]
["Active","Saint Elizabeth Health - Kentucky","Engels","Nancy","Staff Development Educator","4900 Houston Rd.","Florence","KY ",41042,"859/212-4310","Nancy.Engels@stelizabeth.com","Facility Contract","2013-01-01","2025-01-01","2024-07-01","2024-09-01","2024-10-01",null,"OT and other educational programs",null,null,null,null,"Umbrella"]
["Active","Saint Mary's Medical Center"," Batteiger","Tami",null,"901 - 45th St","West Palm Beach","FL",33407,"561/882-2767",null,"","2011-08-01","2025-01-01","2024-07-01","2024-09-01","2024-10-01",null,"Nursing",null,null,null,null,"Not in Umbrella",null,"St Marys Medical Center"]
["Active","Salus Rehabilitation - Fort Pierce Healthcare Associates, Largo Healthcare Associates. Washington Manor Healthcare Associates, Rio Pinar Health Care Assoc.","Skinner","Susan ","REGIONAL RECRUITER","10210 Highland Manor Drive, Suite 290","Tampa","FL",33610,"877-845-5505","sskinner@salusrehab.com","Facility Contract","2008-10-01","2025-01-01","2024-07-01","2024-09-01","2024-10-01",null,"OT, PT, CSD",null,null,null,null,"Umbrella"]
["Active","Sandor Weiner School Of Opportunity","Gonzalez","Lissa","Principal","11025 SW 84 Street, Cottage #5","Miami","FL",33173,"305 279-3064","lgonzalez1@dadeschools.net","FIU Contract","2004-11-01","2025-01-01","2024-07-01","2024-09-01","2024-10-01",null,"OT",null,null,null,null,"Not in Umbrella"]
["Active","Santa Rosa Medical Center","Saunders","Wayne",null,"6002 BERRYHILL ROAD","Milton","FL",32570,"850-626-5187","wayne.sanders@srmcfl.hma-corp.com","FIU Contract","2007-05-01","2025-01-01","2024-07-01","2024-09-01","2024-10-01",null,"PT",null,null,null,null,"Not in Umbrella"]
["Active","Santos Medical And Rehab","Cowley","Roberto","ARNP","13780 SW 26th St., Ste 205","Miami","fl",33175,"305/553-4595",null,"FIU Contract","2012-01-01","2025-01-01","2024-07-01","2024-09-01","2024-10-01",null,"Nursing",null,null,null,null,"Not in Umbrella"]
["Active","Sarasota Memorial Hospital","Hocker","David","Mgr, Healthcare Administration","1700 S. Tamiami Trail","Sarasota","FL",34239,"941/329-6627","dhocker@williamsparker.com","Facility Contract","2014-08-01","2025-01-01",{"$f":"IF(N719<>\"\",DATE(YEAR(N719),MONTH(N719)-6,DAY(N719)),\"\")","v":"2024-07-01"},"2024-09-01","2024-10-01",null,"OT, PT ",null,null,null,null,"Umbrella",null,"Sarasota Memorial"]
["Active","Sauk Prairee Memorial Hospital And Clinics","Pfeffer","Joy ","Education Dept","80 First Street","Prairie Du Sac","WI",53578,null,"jpfeffer@spmh.org","FIU Contract","2010-02-01","2025-01-01","2024-07-01","2024-09-01","2024-10-01",null,"OT",null,null,null,null,"Not in Umbrella"]
["Active","Saunders Physical Therapy And Sports Performance","Saunders","Michael","Owner","14 Thiells Mt Ivy Rd","Pomona","NY",10970,"845/694-8808","wnew1130@aol.com","FIU Contract","2012-09-01","2025-01-01","2024-07-01","2024-09-01","2024-10-01",null,"PT",null,null,null,null,"Not in Umbrella"]
["Active","Saylor Physical Therapy","Ford","Eric","Owner, CEO","136 Corporate Park Dr","Mooresville","NC",28117,"704/360-2796","ericford@live.com","FIU Contract","2013-03-01","2025-01-01","2024-07-01","2024-09-01","2024-10-01",null,"PT",null,null,null,null,"Not in Umbrella"]
["Active","School Board Hillsborough County","Glass","Sheree","Coordinator","1202 East Palm Ave.","Tampa","FL",33605,"813-273-7035",null,"FIU Contract","2003-03-01","2025-01-01","2024-07-01","2024-09-01","2024-10-01",null,"OT",null,null,null,null,"Not in Umbrella"]
["Active","School Board Of MDC","George","Nunez","District School Operations","1500 Biscayne Blvd.","Miami","FL",33132,"305/995-7626","gnunez@","FIU Contract","2011-02-01","2016-02-01","2015-08-01","2015-10-01","2015-11-01",null,"AT",null,null,null,null,"Not in Umbrella"]
["Active","School Board Of Miami Dade County","Dodard","Guirla","Supervisor PT/OT","5555 SW 93rd Ave","Miami","FL",33165,"305/995-1266","gdodard@dadeschools.net","Facility Contract","2014-05-01","2017-06-01","2016-12-01","2017-02-01","2017-03-01",null,"OT,  PT",null,null,null,null,"Umbrella"]
["Active","School Board Of Pinellas County","Price","Noreen Murphy","Supervisor/Medicaid","301  4th Street S.W.; Box 2942","Largo","FL","  33779-2942","727-588-6506","noreen-price@placesmail.pinellas.k12.fl.us","FIU Contract","2004-07-01","2025-01-01","2024-07-01","2024-09-01","2024-10-01",null,"OT",null,null,null,null,"Not in Umbrella"]
["Active","School Board Of St. Lucie County","Booth","Bobbi","Executive Secretary","1905 S. 11th Street","Ft. Pierce","FL",34950,"561-468-5239","BoothB@stlucie.k12.fl.us","FIU Contract","2006-03-01","2025-01-01","2024-07-01","2024-09-01","2024-10-01",null,"OT",null,null,null,null,"Not in Umbrella"]
["Active","School District Of Indian River County","Ferrintino","Dr. Michael ","Director  ","Freshman Learning Ctr; 1507  19th Street","Vero Beach","FL",32960,"561-564-4953",null,"FIU Contract","2000-09-01","2025-01-01","2024-07-01","2024-09-01","2024-10-01",null,"OT",null,null,null,null,"Not in Umbrella"]
["Active","Seasons Hospice & Palliative Care","Del Campo","Pedro O. ","VP Operations","5200 NE 2nd Avenue - 3 Stein","Miami","FL",33137,"305-762-3883","pdelcampo@seasons.org","FIU Contract","2015-02-12","2025-01-01","2024-07-01","2024-09-01","2024-10-01",null,"Nursing",null,null,null,null,"Not in Umbrella",null,"Seasons Hospice"]
["Active","Seitz Pediatrics"," Wink","Jennifer",null,"2828 S. Seacrest Blvd #214","Boynton Beach","FL",33435,"561/734-1888",null,"FIU Contract","2014-07-01","2025-01-01","2024-07-01","2024-09-01","2024-10-01",null,"Nursing",null,null,null,null,"Not in Umbrella"]
["Active","Select Physical Therapy","Zinn","Melanie",null,"4714 Gettysburg Road, P.O. Box 2034","Mechanicsburg","PA",17055,"717975-4503","mezinn@selectmedicalcorp.com","Facility Contract","2009-07-01","2025-01-01","2024-07-01","2024-09-01","2024-10-01",null,"OT",null,null,null,null,"Not in Umbrella"]
["Active","Select Physical Therapy Holdings","","",null,"multiple locations nationwide","",null,null,null,null,"Facility Contract","2009-03-01","2025-01-01","2024-07-01","2024-09-01","2024-10-01",null,"OT PT",null,null,null,null,"Umbrella"]
["Active","Select Rehabilitation Inc","Delossantos","John","ADMINISTRATOR","550 FRONTGATE RD, SUITE 2415","Northfield","IL",60093,null,null,"FIU Contract","2005-08-01","2025-01-01","2024-07-01","2024-09-01","2024-10-01",null,"PT",null,null,null,null,"Not in Umbrella"]
["Active","Semper Care Hospital","Messino","Gary V.","Administrator","2250 Bedford Rd","Orlando","FL",32803,"407 303 7869","gvmess@aol.com","FIU Contract","2004-08-01","2025-01-01","2024-07-01","2024-09-01","2024-10-01",null,"OT",null,null,null,null,"Not in Umbrella"]
["Active","Sensation New York","Gottesman","Chaya ","Clinic Director","127 West 82nd St. Ste 1B","New York","NY",10024,"212/362-6243","chaya@sensationnewyork.com","FIU Contract","2013-09-01","2025-01-01","2024-07-01","2024-09-01","2024-10-01",null,"OT",null,null,null,null,"Not in Umbrella"]
["Active","Sensory Solutions Llc","Kiellach","Jennifer","OTR/L","5045 Ruitville Rd Ste 145","Sarasota","FL",34232,"941/504-7480","jen@sensorysolutionsllc.com","FIU Contract","2013-09-01","2025-01-01","2024-07-01","2024-09-01","2024-10-01",null,"OT",null,null,null,null,"Not in Umbrella"]
["Active","Servimed","Rodriguez","Mara","M.D.","3850 SW 87th Avenue, Suite 205","Miami","FL",33165,"786-452-9095","mararodriguezmd@gmail.com","Facility Contract","2015-08-24","2025-01-01","2024-07-01","2024-09-01","2024-10-01",null,"Nursing",null,null,null,null,"Not in Umbrella",null,"Servimed"]
["Active","Shake A Leg Miami","Sullivan","Ashley ","Program Director","2600 South Bayshore Drive","Miami","FL",33133,"305-858-5550","sal1ashley@aol.co,","FIU Contract","2001-04-01","2025-01-01","2024-07-01","2024-09-01","2024-10-01",null,"OT",null,null,null,null,"Not in Umbrella"]
["Active","Shands Jacksonville Medical Center Inc","Cato","David ",null,"JHMHC  Box 100341","Gainesville","FL",32610,"352-265-0295",null,"Facility Contract","2007-04-01","2025-01-01","2024-07-01","2024-09-01","2024-10-01",null,"OT",null,null,null,null,"Not in Umbrella",null,"Shands"]
["Active","Shands Jacksonville Medical Center, Inc ","Monnseratt","Debbie","CONTRACTS ADMINISTRATOR","655 WEST EIGHTH STREET","Jacksonville","FL",32209,"904-244-0411",null,"Facility Contract","2006-05-08","2025-01-01","2024-07-01","2024-09-01","2024-10-01",null,"PT",null,null,null,null,"Not in Umbrella",null,"Shands"]
["Active","Shands Teaching Hospital & Clinics D/B/A Shands At Uf","O'Conner","Patrick","Director, Therapy Services","1600 SW Archer Rd","Gainesville","FL",32610,"352/265-0295",null,"Facility Contract","2009-08-01","2025-01-01","2024-07-01","2024-09-01","2024-10-01",null,"OT, PT, Nrsg",null,null,null,null,"Umbrella",null,"Shands"]
["Active","Shands Teaching Hospital (Umbrella Agreement)","Jax","Betty","Dir of Education","1600 SW Archer Road","Gainesville","FL",32608,"352-265-0194","jaxbd@shands.ufl.edu","Facility Contract","2009-10-01","2025-01-01","2024-07-01","2024-09-01","2024-10-01",null,"Nursing",null,null,null,null,"Not in Umbrella",null,"Shands"]
["Active","Shands Teaching Hospital And Clinics/Shands Rehab Hospital Umbrella","O'Connor","Patrick","SHANDS REHAB SERVICES","1600 SW ARCHER ROAD","Gainesville","FL",32610,"352-265-0295","oconnp@shands.ufl.edu","Facility Contract","2009-10-01","2025-01-01","2024-07-01","2024-09-01","2024-10-01",null,"PT",null,null,null,null,"Not in Umbrella",null,"Shands"]
["Active","Shands Teaching Hospital Umbrella","Oconnor","Pat","Shands Rehab Svs","1600 SW Archer Road","Gainesville","FL",32610,"352-265-0295","oconnp@shands.ufl.edu","Facility Contract","2009-10-01","2025-01-01","2024-07-01","2024-09-01","2024-10-01",null,"OT",null,null,null,null,"Not in Umbrella",null,"Shands"]
["Active","Sheri Feldman & Associates, Pa","Feldman","Sheri ","Owner/Director","7200 Griffin Road, Ste #3","Davie","FL",33314,"954 791-4460",null,"FIU Contract","2006-04-01","2025-01-01","2024-07-01","2024-09-01","2024-10-01",null,"OT",null,null,null,null,"Not in Umbrella"]
["Active","Sheridan Healthcorp Inc  (Anesthesia)","Tejeda","Adriana","Corporate Paralegal","1613 N Harrison Pkwy Ste 200 (SH-18)","Sunrise","FL",33323,"954/838-2751","adriana.tejeda@shcr.com","Facility Contract","2006-07-21","2016-12-31","2016-07-01","2016-08-31","2016-10-01",null,"CRNA",null,null,null,null,null,null,"Sheridan Healthcorp"]
["Active","Sherrill House","Dempsey","Sean",null,"135 South Huntington Avenue","Jamaica Plain","MA",2130,null,"sean_t_dempsey@yahoo.com","FIU Contract","2009-12-01","2025-01-01","2024-07-01","2024-09-01","2024-10-01",null,"OT",null,null,null,null,"Not in Umbrella"]
["Active","Shine Bright Therapy","Borr","Jennifer","Director","2701 S Bayshore Dr","Miami","FL",33133,"305/854-2462","jennifer@shinebrighttherapy.com","FIU Contract","2015-09-22","2025-01-01","2024-07-01","2024-09-01","2024-10-01",null,"OT",null,null,null,null,null,null,"Shine Bright Therapy"]
["Active","Shriners Hospital For Children","Sharp","Patti","Student Coordinator","3229 Burnet Avenue","Cincinnati","OH",45229,"513-872-6216","rtriplett@shrinenet.org","Facility Contract ","2008-08-01","2025-01-01","2024-07-01","2024-09-01","2024-10-01",null,"OT",null,null,null,null,"Not in Umbrella"]
["Active","Sibley Memorial Hospital","Ronayne","Lisa","Acute PT supervisor","5255 Loughboro Rd NW","Washington","DC",20016,"202/537-7022","lisaronayne@jhmi.org","Facility Contract","2015-03-01","2020-08-31","2020-03-02","2020-05-01","2020-05-31",null,"PT",null,null,null,null,"Not in Umbrella"]
["Inactive","Signature Healthcare - Brookwood Gardens, Signature Healthcare Center Of Waterford, Signature Healthcare Center Of Palm Beach, Anchorcare And Rehab Center, Kenilworth Care And Rehab, Winte Park Care And Rehab Center","Ramos","Rafael","PARALEGAL","2979 PGA BOULEVARD","Palm Beach Gardens","FL",33410,"502-568-7724","Rafael Ramos <rramos@signaturehealthcarellc.com>","Facility Contract","2011-10-01","2025-01-01","2024-07-01","2024-09-01","2024-10-01","Jan 2015 and auto renewal thereafter","OT, PT, CSD",null,null,null,null,"Umbrella",null,"Hialeah Gardens - Waterford Center  "]
["active","Signature Healthcare of Brookwood Gardens (Signature Healthcare facility)","Ramos","Rafael","Contracts Paralegal","1990 South Canal Dr","Homestead","FL",33035,"(305) 246-1200",null,null,"2012-03-01","2025-01-02","2024-07-02","2024-09-02","2024-10-01",null,"OT PT SP"]
["Active","Signature Healthcare of Ormond (Signature Healthcare facility)","Ramos","Rafael","Contracts Paralegal","103 N Clyde Morris Blvd","Ormond Beach","FL",32174,"(386) 673-0450",null,null,"2012-03-01","2025-01-02","2024-07-02","2024-09-02","2024-10-01",null,"OT PT SP"]
["active","Signature Healthcare of Palm Beach (Signature Healthcare facility)","Ramos","Rafael","Contracts Paralegal","4405 Lakewood Rd","Lake Worth","FL",33461,"561) 969-1400",null,null,"2012-03-01","2025-01-02","2024-07-02","2024-09-02","2024-10-01",null,"OT PT SP"]
["active","Signature Healthcare of Waterford (Signature Healthcare facility)","Ramos","Rafael","Contracts Paralegal","8333 W Okeechobee Rd","Hialeah Gardens","FL",33016,"(305) 556-9900",null,null,"2012-03-01","2025-01-02","2024-07-02","2024-09-02","2024-10-01",null,"OT PT SP"]
["Active","Silvia Villegas Md Office","Villagas","Silvia ","MD","777 East 25th St. Unit 209","Hialeah","FL",33013,"305/694-9800",null,"FIU Contract","2014-06-01","2025-01-01","2024-07-01","2024-09-01",{"$f":"IF(N756<>\"\",DATE(YEAR(N756),MONTH(N756)-3,DAY(N756)),\"\")","v":"2024-10-01"},null,"Nursing",null,null,null,null,"Not in Umbrella"]
["Active","Sinai Hospital Of Baltimore (See Lifebridge)","Tasoulis","Sophia","OT Fieldwork Coordinator","2401 West Bekvedere Ave; Mt. Pleasant Bldg II","Baltimore ","MD",21215,"401-601-5142","stasouli@lifebridgehealth.org","Facility Contract","2010-02-10","2025-01-01","2024-07-01","2024-09-01","2024-10-01",null,"OT, PT ",null,null,null,null,"Umbrella"]
["Active","Sirven And Arronte Llc"," Warren","Adriana",null,"8200 SW 117th St. Ste 304","Miami","FL",33183,"305/722-9650","offmgr@wkobhyn.com","FIU Contract","2013-06-01","2025-01-01","2024-07-01","2024-09-01","2024-10-01",null,"Nursing",null,null,null,null,"Not in Umbrella"]
["Active","Sister Emmanuel Hospital HCA","Allen","Beverlin","CNO","3663 South Miami Avenue, 4th Floor","Miami","FL",33133,"305/285-2697","beverlin.Allen@hcahealthcare.com","FIU Contract","2011-12-01","2025-01-01","2024-07-01","2024-09-01","2024-10-01",null,"OT, PT, CSD, DN, HSA, NUR, PH, SW",null,"X",null,null,"Umbrella",null,"Sister Emmanuel Hospital"]
["Active","Skillbuilders For Kids","Bracke","Micheal ","Adminstrator/Director","12651 So. Dixie Hwy, Ste 207","Miami","FL",33156,"305 479-3529",null,"FIU Contract","2004-03-01","2025-01-01","2024-07-01","2024-09-01","2024-10-01",null,"OT",null,null,null,null,"Not in Umbrella"]
["Active","Skills on the Hill","Masci","Kristin","Director","405 -  8th St NE","Washington","DC",20002,"202/544-5439","kristen@skillsonthehill.com","FIU contract","2016-01-01","2025-01-01","2024-07-01","2024-09-01","2024-10-01",null,"OT",null,null,null,null,null,null,"Skills on the Hill"]
["Active","Skin And Cancer Associates","Sharaf","David","MD","2100 E Hallandale Beach Blvd","Hallandale","FL",33009,"954/473-6750","H.Rosenfeld@admcorp.com","FIU Contract","2014-06-01","2025-01-01","2024-07-01","2024-09-01","2024-10-01",null,"Nursing",null,null,null,null,"Not in Umbrella"]
["Active","Sober City Recovery Center","Price","Judith ","ARNP","2152 W. Atlantic Avenue","Delray Beach","FL",33445,"561/501-6516","jprice2447@comcast.net","Facilty Contract","2016-03-21","2021-03-15",{"$f":"IF(N763<>\"\",DATE(YEAR(N763),MONTH(N763)-6,DAY(N763)),\"\")","v":"2020-09-15"},{"$f":"IF(N763<>\"\",DATE(YEAR(N763),MONTH(N763)-4,DAY(N763)),\"\")","v":"2020-11-15"},{"$f":"IF(N763<>\"\",DATE(YEAR(N763),MONTH(N763)-3,DAY(N763)),\"\")","v":"2020-12-15"},null,"Nursing",null,null,null,null,null,null,"Sober City Recovery Center"]
["Active","Sonata Health Care","Doreste","Tiffany ","Resident Care Director","720 Roper Dr","Winter Garden","FL",34787,"407/614-8680","tdoreste@serenadesbysonata.com","FIU Contract","2012-11-01","2025-01-01","2024-07-01","2024-09-01","2024-10-01",null,"OT",null,null,null,null,"Not in Umbrella"]
["Active","South Broward Hospital District/Memorial Host West Fitness And Rehabilitation Center","Luongo","Suzanne","CLINICAL EDUCATION MANAGER","3051 COMMERCE WAY","Miramar","FL",33025,"954-276-5288","SLuongo@mhs.net","Facility Contract","2007-05-01","2025-01-01","2024-07-01","2024-09-01","2024-10-01",null,"AT",null,null,null,null,"Not in Umbrella"]
["Active","South County Mental Health Association","Martino","Bryan","Dir HR","16158 South Military Trail","Delray Beach","FL",33484,"(561) 495-0522",null,"FIU Contract","2013-08-01","2025-01-01","2024-07-01","2024-09-01","2024-10-01",null,"Nursing",null,null,null,null,"Not in Umbrella"]
["Active","South Florida Evaluation & Treatment Center","Brantley","Cheryl ","Hospital Admin","2200 N 7th Avenue","Miami","FL",33136,"305 637-2500",null,"FIU Contract","2005-05-01","2025-01-01","2024-07-01","2024-09-01","2024-10-01",null,"OT",null,null,null,null,"Not in Umbrella"]
["Active","South Florida Evaluation Treatment Center","Kirsch","Debra","MD","18680 SW 376th Street","Homestead ","FL",33034,"786-349-6000","mfunk@correctcarers.com","Facility Contract","2016-01-13","2018-12-10","2018-06-10","2018-08-10","2018-09-10",null,"Nursing",null,null,null,null,null,null,"South Florida Evaluation Treatment Center"]
["Active","South Florida Gynecologic Oncology","Medez","Luis","Medical Director","5000 University Dr. Ste 3300","Coral Cables","FL",33146,"'305/663-7001",null,"FIU Contract","2012-04-01","2025-01-01","2024-07-01","2024-09-01","2024-10-01",null,"Nursing",null,null,null,null,"Not in Umbrella"]
["Active","South Florida Institute Of Sports Medicine","Roberts","Jennifer","PT","1608 TOWNE CENTER, SUITE A","Weston","FL",33326,"954-389-5900",null,"FIU Contract","2008-05-01","2025-01-01","2024-07-01","2024-09-01","2024-10-01",null,"PT",null,null,null,null,"Not in Umbrella"]
["Active","South Florida Rehab Training Center","Carvajal","Gabriel","PT","6808 SW 81STREET","Miami","FL",33143,null,"gabito11@bellsouth.net","FIU Contract","2009-06-01","2025-01-01","2024-07-01","2024-09-01","2024-10-01",null,"PT",null,null,null,null,"Not in Umbrella"]
["Active","South Florida State Hospital - Geo Care","Linette","Donna","MS,RN","800 East Cypress Drive","Pembroke Pines","FL",33025,"(954) 392-3060","dlinette@geocareInc com","FIU Contract","2010-01-01","2025-01-01","2024-07-01","2024-09-01","2024-10-01",null,"Nursing",null,null,null,null,"Not in Umbrella"]
["Active","South Lake Hospital ","Schutte-Powell","Gloria ","Outpaitent Supervisor","2020 Oakley Seaver Dr.","Clermont","FL",34711,"352/241-7282","Gloria.Schutte-Powell@orlandohealth.com","FIU Contract","2012-10-01","2025-01-01","2024-07-01","2024-09-01","2024-10-01",null,"OT   PT",null,null,null,null,"Umbrella"]
["Active","South Miami Ob/Gyn","Avendan","Amy",null,"305/665-1133 x 204","Miami","FL",33143,"305/665-1133","Aavendano@femwell.net","FIU Contract","2014-05-01","2025-01-01","2024-07-01","2024-09-01","2024-10-01",null,"Nursing",null,null,null,null,"Not in Umbrella"]
["Active","South Miami Pain & Rehab, Inc ","Leon","Jeannette C. ","Administrator/Controller","8415 Coral Way, Ste 204","Miami","FL",33155,"305 267-7272","leon818@bellsouth.net","FIU Contract","2005-04-01","2025-01-01","2024-07-01",{"$f":"IF(N775<>\"\",DATE(YEAR(N775),MONTH(N775)-4,DAY(N775)),\"\")","v":"2024-09-01"},"2024-10-01",null,"OT",null,null,null,null,"Not in Umbrella"]
["Active","South Miami Sports Medicine & Hand Therapy","Millares","Robert A. ","President","1544 Venera Ave","Coral Gables","FL",33146,"305/666-7116","smsm@cofs.net","FIU Contract","2002-01-01","2025-01-01","2024-07-01","2024-09-01","2024-10-01",null,"OT",null,null,null,null,"Not in Umbrella"]
["Active","South Miami Sports Medicine An Ot/Pt Clinic In So Miami","Fister","Bill","BUSINESS OFFICE MANAGER","7000 SW 62 AVENUE, SUITE 120","Miami","FL","33143",null,"smsm994@bellsouth.net","FIU Contract","2006-03-01","2025-01-01","2024-07-01","2024-09-01","2024-10-01",null,"PT",null,null,null,null,"Not in Umbrella"]
["Active","South Pines Academy dba Home Builders Institute","Ward","Florence","Project Coordinator","8200 South Palm Dr. Bldg 67","Pembroke Pines","FL",33025,"561/248-5536","fward@hbi.org","FIU contract","2007-01-01","2025-01-01","2024-07-01","2024-09-01","2024-10-01",null,"OT",null,null,null,null,null,null,"South Pines Academy dba Home Builders Instit"]
["Active","South Point Plaza Rehabilitation & Nursing Center","Schuster","Rachel","DIRECTOR","42 COLLINS AVENUE","Miami Beach","FL",33139,"305-458-3835","rshuster@hebrewhomes.org","FIU Contract","2010-02-01","2025-01-01","2024-07-01","2024-09-01","2024-10-01",null,"OT, PT, CSD",null,null,null,null,"Umbrella"]
["Active","South University West Palm Beach","Baroone","Priscilla","Dir Nursing Prgm","9801 Belvedere Rd.","Royal Palm Beach","FL",33411,null,null,"FIU Contract","2011-01-11","2025-01-01","2024-07-01","2024-09-01","2024-10-01",null,"Nursing",null,null,null,null,"Not in Umbrella"]
["Active","Southeast Homecare Corporation","Joblove","Karen","RN, VP","7715 NW 48th Street, Suite 380","Miami","FL",33166,"786-507-2400",null,"FIU Contract","2008-10-01","2025-01-01","2024-07-01","2024-09-01","2024-10-01",null,"Nursing",null,null,null,null,"Not in Umbrella"]
["Active","Speakeasy for Kids Inc","Alvarez","Diane","Assistant","4960 SW 72nd Ave Ste 305","Miami","FL",33155,"305/663-5571","speakeasyforkids@gmail.com","FIU Contract","2009-02-01","2025-01-01","2024-07-01","2024-09-01","2024-10-01",null,"CSD ",null,null,null,null,"Not in Umbrella",null,"Speakeasy for Kids Inc"]
["Active","Special Communications LLC","Crowley","Peggy","Manager","1621 NE Waldo Rd","Gainesville","FL",32609,null,"specialcommunications2004@yahoo.com","FIU Contract","2015-07-17","2025-01-01","2024-07-01","2024-09-01","2024-10-01",null,"OT",null,null,null,null,null,null,"Special Communications LLC"]
["Active","Special Olympics Florida (SOFL)","","",null,null,"Hollywood","FL",33024,null,null,"Facility Contract","2014-11-25","2025-01-01",{"$f":"IF(N784<>\"\",DATE(YEAR(N784),MONTH(N784)-6,DAY(N784)),\"\")","v":"2024-07-01"},"2024-09-01","2024-10-01",null,"Nursing",null,null,null,null,"Not in Umbrella"]
["Active","Special Services For Groups-Ot Training Program","Devine","Colleen  ","Consultant","425 Divisadero St, Ste 301","San Francisco","CA",94117,"415 551-0975","colleendevine@comcast.net","FIU Contract","2004-12-01","2025-01-01","2024-07-01","2024-09-01","2024-10-01",null,"OT",null,null,null,null,"Not in Umbrella"]
["Active","Specialized Speech Center","Tambasco","John","Administrator","3157 N University Dr Ste 103","Pembroke Pines","FL",33024,"954/442-4780","SpecializedSpch@bellsouth.net","FIU Contract","2000-08-01","2025-01-01","2024-07-01","2024-09-01","2024-10-01",null,"SP",null,null,null,null,"Not in Umbrella"]
["Active","Specialized Speech Center Inc ","Davignon","Chantel","OTR/L","10011 Pines Blvd.  #103","Pembroke Pines","FL",33024,"954-442-9422",null,"FIU Contract","2000-08-01","2025-01-01","2024-07-01","2024-09-01","2024-10-01",null,"OT",null,null,null,null,"Not in Umbrella"]
["Active","Spectrum Programs, Inc  See Miami Behavioral Health Center","Trunzo","Nick",null,"11031 NE 6 Avenue","Miami","FL",33161,null,"rbohs@spectrumprograms.org","FIU Contract","2007-03-01","2025-01-01","2024-07-01","2024-09-01","2024-10-01",null,"OT",null,null,null,null,"Not in Umbrella",null,"Spectrum 2007"]
["Active","Speech And Language Therapy Inc","Hernandez","Jose Miguel","President & Founder","12001 SW 28th Court Ste 101 7600 W 20th Ave Ste 112","Miami & Hialeah","FL","33186      33016",null,"yosleny22@yahoo.com","FIU Contract","2015-01-15","2025-01-01","2024-07-01","2024-09-01","2024-10-01",null,"OT PT",null,null,null,null,"Umbrella",null,"Speech and Language Therapy"]
["Active","Speech Therapy Center My Therapy Center As Of 2/2014","Cardeso","Barbara","owner","1450 SW 22nd St. #12","Miami","FL",33145,"305/856-1999","cristinablancostc@gmail.com","FIU Contract","2012-12-01","2025-01-01","2024-07-01","2024-09-01","2024-10-01",null,"OT",null,null,null,null,"Not in Umbrella"]
["Active","Sport Specialty and Rehab Center","Price","Elke","Administrator","2326 Hancock Bridge Pkwy #103","Cape Coral","FL",33990,"239/573-1518","elke@sportsspecialty.com","FIU Contract","2016-02-01","2020-01-31","2019-07-31","2019-10-01","2019-10-31",null,"OT",null,null,null,null,null,null,"Sports Specialty and Rehab Center"]
["Active","Sport Specific Training","Kenkelman","Mike","MHS,PT,ATC","4501 VINELAND  RD. STE 103","Orlando","FL","32811",null,null,"FIU Contract","2005-01-01","2025-01-01","2024-07-01","2024-09-01","2024-10-01",null,"PT",null,null,null,null,"Not in Umbrella"]
["Active","Sportfit Rehab & Training","Yacoub","Ron","MS, PT","1236 S. DIXIE HWY.","Coral Gables","FL","33146","305 445-1926 X2682",null,"FIU Contract","2003-09-01","2025-01-01","2024-07-01","2024-09-01","2024-10-01",null,"PT",null,null,null,null,"Not in Umbrella"]
["Active","Sports Medicine of Atlanta","DuVall","Robert","Physical Therapist","2138 Scenic Hwy Ste B","Snellville","GA",30078,"770/979-1400","reduvall@bellsouth.net","FIU Contract","2016-01-01","2020-12-31","2020-07-01","2020-08-31","2020-10-01",null,"PT",null,null,null,null,null,null,"Sports Medicine of Atlanta"]
["Active","Sports Physical Therapy Of New York","Alexander","Aimee","SVP CLINICAL SERVICES","ONE WEST MEDICAL, STE 125","Saratoga Springs","NY",12866,"518/583-7537","aalexander@sptny.com","Facility Contract","2010-07-01","2025-01-01","2024-07-01","2024-09-01","2024-10-01",null,"OT   PT"," "," "," ",null,"Umbrella",null,"Sports PT of NY"]
["Active","Spot Therapy Associates","Washburn","Jennifer","Owner","14391 Metropolis Ave, snit 101","Ft. Myers","FL",33912,"239/561-2778","jentinsley02@yahoo.com","FIU Contract","2016-02-01","2020-01-31","2019-07-31","2019-10-01","2019-10-31",null,"OT",null,null,null,null,null,null,"Spot Therapy Associates"]
["Active","SRS Psychology","Renfrow","Stephanie","PY","7100 W. Camino Real, Suite 302","Boca Raton","FL",33433,"919-272-3618","dr.renfrow@gmail.com","Facility Contract","2016-01-20","2021-01-19","2020-07-19","2020-09-19","2020-10-19",null,"Nursing",null,null,null,null,null,null,"SRS Psychology"]
["Inactive","St Francis Medical Center","Walz","Allan","Staff Dev Coord","2230 Liliha St. ","Honolulu","HI",96820,"808/547-6496",null,"Facility","2004-01-01","2025-01-01","2024-07-01","2024-09-01","2024-10-01",null,"PT",null,null,null,null,null,null,"St Francis Medical Center"]
["Inactive","St Josephs/Candler Health System","Alvarez","Lissa","Contract Coordinator","5353 Reynolds St.","Savannah ","GA",31405,"912/819-5294","alvarezl@sjchs.org","Facility","2003-03-21","2003-03-21","2006-03-21",null,null,null,"OT",null,null,null,null,"Not in Umbrella",null,"St Joseph/Candler Health"]
["Active","St Vincents Healthcare Including St. Vincent's Medical Center Riverside, St. Vincent's Southside, St. Vincent's Clay County Inc","Moore","Frances","System Dir of Education","1 Shircliff Way & 4201 Belfort Rd","Jacksonville","FL",null,"904/296-4087","fmoore@jayhealth.com","Facility Contract","2014-05-01","2025-01-01",{"$f":"IF(N800<>\"\",DATE(YEAR(N800),MONTH(N800)-6,DAY(N800)),\"\")","v":"2024-07-01"},{"$f":"IF(N800<>\"\",DATE(YEAR(N800),MONTH(N800)-4,DAY(N800)),\"\")","v":"2024-09-01"},{"$f":"IF(N800<>\"\",DATE(YEAR(N800),MONTH(N800)-3,DAY(N800)),\"\")","v":"2024-10-01"},null,"PT",null,null,null,null,"Not in Umbrella"]
["Active","St. Anthony Hospital","Teo","Marcy","LEGAL SERVICES DEPARTMENT","1200 7TH AVENUE NORTH,PO BOX 12588","St. Petersburg","FL","33705","813 825-1100",null,"FIU Contract","2004-12-01","2025-01-01","2024-07-01","2024-09-01","2024-10-01",null,"PT",null,null,null,null,"Not in Umbrella",null,"St Johns Rehab dba St Anthonys"]
["Active","St. Anthony's Hospital - See St. John's Rehab & Nursing Center","","",null,"1200 7th Avenue North","St. Petersburg","FL",33705,"727-825-1100",null,"FIU Contract","2004-12-01","2025-01-01","2024-07-01","2024-09-01","2024-10-01",null,"OT",null,null,null,null,"Not in Umbrella"]
["Inactive","St. Charles Hospital - Expired","Geffner","Leslie",null,"200 BELLE TERRE ROAD","Port Jefferson","NY","11777-1928","631-474-6000","leslie.geffner@chsli.org","Facility Contract","2007-06-01",null,"","","","EXPIRED  - Request for renewal sent 1/25/10","OT, PT, CSD",null,null,null,null,"Umbrella"]
["Active","St. Francis Medical Center-Hawaii","Walz","Allan","STAFF DEVELOPMENT COORDINATOR","2230 LILIHA ST., P. O. BOX 30100","Honolulu","HI","96820-0100",null,null,"FIU Contract","2004-01-01","2025-01-01","2024-07-01","2024-09-01","2024-10-01",null,"PT",null,null,null,null,"Not in Umbrella"]
["Active","St. John Bosco Clinic","Cabrera","Berta","Executive Director","730 NW 34th St.","Miami","FL",33127,"305-854-0533","berta.cabrera@ssjhealthfoundation.org","FIU Contract","2012-01-01","2025-01-01","2024-07-01","2024-09-01","2024-10-01",null,"HSA, NSG, PT, OT, SP",null,null,null,null,"Not in Umbrella",null,"St John Bosco Clinic"]
["Active","St. John Bosco Clinic - Mercy Mission Services","Berta ","Cabrera","Executive Director","3661 South Miami Ave Ste 103","Miami  ","FL",33133,"305/854-0533","berta.cabrera@mercyfoundaitonmiami.org","FIU Contract","2012-03-01","2025-01-01","2024-07-01","2024-09-01","2024-10-01",null,"OT, PT, CSD, NUR, HSA","cnn",null,null,null,"Umbrella"]
["Active","St. Johns Rehab Hospital & Nursing Center D/B/A/ St. Anthony's Rehab Hospital","Casauay","Jorge","DIRECTOR REHAB SERVICES","3487 nw 30TH AVE","Lauderdale Lakes, ","FL",33311,null,"JCASAUAY@CHSFL","FIU Contract","2011-04-01","2025-01-01","2024-07-01","2024-09-01","2024-10-01",null,"OT, PT, SP",null,null,null,null,"Umbrella"]
["Active","St. Joseph's Hospital, Inc  -See Baycare Health System, Inc ","","",null,null,"",null,null,null,null,"",null,"2017-04-01","2016-10-01","2016-12-01","2017-01-01",null,"PT",null,null,null,null,"Not in Umbrella"]
["Active","St. Jude Medical Center","Nakagawa","Patti","Mgr. Ortho Sports & PT practu=ice","101 E. Valencia Drive","Fullerton","CA",92835,"714/578-8706 x2408","patti.nakagawa@stjoe.org","Facility","2016-01-27","2019-01-26","2018-07-26","2018-09-26","2018-10-26",null,"PT",null,null,null,null,null,null,"St. Jude Medical Center"]
["Inactive","St. Lucie Medical Center HCA","Bayless","Pamela","Director of Rehab","1800 SE Tiffany Ave","Port St. Lucie","FL",34952,"772/398-3554","Pamela.Bayless@hcahealthcare.com","Facility Contract","2011-08-05","2014-02-01","2013-08-01","2013-10-01","2013-11-01",null,"OT, PT ",null,null,null,null,"Umbrella",null,"St Lucie Medical Center"]
["Active","St. Marys Child Development Center Inc d/b/a Center For Child Development","Hollis","Maureen","CHIEF OPERATING OFFICER","5325 GREENWOOD AVE, SUITE 201","Wpb","FL",33407,"561.881-2822","Maureen.Hollis@ctrcd.org","Complete","2006-06-01","2025-01-01","2024-07-01","2024-09-01","2024-10-01",null,"PT",null,null,null,null,"Not in Umbrella"]
["Active","St. Marys Medical Center (OT PT)","Batteiger","Tami","DIRECTOR OF EDUCATION AND STAFF DEVELOPMENT","901 - 45TH ST.","West Palm Beach","FL",33407,"561/882-2767","Tami.Batteiger@TenetHealth.com","Facility Contract","2010-06-01","2015-10-04","2015-04-04","2015-06-04","2015-07-04",null,"OT, PT",null,"X",null,null,"Umbrella"]
["Active","St. Marys Medical Center (PNP SW DN)","Batteiger","Tami","Director Education & Staff Development","901-45th St","West Palm Beach","FL",33407,"561/882-2767","Tami.Batteiger@TenetHealth.com","Facility Contract","2010-08-01","2025-01-01","2024-07-01","2024-09-01","2024-10-01",null,"PNP SW DN"]
["Active","St. Therese's Roses Of Hope Pediatric Center Inc","Munoz","Mariateresa","President","10300 Sunset Dr. Ste 280","Miami","FL",33173,"305/510-4485","munozt@fiu.edu","FIU Contract","2015-09-04","2025-01-01","2024-07-01","2024-09-01","2024-10-01",null,"OT  CSD",null,null,null,null,"Umbrella",null,"St Thereses Roses of Hope Pediatric Center"]
["Active","St. Thomas University","","",null,"16401 NW 37th Ave","Miami Gardens","FL",33054,null,null,"Amendment","2014-05-01","2025-01-01","2024-07-01","2024-09-01","2024-10-01",null,"AT DN PH SW","x","x",null,null,"Umbrella",null,"St Thomas University"]
["Active","St. Vincents Medical Center Riverside","Mckoy","Nancy"," ","1800 Barrs St.","Jacksonville","FL",32204," "," ","Facility Contract","2000-04-01","2025-01-01","2024-07-01","2024-09-01","2024-10-01",null,"OT   PT",null,null,null,null,"Umbrella"]
["Active","St. Vincents Medical Center Southside","Byrne","Joann","System Director, Education & Org Development","4201 Belfort Rd. ","Jacksonville","FL",32216,"904/296-5854","JoAnn.Byrne@jaxhealth.com","Facility Contract","2012-04-01","2025-01-01","2024-07-01","2024-09-01","2024-10-01",null,"OT   PT",null,null,null,null,"Umbrella",null,"St Vincents Medical Center"]
["Active","Sumlar Therapy Services","Sumlar","Kristin","PT, CEO","193 SAM LISENBY ROAD","Ozark","AL",36360,"334-445-6336","kristiin@sumlartherapy.com","FIU Contract","2008-12-01","2025-01-01","2024-07-01","2024-09-01","2024-10-01",null,"OT, PT, CSD",null,null,null,null,"Umbrella"]
["Active","Summit Detox","Jawad","Daud","MD","3330 S. Federal Hwy","Boynton Beach","FL",33435,"561-336-3783",null,"Facility Contract","2015-10-06","2025-01-01","2024-07-01","2024-09-01","2024-10-01",null,"Nursing",null,null,null,null,"Not in Umbrella",null,"Summit Detox"]
["Active","Sunlife Ob/Gyn Services","Bliss","Winston","MD"," 4101 NW 4th St., Ste 306","Plantation ","FL",33317,"954/522-2979","infor@sunlifeobgyn.com","FIU Contract","2012-01-01","2025-01-01","2024-07-01","2024-09-01","2024-10-01",null,"Nursing",null,null,null,null,"Not in Umbrella",null,"SunLife OBGYN"]
["Active","Sunlife Pediatrics","Huddy","Mary",null,"4101 NW 4th St. Ste 200","Plantation","FL",33317,null,"mhuddy.sipn@yahoo.com","FIU Contract","2011-05-01","2025-01-01","2024-07-01","2024-09-01","2024-10-01",null,"Nursing",null,null,null,null,"Not in Umbrella",null,"Sunlife Pediatrics"]
["Active","Sunrise Community Inc ","Mendez","Jolynne","Director","11975 SW 104th Terrace","Miami","FL",33186,"305/341-8400","Jmendez@sunrisegroup.org","FIU Contract","2013-06-01","2025-01-01","2024-07-01","2024-09-01","2024-10-01",null,"OT",null,null,null,null,"Not in Umbrella",null,"Sunrise Community"]
["Active","Sunrise Health & Rehab Center","Ebel","Debbie","Director of Rehab","4800 Nob Hill Road","Sunrise","FL",33351,"954 577-3600 x3703","Debel@sunrisehc.com","FIU Contract","2006-12-01","2025-01-01","2024-07-01","2024-09-01","2024-10-01",null,"OT",null,null,null,null,"Not in Umbrella"]
["Active","Sunset Cardiology, Pl","Barcena","Julio ",null,null,"Miami","FL",33173,null,null,"Facility Contract","2015-01-26","2025-01-01","2024-07-01","2024-09-01","2024-10-01",null,"Nursing",null,null,null,null,"Not in Umbrella"]
["Active","Sunset Speech And Language Pathology","Berry","Melissa","Director","1550 South Dixie Hwy, Ste 214","Coral Gables","FL",33146,"917-592-3322","melissa@sunsetspeech.com","FIU Contract","2009-08-01","2025-01-01","2024-07-01","2024-09-01","2024-10-01",null,"OT",null,null,null,null,"Not in Umbrella"]
["Active","Sunset Speech And Language Pathology Llc","Berry","Melissa","M.A., CCC-SLP, DIRECTOR","1550 SOUTH DIXIE HWY, SUITE 214","Coral Gables","FL",33146,"917-592-3322","melissa@sunsetspeech.com","FIU Contract","2009-08-01","2025-01-01","2024-07-01","2024-09-01","2024-10-01",null,"PT",null,null,null,null,"Not in Umbrella"]
["Active","Sunshine Therapy","Gonzalez","Patricia","Administrator","18639 SW 107 Ave","Miami","FL",33157,"305 259-4778",null,"FIU Contract","2003-01-01","2025-01-01","2024-07-01","2024-09-01","2024-10-01",null,"OT",null,null,null,null,"Not in Umbrella"]
["Active","Super Hero Speech","Sakowitz","Lisa","Owner","1000 Fifth St Ste 200 H-9","Miami Beach","FL",33139,"786/300-9949","superherospeech@gmail.com","FIU Contract","2015-10-15","2025-01-01","2024-07-01","2024-09-01","2024-10-01",null,"SP"]
["Active","Sylma M Millares Pa Office","Millares","Sylma",null,"5545 SW 8th St. Ste 206","Miami","FL",33134,"  \n 305-271-8509  ","sylmamm@bellsouth.net","FIU Contract","2013-05-01","2025-01-01","2024-07-01","2024-09-01","2024-10-01",null,"Nursing",null,null,null,null,"Not in Umbrella"]
["Active","Take Care Health Clinics"," Rubio-Delgado","Cristina","ARNP","Jeffrey Petrick, CEO, 8 Tower Bride, 161 Washington Street, Suite 1400'","Conshohocken","PA",19428,"786-447-7096","cristina.rubio-delgado@takecarehealth.com","Facility Contract","2013-10-01","2025-01-01","2024-07-01","2024-09-01","2024-10-01",null,"Nursing",null,null,null,null,"Not in Umbrella",null,"Take Care Health Systems "]
["Active","Tallahassee Memorial Hospital (Addendum must be completed each year)","Ross","Ingrid","Academic & contract Liaison","1207 TNH Court","Tallahassee","FL","32308-4660","850/431-5786",null,"Facility Contract","2014-01-01","2016-07-31","2016-01-31","2016-03-31","2016-05-01",null,"NUR PT",null,null,null,null,"Umbrella",null,"Tallahassee Memorial"]
["Active","Tampa Children's Hospital Inc  - See Baycare Health System, Inc ","","",null,null,"",null,null,null,null,"",null,"2017-04-01",{"$f":"IF(N832<>\"\",DATE(YEAR(N832),MONTH(N832)-6,DAY(N832)),\"\")","v":"2016-10-01"},{"$f":"IF(N832<>\"\",DATE(YEAR(N832),MONTH(N832)-4,DAY(N832)),\"\")","v":"2016-12-01"},{"$f":"IF(N832<>\"\",DATE(YEAR(N832),MONTH(N832)-3,DAY(N832)),\"\")","v":"2017-01-01"},null,"PT",null,null,null,null,"Not in Umbrella"]
["Active","Tampa General Hospital HCA","Welsh","Tabitha","MMIS Analyst","P.O. Box 1289","Tampa ","FL",33601,"813/844-7235","twelsh@tgh.org","Facility Contract","2014-08-19","2020-04-01","2019-10-01","2019-12-01","2020-01-01",null,"OT   PT",null,null,null,null,"Umbrella",null,"Tampa General"]
["Active","Tandem Rehab","Murphy","Lisa","Corporate Human Resource Director","2111 Glenwood Drive, Ste #202","Winter Park","FL",32792,"800 701-0585","lisamurphy85@comcast.net","FIU Contract","2004-12-01","2025-01-01","2024-07-01","2024-09-01","2024-10-01",null,"OT",null,null,null,null,"Not in Umbrella"]
["Active","Tangilble Difference Learning Center","Codi","Kessler","Student Coordinator","7010 NW 100 Dr. Ste A-104","Houston","TX",77092,"713/462-6060","kesslerck@gmail.com","FIU Contract","2013-01-01","2025-01-01","2024-07-01","2024-09-01","2024-10-01",null,"OT",null,null,null,null,"Not in Umbrella",null,"Tangible Difference"]
["Active","Team Rehabilitation Services","Garrett","Stacey","CONTRACT ADMINISTRATOR","33900 Harper, Ste 104","Clinton Township","MI",48035,"586/416-9100","Stacey.Garrett@team-rehab.com","FIU Contract","2015-09-04","2025-01-01","2024-07-01","2024-09-01","2024-10-01",null,"OT",null,null,null,null,null,null,"Team Rehab"]
["Active","Tender Touch Healthcare Services","Blaire","Lori","OTR/L","685 River Avenue","Lakewood","NJ","08701","732-367-3667",null,"FIU Contract","2008-10-01","2025-01-01","2024-07-01","2024-09-01","2024-10-01",null,"OT",null,null,null,null,"Not in Umbrella"]
["Active","Tenet Florida Physicians Services","Tjon","Ana","HR Recruiting Manager","9960 Central Park Blvd, Ste 400","Boca Raton","FL",33428,"561/288-5521","anna.tjon@tenethealth.com","Facility Contract","2012-01-01","2025-01-01","2024-07-01","2024-09-01","2024-10-01",null,"NUR, OT  PT",null,null,null,null,"Umbrella",null,"Tenet Florida Physicians"]
["Active","Tenet Florida Physicians Services (Umbrella Agreement)","Ecker","Alyse","Contract Administrator","9960 Central Park Blvd., North, Ste 400","Boca Raton","FL","33428-1759","561/288-5521","Alyse.Ecker@tenethealth.com","Facility Contract","2011-07-01","2025-01-01","2024-07-01","2024-09-01","2024-10-01",null,"NP PT OT    ",null,null,null,null,"Umbrella",null,"Tenet Florida Physicians"]
["Active","Terrance Cardinal Cooke Health Care Center","Medford","Linda","Administrator","1249 5th Avenue","New York","NY",null,"212-360-3735",null,"FIU Contract","2004-03-01","2025-01-01","2024-07-01","2024-09-01","2024-10-01",null,"OT",null,null,null,null,"Not in Umbrella"]
["Active","Texas Childrens Hospital","Williams","Rhonda","Contract Admin Mgr","6621 Fannin St","Houston","TX",77030,"832/824-1000","rlwillia@texaschildrens.org","Facility Contract","2013-09-01","2017-09-01","2017-03-01","2017-05-01","2017-06-01",null,"OT  PT",null,null,null,null,"Umbrella",null,"Texas Childrens Hospital"]
["Inactive","The Harbor - See Baycare Health System, Inc ","","",null,null,"",null,null,null,null,"",null,null,"","","",null,"PT",null,null,null,null,"Not in Umbrella"]
["Active","The Palace at Kendall Nursing and Rehabilitation Center","Plasencia","Belkis","Dir of Training and Education","11215 SW 84th Street","Miami","FL",33173,"305/305-6573","belkisplacencia@hotmail.com","Facility Contract","2016-02-11","2020-02-10","2019-08-10","2019-10-10","2019-11-10",null,"Undergraduate Nursing",null,null,null,null,null,null,"The Palace at Kendall Nursing and Rehabilitation Center"]
["Active","The Palms Of Fort Myers (Five Start Senior Living) Umbrella","Hendricks","Lori","OTR/L ","2674 Winkler Ave","Ft. Myers","FL",33901,"239/275-7800","Lhendricks@5sqc.com","FIU Contract","2012-02-01","2025-01-01","2024-07-01","2024-09-01","2024-10-01",null,"PT OT",null,null,null,null,"Umbrella"]
["Active","Thera Rehab Inc ","Frahm","Kathleen","President","11434 SW 114th Ct","Miami","FL",33176,"786-393-7807","frahmk@bellsouth.net","FIU Contract","2010-04-10","2025-01-01","2024-07-01","2024-09-01","2024-10-01",null,"OT",null,null,null,null,"Not in Umbrella",null,"Thera Rehab"]
["Active","Therakids Plus Inc ","Booth","Kim","Owner","16102 North Florida Ave","Lutz","FL",33549,"813/873-1936","Therkidsplus@hotmail.com","FIU Contract","2015-03-01","2025-01-01","2024-07-01","2024-09-01","2024-10-01",null,"PT",null,null,null,null,"Not in Umbrella",null,"Thera Kids Plus Inc"]
["Active","Therapeutic Resources Inc ","Rusinowski","Joseph","PT","5450 West Hillsboro Blvd, Suite 9","Coconut Creek","FL",33073,"954 725-9125","JOE@TRI-PT.com","FIU Contract","2006-12-01","2025-01-01","2024-07-01","2024-09-01","2024-10-01",null,"PT",null,null,null,null,"Not in Umbrella"]
["Active","Therapeutic Specialty Services","Dodson Smith","Donna",null,null,"",null,null,"321 948-3111","tffrehab@aol.com","FIU Contract","2006-09-01","2025-01-01","2024-07-01","2024-09-01","2024-10-01",null,"OT",null,null,null,null,"Not in Umbrella"]
["Active","Therapies 4 Kids","Eileen","De Oliveira","President","4010 N. Ocean Blvd., Ft. Lauderdale & 1750 N. University, Coral Springs","Ft. Lauderdale & Coral Springs","FL",33308,"954/491-6611","eileen@therapies4kids.com","FIU Contract","2013-11-01","2025-01-01","2024-07-01","2024-09-01","2024-10-01",null,"OT  PT  SP",null,null,null,null,"Umbrella",null,"Therapies 4 Kids"]
["Active","Therapies For Kids","Patenante","Christine","PT ASSISTANT","4001 N Ocean Drive","Lauderdale By The Sea","FL",33308,null,null,"FIU Contract","2007-07-01","2025-01-01","2024-07-01","2024-09-01","2024-10-01",null,"PT",null,null,null,null,"Not in Umbrella"]
["Active","Therapies For Kids Plus","Kramer","Stacie","Administrator","4602 North Alemania Ave., Ste B-2","Tampa","FL",33605,"813-873-1936",null,"FIU Contract","2002-09-01","2025-01-01","2024-07-01","2024-09-01","2024-10-01",null,"OT",null,null,null,null,"Not in Umbrella",null,"TheraKids Plus"]
["Active","Therapy Alliance","Mudry","Emanuel","Owner","5979 NW 151st St. Ste 108","Miami Lakes","FL",null,null,null,"FIU Contract","2012-05-01","2025-01-01","2024-07-01","2024-09-01","2024-10-01",null,"OT",null,null,null,null,"Not in Umbrella",null,"Therapy Alliance"]
["Active","Therapy By Design","Martinez","Millie","Facility Administrator","13903 NW 67 Avenue, Ste 440","Miami Lakes","FL",33014,"305 512-5757","therapybydesign@bellsouth.net","FIU Contract","2005-03-01","2025-01-01","2024-07-01","2024-09-01","2024-10-01",null,"OT",null,null,null,null,"Not in Umbrella"]
["Active","Therapy In Motion","Fieiner","Adrienne","Owner","1102 Rialto Dr.","Boynton Beach","FL",33436,"561-731-1975",null,"FIU Contract","2003-02-01","2025-01-01","2024-07-01","2024-09-01","2024-10-01",null,"OT",null,null,null,null,"Not in Umbrella"]
["Active","Therapy Management Corp D/B/A Tristar Rehab, Quality Care Rehab, And Tlc Rehab","Hammtt","Sarah","CAMPUS REATIONS RECRUITER","8477 S SUNCOAST BLVD","Homosassa","FL",34446,"800-964-9055","shammitt@therapymgmt.com","FIU Contract","2008-11-01","2025-01-01","2024-07-01","2024-09-01","2024-10-01",null,"OT, PT",null,null,null,null,"Umbrella"]
["Active","Therapy Spot","Weller","Monica M. ",null,"7100 W Camino Real, Ste 201","Boca Raton","FL",33433,null,null,"","2013-04-01","2025-01-01","2024-07-01","2024-09-01","2024-10-01",null,"OT",null,null,null,null,"Not in Umbrella",null,"Therapy Spot"]
["Active","Therapy Works","Perri","Shauna","Exec Assistant","1819 Hendricks Ave Ste 2&3","Jacksonville","FL",32207,"904/525-9010","sperri@therapyworksInc com","FIU Contract","2013-12-01","2025-01-01","2024-07-01","2024-09-01","2024-10-01",null,"PT",null,null,null,null,"Not in Umbrella",null,"Therapy Works"]
["Active","Third Step Mental Health Center","Young","John",null,null,"Dania Beach","FL",33304,null,null,"Facility Contract","2014-09-06","2025-01-01","2024-07-01","2024-09-01","2024-10-01",null,"Nursing",null,null,null,null,"Not in Umbrella"]
["Active","Timber Ridge Nursing & Rehab Center","Goddard","Darlene","HUMAN RESOURCES DIRECTOR","9848 SW 110 ST","Ocala","FL",34481,"352.8200 X2244","DarleneGoddard@mrhs.org","FIU Contract","2004-05-01","2025-01-01","2024-07-01","2024-09-01","2024-10-01",null,"PT",null,null,null,null,"Not in Umbrella"]
["Active","Tirr - The Institute For Rehabilitation & Research (Memorial Hermann Healthcare System- Tirr - Rehabilitation Centers)","Desilva","Kathleen","IN HOUSE COUNSEL","1333 MOURSUND","Houston","TX","77030","713.799-5000",null,"FIU Contract","2008-06-03","2025-01-01","2024-07-01","2024-09-01","2024-10-01",null,"PT",null,null,null,null,"Not in Umbrella"]
["Active","Tirr Rehabilitation Centers ( Memorial Herman Healthcare System)","Pientok","Collette","EXECUTIVE DIRECTOR","3440 Richmond Avenue","Houston","TX",77046,"281-669-0400",null,"FIU Contract","2008-06-03","2025-01-01","2024-07-01","2024-09-01","2024-10-01",null,"PT",null,null,null,null,"Not in Umbrella"]
["Active","TLC Pediatric Therapies","Stafford","Doug","Health Director","7380 Sand Lake Rd. Ste 500","Orlando","FL",32819,"407/905-9300","tlcpeds@aol.com","FIU Contract","2013-02-01","2025-01-01","2024-07-01","2024-09-01","2024-10-01",null,"OT  PT  CSD",null,null,null,null,"Umbrella",null,"TLC Pediatric Therapies"]
["Active","TLC Rehab Inc","Hammitt","Sarah","Campus Relations Recruiter","8477 S. Suncoast Blvd.","Homosassa","FL",34446,"800-964-9055","shammitt@therapymgmt.com","FIU Contract","2008-12-01","2025-01-01","2024-07-01","2024-09-01","2024-10-01",null,"OT",null,null,null,null,"Not in Umbrella"]
["Active","TLP Pediatric Therapies","Stafford","Doug","Health Director","7380 Sand lake Rd. Ste 500","Orlando","FL",32819,"407/905-9300","tlcpeds@aol.com","FIU Contract","2013-02-01","2025-01-01",{"$f":"IF(N864<>\"\",DATE(YEAR(N864),MONTH(N864)-6,DAY(N864)),\"\")","v":"2024-07-01"},{"$f":"IF(N864<>\"\",DATE(YEAR(N864),MONTH(N864)-4,DAY(N864)),\"\")","v":"2024-09-01"},{"$f":"IF(N864<>\"\",DATE(YEAR(N864),MONTH(N864)-3,DAY(N864)),\"\")","v":"2024-10-01"},null,"OT",null,null,null,null,"Not in Umbrella",null,"TLC Pediatric Therapies"]
["Active","Total Ancillary Services","Beisser","Jane","Vice President of Rehab Operations","Two Plaza East, 330 East Kilbourn Ave, Ste 990","Milwaukee","WI","  53202-3100","414.615-6797","Kschultz@TotalAncillary.com","FIU Contract","2004-03-01","2025-01-01","2024-07-01","2024-09-01","2024-10-01",null,"OT",null,null,null,null,"Not in Umbrella"]
["Active","Total Family Healthcare Center","Gillespie-Johnson","Marjorie","MD","1000 N. Hiatus Rd. Ste 110","Pembroke Pines","FL",33026,"954/431-7676",null,"FIU Contract","2013-10-01","2025-01-01","2024-07-01","2024-09-01","2024-10-01",null,"Nursing",null,null,null,null,"Not in Umbrella"]
["Active","Total Md","Stevens","Lorraine","Office Mgr","8200 Okeechobee Blvd","West Palm Beach","FL",33411,null,null,"FIU Contract","2015-04-23","2025-01-01","2024-07-01","2024-09-01","2024-10-01",null,"Nursing",null,null,null,null,"Not in Umbrella",null,"Total MD"]
["Active","Total Therapy Solutions","Cornnell","Kim","DIRECTOR OF ADMINISTRATION","1076 S. Tamiami Trail","Osprey","FL",34229,"941-918-9575 ","kim@totaltherapysolutionsInc com","FIU Contract","2007-10-01","2025-01-01","2024-07-01","2024-09-01","2024-10-01",null,"PT",null,null,null,null,"Not in Umbrella"]
["Active","Total Therapy Solutions Inc ","Cornnell","Kim","Director of Administration","1076 S. Tamiami Trail","Osprey","FL",34229,"941-918-9575 ","kim@totaltherapysolutionsInc com","FIU Contract","2007-10-01","2025-01-01","2024-07-01","2024-09-01","2024-10-01",null,"OT",null,null,null,null,"Not in Umbrella"]
["Active","UC Health (University Of Cincinnati) Including University Hospital, The Drake Hospital And West Chester Hospital","Whitfiled","Amber","EDUCATION COORDINATOR","3200 Burnet Ave","Cincinnati","OH",45229,"513/585-6000","amber.whitfield@uchealth.com","Facility Contract","2012-02-01","2025-01-01","2024-07-01","2024-09-01","2024-10-01",null,"All Fields in Nur and HS","X","X","X",null,"Umbrella",null,"UC Health"]
["Active","UHI Community Care Clinic","Fasihi","Sadrul",null,"4851 NW 183rd St.","Miami Gardens","FL",33055,"305/620-7797",null,"","2012-05-01","2025-01-01","2024-07-01","2024-09-01","2024-10-01",null,"Nursing",null,null,null,null,"Not in Umbrella",null,"UHI Community Care Clinic"]
["Active","UHZ Sports Medicine Institute","Hechtman","Keith","MD.","1150 Campo Sano Avenue","Coral Gables","FL",33146,null,null,"FIU Contract","2007-08-01","2025-01-01","2024-07-01","2024-09-01","2024-10-01",null,"AT",null,null,null,null,"Not in Umbrella"]
["Active","Unihealth Of S. Fl, Inc "," Barrau","Carmel",null,"646 NW 183rd Street","Miami","FL",33169,"(305) 655-2333",null,"FIU Contract","1999-08-01","2025-01-01","2024-07-01","2024-09-01","2024-10-01",null,"Nursing",null,null,null,null,"Not in Umbrella",null,"United Healthcare of South Florida"]
["Active","United Cerebral Palsy Of Central Florida","Rosa","Irma","Director of Therapy Practice","3305 S Orange Ave.","Orlando","FL",32808,"407/852-3316","irosaucpfl.org","FIU Contract","2011-05-01","2025-01-01","2024-07-01","2024-09-01","2024-10-01",null,"OT, PT, CSD",null,null,null,null,"Umbrella"]
["Active","United Cerebral Palsy Of Tampa Bay formerly Achieve of Tampa Bay","Williamson","Heather","Diretor of Therapy","2215 E. Henry Ave","Tampa","FL",33610,"813-239-1179 x265",null,"FIU Contract","2010-11-01","2025-01-01","2024-07-01","2024-09-01","2024-10-01",null,"OT",null,null,null,null,"Not in Umbrella",null,"UPC of Tampa Bay 2010 OT"]
["Active","United Cerebral Palsy-Orlando","Rosa","Irma J.","Director of Therapy Practice","3305 South Orange Avenue","Orlando","FL",32806,"407 852-3316","irosa@ucpcdc.org","FIU Contract","2004-11-01","2025-01-01","2024-07-01","2024-09-01","2024-10-01",null,"OT",null,null,null,null,"Not in Umbrella"]
["Active","United Cerebral Palsy-South Florida","Pehlan","Aileen","Director of Social Services","1411 NW 14 Avenue","Miami","FL",null,null,null,"FIU Contact","2011-02-01","2025-01-01","2024-07-01","2024-09-01","2024-10-01",null,"OT",null,null,null,null,"Not in Umbrella",null,"UCP Of South Florida"]
["Active","United Healthcare South Florida","Notario","Yeneysi","Case Manager","9100 S Dadeland Blvd","Miami","FL",33156,"305/525-7797","yeneysinotario@UHCsouthflorida.com","FIU Contract","2016-01-27","2019-01-31","2018-07-31","2018-10-01","2018-10-31",null,"NUR",null,null,null,null,null,null,"United Healthcare SF"]
["Active","United Homecare Services","Angola","Bobbie","ADMINISTRATOR","5255 NW 87TH AVENUE, SUITE 400","Miami","FL",33178,"305-716-0765","rdangola@unitedhealthcare.com","FIU Contract","2007-08-01","2025-01-01","2024-07-01","2024-09-01","2024-10-01",null,"OT, PT, CSD, DN, HIM, NUR, PSY, PH, RT, SW","X","X","X",null,"Umbrella",null,"United Homecare"]
["Active","United Homecare Services (Umbrella Agreement)","Fox","Jose ",null,"5255 NW 87th Ave, Ste 400","Miami","FL",33178,"305/716-0765","jfox@unitedhomecare.com","FIU Contract","2007-11-01","2025-01-01","2024-07-01","2024-09-01","2024-10-01",null,"Nursing",null,null,null,null,"Not in Umbrella",null,"United Homecare"]
["Active","United Homecare Services, Inc ","Stubbs","Vianca","MPH","8400 NW 33rd St.","Miami","FL",33122,"315/716-0742","vstubbs@unitedhomecare.com ","FIU Contract","2010-09-01","2025-01-01","2024-07-01","2024-09-01","2024-10-01",null,"PT",null,null,null,null,"Not in Umbrella",null,"United Homecare"]
["Active","United Way For Excellence","Inserni","Rose","DEMONSTRATION SCHOOL DIRECTOR","3250 SW THIRD AVENUE","Miami","FL",33129,null,null,"FIU Contract","2008-05-01","2025-01-01","2024-07-01","2024-09-01","2024-10-01",null,"OT, PT, CSD",null,null,null,null,"Umbrella"]
["Active","Unity Health & Rehab","Donovan","Scharmen","Director of Rehab","1404 NW 22nd Street","Miami","FL",33142,"305 325-1050",null,"FIU Contract","2004-12-01","2025-01-01","2024-07-01","2024-09-01","2024-10-01",null,"OT",null,null,null,null,"Not in Umbrella"]
["Active","Universal Sports Medicine & Physical Therapy","Calvo","David",null,"7746 NORTH KENDALL DRIVE","Miami","FL",33156,"305-279-1556","davidcalvo@bellsouth.net","FIU Contract","2009-03-01","2025-01-01","2024-07-01","2024-09-01","2024-10-01",null,"PT",null,null,null,null,"Not in Umbrella"]
["Active","University Hospital/ University Pavillion HCA","Cohen","Susan ",null,"7425 North University Drive","Tamarac","FL",33321,"(954) 722-1703",null,"FIU Contract","2000-05-01","2025-01-01","2024-07-01","2024-09-01","2024-10-01",null,"Nursing",null,null,null,null,"Not in Umbrella"]
["Inactive","University Of Central Florida (Nurse Educator Prgm)","Stephens","Carola",null,"12201 Research Pkwy","Orlando","FL",32826,"407/823-0697","Carola.Stephens@ucf.edu","Facility Contract","2012-05-01","2016-05-01","2015-11-01","2016-01-01","2016-02-01",null,"Nursing",null,null,null,null,"Not in Umbrella",null,"UCF"]
["Active","University Of Miami, Miller School Of Medicine, Um Hospital, Sylvester Cancer Center, Bascom Palmer, Ann Bates Leach Eye Hospital, Cedars Medical Center","Forts","Joaquin ","DIRECTOR OF EDUCATION","1400 NW 12th Street, Miami, FL 33136","Miami","FL",33136,"305-325-5594"," fjoaquin@med.miami.edu","Facility Contract","2008-05-01","2025-01-01","2024-07-01","2024-09-01","2024-10-01",null,"OT, PT, CSD, NUR,, DN,HIM,SW, PSY, RT, HSA, PH","X","X","X",null,"Umbrella",null,"UM"]
["Active","University of Miami/Miller School Of Medicine Umbrella","Forts","Joaquin ","DIRECTOR OF EDUCATION","1400 NW 12th Street, Miami, FL 33136","Miami","FL",33136,"305-325-5594"," fjoaquin@med.miami.edu","Facility Contract","2008-05-01","2025-01-01","2024-07-01","2024-09-01","2024-10-01",null,"OT, PT, CSD, NUR,, DN,HIM,SW, PSY, RT, HSA, PH","X","X","X",null,"Umbrella",null,"UM"]
["Active","University Of Pretoria","","",null,"P.O. Box 667","Pretoria, South Africa Ooo1",null,null,null,null,"FIU Contract","2003-04-01","2025-01-01","2024-07-01","2024-09-01","2024-10-01",null,"OT",null,null,null,null,"Not in Umbrella"]
["Active","University Of Southernost Florida","Cortina","Maria",null,"2222 Ponce de Leon Blvd. Ste 500","Coral Gables","FL",33134,"305/321-3303","mcortina@usmf.edu","FIU Contract","2014-01-01","2025-01-01","2024-07-01","2024-09-01","2024-10-01",null,"Nursing",null,null,null,null,"Not in Umbrella"]
["Active","Urgent Family Care","Soto","Alexandra","Office Mgr",null,"Miami","FL",33183,null,null,"Facility Contract","2014-10-27","2025-01-01","2024-07-01","2024-09-01","2024-10-01",null,"Nursing",null,null,null,null,"Not in Umbrella"]
["Active","Urgent Med Centers","Merrick","Christie",null,"2337 S University Dr","Davie","FL",33324,"954/423-9234","christiemerrick@urgentmed.us","FIU Contract","2010-10-01","2025-01-01","2024-07-01","2024-09-01","2024-10-01",null,"Nursing",null,null,null,null,"Not in Umbrella",null,"Urgent Med Centers"]
["Active","Usa Sports Therapy","Pardave","Julio","Team Chiropractor for FIU","20754 W Dixie Hwy","Aventura","FL",33180,"305/935-9599","drpardave@usasportstherapy.com","FIU Contract","2013-04-01","2025-01-01","2024-07-01","2024-09-01","2024-10-01",null,"AT",null,null,null,null,"Not in Umbrella",null,"USA Sports Therapy"]
["Active","Utopia Psychiatric Services Inc ","Milstein","Ruth","MD","14201 W Sunrise Blvd, Ste 208","Sunrise","FL",33323,"954/851-9690",null,"FIU Contract","2011-09-01","2025-01-01","2024-07-01","2024-09-01","2024-10-01",null,"Nursing",null,null,null,null,"Not in Umbrella"]
["Active","VA Central Texas","Greiner","Teresa","Administrative Assistant","1901 Veterans Memorial Drive","Temple","TX",76504,"254/743-0934","Teresa.Greiner@va.gov","Facility Contract","2013-07-01","2025-01-01","2024-07-01","2024-09-01","2024-10-01",null,"OT",null,null,null,null,"Not in Umbrella",null,"VA Central Texas OT"]
["Active","VA Medical Center Cleveland","Roberts","Tina ","Program Support Education Office","10701 East Blvd","Cleveland ","OH",44106,"216/421-3098","tina.Roberts@va.gov","Facility","2013-01-01","2025-01-01",{"$f":"IF(N896<>\"\",DATE(YEAR(N896),MONTH(N896)-6,DAY(N896)),\"\")","v":"2024-07-01"},{"$f":"IF(N896<>\"\",DATE(YEAR(N896),MONTH(N896)-4,DAY(N896)),\"\")","v":"2024-09-01"},{"$f":"IF(N896<>\"\",DATE(YEAR(N896),MONTH(N896)-3,DAY(N896)),\"\")","v":"2024-10-01"},null,"OT",null,null,null,null,"Not in Umbrella",null,"VA Cleveland OT"]
["Active","VA Medical Center Of Tampa (See James A Haley Va Hospital)","Barroso","Sonia M.","Continuing Education Coordinator","Chief of Staff, Education Room 131(11J)","Tampa","FL",null,"(813) 972-2000 Ext: 4340",null,"Facility Contract","2014-08-14","2025-01-01","2024-07-01","2024-09-01","2024-10-01",null,"OT",null,null,null,null,"Not in Umbrella",null,"VA Tampa OT"]
["Active","VA Medical Center Orlando","Rios","Raphael","OT Training Director","5201 Raymond St.","Orlando","FL",33504,"913.398-6661",null,"Facility Contract","2011-10-01","2025-01-01","2024-07-01","2024-09-01","2024-10-01",null,"OT",null,null,null,null,"Not in Umbrella",null,"Orlando VA OT"]
["Active ","VA Medical Center Salisbury NC","Jeffries","Virginia","Affiliations Coordinator","1601 Brenner Ave","Salisbury","NC",28144,"704/638-9000 x4397","virginia.jeffries@va.gov","Facility Contract","2015-12-04","2025-01-01","2024-07-01","2024-09-01","2024-10-01",null,"PT",null,null,null,null,null,null,"VA Medical Center NC"]
["Active","VA Miami Healthcare System","Sims","Pamela","Nurse Educator","1201 NW 16th Street","Miami","FL",33125,"(305) 575-7000","Pamela.Sims@va.gov","Facility Contract","2005-04-01","2025-01-01","2024-07-01","2024-09-01","2024-10-01",null,"Nursing",null,null,null,null,"Not in Umbrella",null,"Miami VA Nursing"]
["Active","VA Miami Healthcare System","Gagnon","Melissa","OT Clinical Fieldwork Coordinator","1201 NW 16 Street","Miami","FL",33125,"305-324-4455 x 6219","Melissa.Gagnon@med.va.gov","Facility Contract","2005-04-01","2025-01-01","2024-07-01","2024-09-01","2024-10-01",null,"OT",null,null,null,null,"Not in Umbrella",null,"Miami VA OT"]
["Active","VA Miami Heatlhcare System","Broton","Marical-Broton","EDUCATION COORDINATOR","1201 NW 16 ST","Miami","FL","33125-1693","305 575-7000 X4124","Eileen.Marical@med.va.gov","Facility Contract","2005-04-15","2025-01-01","2024-07-01","2024-09-01","2024-10-01",null,"PT",null,null,null,null,"Not in Umbrella",null,"Miami VA PT"]
["Active","VA Miami Heatlhcare System","Wilson-Vazquez","Kathleen","CCC-SLP","1201 NW 16th Street","Miami","FL",33125,"305/575-3148","Kathleen.Wilson-Vazquez@va.gov","Facility Contract","2005-03-30","2025-01-01","2024-07-01","2024-09-01","2024-10-01",null,"SP",null,null,null,null,null,null,"Miami VA SP"]
["Active","VA North Florida/South Georgia Health System ","Chronister","Kimberly","STUDENT COORDINATOR","1601 SW Archer Rd","Gainesville","FL",32608,"352/36-1611","Kim.Chronister@va.gov","Facility Contract","2010-10-01","2025-01-01","2024-07-01","2024-09-01","2024-10-01",null,"OT , PT , NUR",null,null,null,null,"Umbrella",null,"VA North Florida South Georgia"]
["Active","VA North Texas Health Care System","Bentley","Gail","ASSOC CHIEF OF STAFF FOR EDUCATION","4500 S. Lancaster Rd","Dallas","TX","75216","214.857-1170",null,"Facility Contract","2005-05-16","2025-01-01","2024-07-01","2024-09-01","2024-10-01",null,"PT",null,null,null,null,"Not in Umbrella"]
["Active","VA West Palm Beach","King","Malou","REHAB DEPARTMENT 3B-330","7305 N. MILITARY TRAIL","West Palm Beach","FL",33410,"561-422-7429","malou.king@va.gov","Facility Contract","2009-03-01","2025-01-01","2024-07-01","2024-09-01","2024-10-01",null,"PT",null,null,null,null,"Not in Umbrella",null,"VA West Palm Beach"]
["Active","VA West Palm Beach","John ","Ribnikar","Employee Education Service","7305 N. Military Trail","West Palm Beach","FL",33410,"561-422-6767","john.ribnikar.va.gov","Facility Contract","2010-02-01","2025-01-01","2024-07-01","2024-09-01","2024-10-01",null,"OT",null,null,null,null,"Not in Umbrella",null,"VA West Palm Beach OT"]
["Active","Vails Sports Medicine Physical Therapy","Pusey","Merlon","PT","1295 WESTHAVEN DRIVE","Vail","CO","81658","970 476-7510",null,"FIU Contract","2003-09-01","2025-01-01","2024-07-01","2024-09-01","2024-10-01",null,"PT",null,null,null,null,"Not in Umbrella"]
["Active","Valerie Kolbert PA","Kolbert","Valerie","ARNP","500 NE Spanish River Blvd Ste 102","Boca Raton","FL",33431,"561/347-1112","arnp11@aol.com","FIU Contract","2014-02-01","2025-01-01","2024-07-01","2024-09-01","2024-10-01",null,"Nursing",null,null,null,null,"Not in Umbrella"]
["Active","Vega Medical Center","Crespo","Itcel",null,"3720 SW 107th Avenue, Suite #1","Miami","FL",33165,"305-554-6565",null,null,"2015-05-11","2025-01-01","2024-07-01","2024-09-01","2024-10-01",null,"Nursing",null,null,null,null,"Not in Umbrella",null,"Vega Medical Center"]
["Active","Vein And Vascular Center","Feldbaum","David","MD","2205 N University Dr","Pembroke Pines","FL",33024,"866-747-5312",null,"FIU Contract","2012-03-01","2025-01-01","2024-07-01","2024-09-01","2024-10-01",null,"Nursing",null,null,null,null,"Not in Umbrella",null,"Vein and Vascular Center"]
["Active","Victoria Nursing & Rehab Center","Marini","Gene","Director of Rehab","955 NW 3rd Street","Miami","FL",33128,"305 548-4020","emarini@victorianursing.net","FIU Contract","2015-01-15","2025-01-01","2024-07-01","2024-09-01","2024-10-01",null,"PT",null,null,null,null,"Not in Umbrella",null,"Victoria Nursing and Rehab"]
["Active","Victoria Nursing & Rehab Center","Vicente","Gene Marini","Director of Rehab","955 NW 3rd Street","Miami","FL",33128,"305 548-4020","emarini@victorianursing.net","FIU Contract","2015-01-01","2025-01-01","2024-07-01","2024-09-01","2024-10-01",null,"OT",null,null,null,null,"Not in Umbrella",null,"Victoria Nursing and Rehab"]
["Active","Victoria Nursing & Rehabilitation Center","Marini","Gene","CEO","955 NW 3rd ST","Miami","FL",33128,"954/609-9983","emarini@victorianursing.net","FIU Contract","2015-01-01","2025-01-01","2024-07-01","2024-09-01","2024-10-01",null,"NUR PT OT SP",null,null,null,null,"Umbrella"]
["Active","Viera Hospital","Holland","Debbie","Clinical Educator","8745 N. Wickham Rd.","Melbourne","FL",32940,"321/434-7391",null,null,"2010-10-10","2025-01-01","2024-07-01","2024-09-01","2024-10-01",null,"OT PT SP"]
["Active","Villa Maria Nursing & Rehab Center/St. Catherines Umbrella","Hartley","Greg","PT","1050 NE 125 ST","N. Miami","FL","33161","305 891-8850","Bhmhartley@aol.com","Facility Contract","2000-02-01","2025-01-01","2024-07-01","2024-09-01","2024-10-01",null,"PT",null,null,null,null,"Not in Umbrella"]
["Active","Villa Maria Nursing & Rehabilitation Center/St. Catherines","Hartley","Greg","OT Director","1050 N.E. 125 Street","North Miami","FL",33161,"305-891-8850 x 4259","villaot@aol.com","FIU Contract","2004-08-01","2025-01-01","2024-07-01","2024-09-01","2024-10-01",null,"OT",null,null,null,null,"Not in Umbrella"]
["Active","Villa Maria West Skills Nursing D/B/A St. Catherines Rehabilitation Hospital","Hartley","Gregory","Dir. of Rehab Services","1050 NE 125th St.","North Miami","FL",33161,"305/357-1735","ghartley@chsfla.com","FIU Contract","2011-06-01","2025-01-01","2024-07-01","2024-09-01","2024-10-01",null,"OT, PT ",null,null,null,null,"Umbrella"]
["Active","Vital For Life Healthcare Clinic","Kymer","April","ARNP","7191 West Oakland Park Blvd","Lauderhill","FL",33313,"954/682-8051",null,"Facility Contract","2015-02-12","2025-01-01","2024-07-01","2024-09-01","2024-10-01",null,"Nursing",null,null,null,null,"Not in Umbrella",null,"Vital for Life Healthcare Clinic"]
["Active","Volunteers In Medicine","Fields","Mary ","CEO Exec Director","17 SE Balboa","Stuart","FL",34994,"(772) 463-4128",null,"FIU Contract","2012-01-01","2025-01-01","2024-07-01","2024-09-01","2024-10-01",null,"Nursing",null,null,null,null,"Not in Umbrella"]
["Inactive","Volunteers of America South Florida","Mejia","Jorge","Job Developer","1492 W Flagler St.","Miami","FL",33135,"786/369-1850","jmejia@voa-fla.org","no contract","2014-08-11","2025-01-01","2024-07-01","2024-09-01","2024-10-01",null,null,null,null,null,null,null,null,"Volunteers of America South Florida"]
["Inactive","WakeMed Health NO AGREEMENT","McLaughlin","Janis","Mgr, OP Rehab and Healthworks","3000 New Bern Ave.","Raleigh","NC",null,"919/350-5175","JAMCLAUGHLIN@wakemed.org","Facility Contract","2014-08-03","2025-01-01","2024-07-01","2024-09-01","2024-10-01",null,"PT",null,null,null,null,null,null,"WakeMed"]
["Active","Warm Springs Rehabilitation System (Post Acute Medical, Llc.)","M.R.","Marek","CEO & PRESIDENT","909 NE Loop 410, Ste 500","San Antonio","TX",78209,"210 832-2323","www.warmsprings.org","Facility Contract","2006-12-01","2025-01-01","2024-07-01","2024-09-01","2024-10-01",null,"OT",null,null,null,null,"Not in Umbrella"]
["Inactive","Waterman Rehabilitation Institute Florida Hospital",null,"Azlund",null,"3140 Waterman Way","Tavares","FL",32778,null,null,null,null,null,"","","",null,null,null,null,null,null,null,null,"Waterman Rehabilitation Institute Florida Hospital"]
["Active","Waterworks Aquatic Physical Therapy","Fauls","Catherine","DIRECTOR OF PT","999 TRAIL DRIVE #A","Naples","FL",34103,"239-649-2222","chulefeld@gmail.com","FIU Contract","2009-10-01","2025-01-01","2024-07-01","2024-09-01","2024-10-01",null,"PT",null,null,null,null,"Not in Umbrella"]
["Active","Wekiva Springs Center","Carr","Seila ","Director","3947 Salisbury Rd","Jacksonville","FL",32216,"904/296-3533",null,"","2012-07-01","2025-01-01","2024-07-01","2024-09-01","2024-10-01",null,"Nursing",null,null,null,null,"Not in Umbrella",null,"Wekiva Springs Center"]
["Active","Wellington Place","Nader","Fadia","Director of Rehab","4800 Clague Rd","North Olmstead","OH",44070,"440/414-0375","rehab.wp@jtonm.net","FIU Contract","2013-01-01","2025-01-01","2024-07-01","2024-09-01","2024-10-01",null,"OT   PT",null,null,null,null,"Umbrella",null,"Wellington Place"]
["Active","Wellington Place Umbrella","Fadia","Nader","Director of Rehab","4800 Claugue St","Olmstead","OH",44070,"440/414-0375","rehab.wp@jtonm.net","FIU Contract","2013-01-01","2025-01-01",{"$f":"IF(N928<>\"\",DATE(YEAR(N928),MONTH(N928)-6,DAY(N928)),\"\")","v":"2024-07-01"},{"$f":"IF(N928<>\"\",DATE(YEAR(N928),MONTH(N928)-4,DAY(N928)),\"\")","v":"2024-09-01"},{"$f":"IF(N928<>\"\",DATE(YEAR(N928),MONTH(N928)-3,DAY(N928)),\"\")","v":"2024-10-01"},null,"OT",null,null,null,null,"Not in Umbrella",null,"Wellington Place"]
["Active","Wellmax Medical Center"," Cowley","Roberto","ARNP","13780 SW 26th St. Ste 211","Miami","FL",33175,"305/546-3392",null,"FIU Contract","2013-08-13","2025-01-01","2024-07-01","2024-09-01","2024-10-01",null,"Nursing",null,null,null,null,"Not in Umbrella",null,"Wellmax"]
["Active","Wellness Center Of Miami Dade"," Parra","Belarmino","ARNP","3990 West Flagler","Miami","FL",33134,"305/443-4986","belarparra@aim.com","Facility Contract","2015-01-28","2025-01-01","2024-07-01","2024-09-01","2024-10-01",null,"Nursing",null,null,null,null,"Not in Umbrella",null,"Wellness Center of Miami Dade"]
["Active","Wellness Community","Rios","Peggy","Program Director","8609 South Dixie Highway","Miami","FL",33143,"305.668-5900","prios@twcmiami.com","FIU Contract","2003-03-01","2025-01-01","2024-07-01","2024-09-01","2024-10-01",null,"OT",null,null,null,null,"Not in Umbrella"]
["Active","Wesley Medical Center","King","Nancy","Clinical Affiliations Coordinator","550 North Hillside","Wichita","KA",67214,"316 962-3389","nancy.king@wesleymc.com","FIU Contract","2006-04-01","2025-01-01","2024-07-01","2024-09-01","2024-10-01",null,"OT",null,null,null,null,"Not in Umbrella"]
["Active","West Broward Care Center","Marshall","Linda  ","Rehab Director","7751 W Broward Blvd","Plantation","FL",33324,"954.473-8040",null,"FIU Contract","2004-03-01","2025-01-01","2024-07-01","2024-09-01","2024-10-01",null,"OT",null,null,null,null,"Not in Umbrella"]
["Active","West Dade Pediatric","Egusquiza","Maria","M.D.","3220 SW 107th Avenue","Miami","FL",33165,"305-551-1195",null,"FIU Contract","2015-08-19","2025-01-01","2024-07-01","2024-09-01","2024-10-01",null,"Nursing",null,null,null,null,null,null,"West Dade Pediatric"]
["Active","West Florida Hospital, Dba West Florida Regional Medical Center HCA","Mcfarland","Eileen","EXECUTIVE SECRETARY to CFO","8383 N. DAVIS HIGHWAY","Pensacola","FL",32514,"850-494-4125","eileen.mcfarland@hcahealthcare.com","Facility Contract","2015-06-09","2017-12-31","2017-07-01","2017-08-31","2017-10-01",null,"All Fields in Nur and HS","X","X","X",null,"Umbrella",null,"West Florida Hospital"]
["Active","West Gables Rehab Hospital Umbrella","Gonzalez","Carmen","OT Director","2525 S.W. 75 Avenue","Miami","FL",33155,"305-262-6800 X 2021",null,"FIU Contract","2004-01-01","2025-01-01","2024-07-01","2024-09-01","2024-10-01",null,"OT",null,null,null,null,"Not in Umbrella"]
["Active","West Gables Rehab Umbrella","Maria Victoria","Vivas","Admin Assistant","2525 SW 75 ave","Miami","FL","33155","305 262-6800",null,"FIU Contract","2002-08-01","2025-01-01","2024-07-01","2024-09-01","2024-10-01",null,"PT",null,null,null,null,"Not in Umbrella"]
["Active","West Gables Rehabilitation Hospital","Vivas","Marie  ","ADMINISTRATIVE ASSISTANT","2525 SW 75th Ave","Miami","FL",33155,"305-260-1805","www.rehabcare.com","FIU Contract","2010-09-10","2025-01-01","2024-07-01","2024-09-01","2024-10-01",null,"All Fields in Nur and HS","X","X","X",null,"Umbrella"]
["Inactive","West Palm Hospital (Formerly Columbia Hospital) HCA","Eberhardt","Scott","Education Coordinator","2201 - 45th St.","West Palm Beach","FL",33407,"561/863-3940","scott.eberhardt@hcahealthcare.com","Facility Contract","2000-01-01","2015-02-01","2014-08-01","2014-10-01","2014-11-01",null,"OT, PT, NUR, SW, HSA DN, CSD, RT","X","X",null,null,"Umbrella"]
["Active","Westchester General Hospital","Lund ","Alicia","ASSISTANT ADMINISTRATOR","2500 SW 75TH AVENUE, MIAMI, FL 33155","Miami","FL",33155,"305-263-9086","alund@westchesterhopsital.com","FIU Contract","2009-03-01","2025-01-01","2024-07-01","2024-09-01","2024-10-01",null,"OT, PT, CSD, DN, HIM, HSA, NUR, PH, SW",null,"X",null,null,"Umbrella",null,"Westchester General Hospital"]
["Active","Weston Family Practice",null,"Melinda",null,null,"Weston","FL",33326,null,null,"Facility Contract","2014-10-15","2025-01-01","2024-07-01","2024-09-01","2024-10-01",null,"Nursing",null,null,null,null,"Not in Umbrella"]
["Active","Weston Outpaitent Surgical Center","Piazza","Craig","Center Manager","2229 N Commerce Pkwy","Weston ","FL",33326,"954/659-8986","piazza@selectmedical.com","FIU Contract","2013-03-01","2025-01-01","2024-07-01","2024-09-01","2024-10-01",null,"OT  PT",null,null,null,null,"Umbrella",null,"Weston Outpatient"]
["Inactive","Westside Regional Medical Center HCA","Cuervo","Ennette","CONTRACT ADMINISTRATOR","8201 WEST BROWARD BLVD","Plantation","FL",33324,"954.476-3989","ennette.cuervo@hcahealthcare.com","Facility Contract","2011-05-01","2014-11-01","2014-05-01","2014-07-01","2014-08-01",null,"DN   NUR   HSA ",null,null,null,null,"Umbrella",null,"Westside Regional"]
["Active","Wexford Health Sources Inc","Liberati Vith","Lisa",null,"501 Holiday Dr Foster Plaza Four","Pittsburgh","PA ",15220,"412/937-8590x208","lvith@wexfordhealth.com","Facility Contract","2014-06-01","2025-01-01","2024-07-01","2024-09-01","2024-10-01",null,"Nursing",null,null,null,null,"Not in Umbrella",null,"Wexford Health"]
["Active","Whispering Manes Therapeutic Riding Center","Bauer","Erin","DVM`","6255 SW 125th Ave","Miami","FL",33186,"305/909-4343","ebauer@whisperingmanes.org","FIU Contract","2013-02-08","2025-01-01","2024-07-01","2024-09-01","2024-10-01",null,"OT",null,null,null,null,"Not in Umbrella",null,"Whispering Manes"]
["Active","Winn Army Community Hospital (Tuttle Army Health Clinic)","Shives","Linda K.","AGREEMENTS MANAGER","1061 HARMON AVENUE, SUITE 1 D03","Ft. Stewart","GA","31314","912.435-6930","Linda.Shives@se.amedd.army.mil","Facility Contract","2005-05-23","2025-01-01","2024-07-01","2024-09-01","2024-10-01",null,"PT",null,null,null,null,"Not in Umbrella"]
["Active","Winter Park Care & Rehab Center (Signature Healthcare facility)","Ramos","Rafael","Contracts Paralegal","2970 Scarlet Rd","Winter Park","FL",32792,"(407) 671-8030",null,null,"2012-03-01","2025-01-01","2024-07-01","2024-09-01","2024-10-01",null,"OT PT SP",null,null,null,null,null,null,"Signature Healthcare"]
["Active","Women's Md Llc","Delgado","Pablo","MD","10700 N Kendall Dr. Ste 200","Miami","FL",33176,"305/270-6788",null,"FIU Contract","2012-05-01","2025-01-01","2024-07-01","2024-09-01","2024-10-01",null,"Nursing",null,null,null,null,"Not in Umbrella",null,"Womens MD"]
["Active","Women's Surgical Specialists Of Ft Lauderdale"," Sacristan","Julie",null,"6405 N Federal Hwy #402","Ft. Lauderdale","FL",33308,"954/771-8888",null,"FIU Contract","2014-05-01","2025-01-01","2024-07-01","2024-09-01","2024-10-01",null,"Nursing",null,null,null,null,"Not in Umbrella"]
["Active","Woods Healthcare Group Inc","Walton","Kim","Director of Rehab","5627 Ninth Street East","Bradenton","FL",34203,"941 739-4405",null,"FIU Contract","2004-07-01","2025-01-01","2024-07-01","2024-09-01","2024-10-01",null,"OT",null,null,null,null,"Not in Umbrella"]
["Active","Work It Out Now Inc "," Burton","Lisa",null,"14707 S Dixie Hwy","Miami","FL",33176,null,null,"FIU Contract","2013-08-01","2025-01-01","2024-07-01","2024-09-01","2024-10-01",null,"Nursing",null,null,null,null,"Not in Umbrella"]
["Active","World Wide Health","Zapata","Andres","Administrator & Owner","7878 NW 52nd Street","Miami","FL",33166,"786 331-7444","worldwidehealth2004@hotmail.com","FIU Contract","2004-10-01","2025-01-01","2024-07-01","2024-09-01","2024-10-01",null,"OT",null,null,null,null,"Not in Umbrella"]
["Active","Worldwide Pediatrics","Millon","Juan Carlos ","MD","300 NW 70th Ave., Ste 107","Plantation","FL",33317,"954/581-3100","worldwidepedi@bellsouth.net","FIU Contract","2011-06-01","2025-01-01","2024-07-01","2024-09-01","2024-10-01",null,"Nursing",null,null,null,null,"Not in Umbrella"]
["Active","XL Physical Therapy Sports And Rehab","Zatorski","Jack","President","4022 North Ocean Blvd","Ft. Lauderdale","FL",33308,"954-566-2400","Jack@Xlphysicaltherapy.com","FIU Contract","2010-02-10","2025-01-01","2024-07-01","2024-09-01","2024-10-01",null,"PT",null,null,null,null,"Not in Umbrella",null,"XL PT Sports and Rehab"]
[null,null,null,null,null,null,null,null,null,null,null,null,null,null,"","",""]
[null,null,null,null,null,null,null,null,null,null,null,null,null,null,"","",""]